Organisation ,Directorate ,Pay Date ,Amount SUM,Supplier name ,Type of Expenditure ,Category Name
Leeds City Council,Adults and Health,13/04/2018,390.00,Age Uk Leeds Enterprises,Adult Cliet Groups Only,Supplies & Services
Leeds City Council,Adults and Health,13/04/2018,465.00,Aspire Services (Leeds) Limited,Adult Cliet Groups Only,Supplies & Services
Leeds City Council,Adults and Health,13/04/2018,"4,070.00",Hf Trust Ltd,Adult Cliet Groups Only,Supplies & Services
Leeds City Council,Adults and Health,12/04/2018,"1,000.00",Leeds Bereavement Forum,Adult Cliet Groups Only,Supplies & Services
Leeds City Council,Adults and Health,17/04/2018,120.00,Airedale Community Trading (Act) Ltd,Adult Cliet Groups Only,Supplies & Services
Leeds City Council,Adults and Health,20/04/2018,"1,070.72",Sense,Adult Cliet Groups Only,Supplies & Services
Leeds City Council,Adults and Health,24/04/2018,535.68,St Annes Community Services,Adult Cliet Groups Only,Supplies & Services
Leeds City Council,Adults and Health,24/04/2018,416.64,St Annes Community Services,Adult Cliet Groups Only,Supplies & Services
Leeds City Council,Adults and Health,20/04/2018,609.04,Specialist Autism Services,Adult Cliet Groups Only,Supplies & Services
Leeds City Council,Adults and Health,06/04/2018,232.00,Second Chance Headway Centre,Adult Cliet Groups Only,Supplies & Services
Leeds City Council,Adults and Health,06/04/2018,304.00,Second Chance Headway Centre,Adult Cliet Groups Only,Supplies & Services
Leeds City Council,Adults and Health,20/04/2018,304.52,Specialist Autism Services,Adult Cliet Groups Only,Supplies & Services
Leeds City Council,Adults and Health,24/04/2018,304.52,Specialist Autism Services,Adult Cliet Groups Only,Supplies & Services
Leeds City Council,Adults and Health,24/04/2018,160.00,Specialist Autism Services,Adult Cliet Groups Only,Supplies & Services
Leeds City Council,Adults and Health,20/04/2018,304.52,Specialist Autism Services,Adult Cliet Groups Only,Supplies & Services
Leeds City Council,Adults and Health,06/04/2018,440.00,Touchstone - Leeds,Adult Cliet Groups Only,Supplies & Services
Leeds City Council,Adults and Health,16/04/2018,495.38,Affinity Trust,Adult Cliet Groups Only,Supplies & Services
Leeds City Council,Adults and Health,16/04/2018,495.38,Affinity Trust,Adult Cliet Groups Only,Supplies & Services
Leeds City Council,Adults and Health,11/04/2018,150.57,People Matters (West Yorkshire) Cio,Adult Cliet Groups Only,Supplies & Services
Leeds City Council,Adults and Health,04/04/2018,"2,643.20",The Disabilities Trust,Adult Cliet Groups Only,Supplies & Services
Leeds City Council,Adults and Health,04/04/2018,"4,392.37",St Annes Residential Care,Adult Cliet Groups Only,Supplies & Services
Leeds City Council,Adults and Health,04/04/2018,"1,639.40",Larchfield Residential Home,Adult Cliet Groups Only,Supplies & Services
Leeds City Council,Adults and Health,27/04/2018,"77,175.00",Developing Initiatives For Support In,Grid 11 - DIP,Supplies & Services
Leeds City Council,Adults and Health,13/04/2018,"9,100.00",Developing Initiatives For Support In,Grid 11 - DIP,Supplies & Services
Leeds City Council,Adults and Health,27/04/2018,"7,021.30",The West Yorkshire Crc Ltd,Grid 11 - DIP,Supplies & Services
Leeds City Council,Adults and Health,17/04/2018,"1,600.00",Leeds Older Peoples Forum,Other Adult Services,Supplies & Services
Leeds City Council,Adults and Health,20/04/2018,50.00,St Chads Parish Centre,Other Adult Services,Supplies & Services
Leeds City Council,Adults and Health,06/04/2018,112.50,The Methodist Church,Other Adult Services,Supplies & Services
Leeds City Council,Adults and Health,13/04/2018,"7,434.00",Leeds Community Foundation,Other Adult Services,Supplies & Services
Leeds City Council,Adults and Health,25/04/2018,"93,600.00",Touchstone - Leeds,Other Adult Services,Supplies & Services
Leeds City Council,Adults and Health,05/04/2018,315.00,Shared Lives Plus,Adult Family Placement,Supplies & Services
Leeds City Council,Adults and Health,20/04/2018,"5,000.00",Carers Uk,Carers,Supplies & Services
Leeds City Council,Adults and Health,06/04/2018,"5,904.00",Leeds Jewish Welfare Board,Carers,Supplies & Services
Leeds City Council,Adults and Health,06/04/2018,350.00,South Leeds Life Group,Older People and Long Term Conditions,Supplies & Services
Leeds City Council,Adults and Health,26/04/2018,"19,630.00",Dazl,Child & Maternal Health,Supplies & Services
Leeds City Council,Adults and Health,05/04/2018,"1,914,932.50",Developing Initiatives For Support In,Healthy Living and Health Improvement,Supplies & Services
Leeds City Council,Adults and Health,16/04/2018,"-3,385.00",Health For All (Leeds) Ltd,Child & Maternal Health,Supplies & Services
Leeds City Council,Adults and Health,16/04/2018,"-17,375.00",Health For All (Leeds) Ltd,Child & Maternal Health,Supplies & Services
Leeds City Council,Adults and Health,13/04/2018,"1,530.00",Developing Initiatives For Support In,Healthy Living and Health Improvement,Supplies & Services
Leeds City Council,Adults and Health,13/04/2018,"15,275.00",Developing Initiatives For Support In,Healthy Living and Health Improvement,Supplies & Services
Leeds City Council,Adults and Health,03/04/2018,"2,900.00",Leeds Mind,Mental Wellbeing and Sexual Health,Supplies & Services
Leeds City Council,Adults and Health,13/04/2018,"3,336.50",Living Streets,Healthy Living and Health Improvement,Supplies & Services
Leeds City Council,Adults and Health,10/04/2018,"-70,712.75",St Annes Community Services,Healthy Living and Health Improvement,Supplies & Services
Leeds City Council,Adults and Health,10/04/2018,"70,712.75",St Annes Community Services,Healthy Living and Health Improvement,Supplies & Services
Leeds City Council,Adults and Health,16/04/2018,"1,700.00",Space2 Leeds,Mental Wellbeing and Sexual Health,Supplies & Services
Leeds City Council,Adults and Health,06/04/2018,"180,000.00",Developing Initiatives For Support In,Healthy Living and Health Improvement,Supplies & Services
Leeds City Council,Adults and Health,26/04/2018,"5,000.00",Henry,Child & Maternal Health,Supplies & Services
Leeds City Council,Adults and Health,20/04/2018,20.28,Lancashire Care Nhs Foundation Trust,Mental Wellbeing and Sexual Health,Supplies & Services
Leeds City Council,Adults and Health,13/04/2018,"5,519.00",Locala Community Partnership C.I.C.,Mental Wellbeing and Sexual Health,Supplies & Services
Leeds City Council,Adults and Health,13/04/2018,"2,063.00",Locala Community Partnership C.I.C.,Mental Wellbeing and Sexual Health,Supplies & Services
Leeds City Council,Adults and Health,05/04/2018,90.00,St Matthias Church Centre,Assessment And Care Management,Supplies & Services
Leeds City Council,Adults and Health,05/04/2018,250.00,St Matthias Church Centre,Assessment And Care Management,Supplies & Services
Leeds City Council,Adults and Health,24/04/2018,"43,750.00",Health For All (Leeds) Ltd,Other Services-Adults With Learning Disa,Supplies & Services
Leeds City Council,Adults and Health,24/04/2018,"2,500.00",Better Action For Families Cio,Other Services-Adults With Learning Disa,Supplies & Services
Leeds City Council,Adults and Health,24/04/2018,"13,677.75",Leep1,Other Services-Adults With Learning Disa,Supplies & Services
Leeds City Council,Adults and Health,03/04/2018,"7,769.75",Leeds Jewish Welfare Board,Other Services For Mental Health Needs,Supplies & Services
Leeds City Council,Adults and Health,18/04/2018,"24,950.00",The New Wortley Community Association,Other Services For Mental Health Needs,Supplies & Services
Leeds City Council,Adults and Health,25/04/2018,"143,552.50",Touchstone - Leeds,Other Services For Mental Health Needs,Supplies & Services
Leeds City Council,Adults and Health,16/04/2018,"24,447.85",Advonet,Other Services For Mental Health Needs,Supplies & Services
Leeds City Council,Adults and Health,06/04/2018,"1,872.00",Making Space,Other Services For Mental Health Needs,Supplies & Services
Leeds City Council,Adults and Health,27/04/2018,"1,872.00",Making Space,Other Services For Mental Health Needs,Supplies & Services
Leeds City Council,Adults and Health,13/04/2018,827.40,Leeds Autism Services,Day Care Mental Health,Supplies & Services
Leeds City Council,Adults and Health,20/04/2018,609.04,Specialist Autism Services,Day Care Mental Health,Supplies & Services
Leeds City Council,Adults and Health,25/04/2018,"1,218.08",Specialist Autism Services,Day Care Mental Health,Supplies & Services
Leeds City Council,Adults and Health,25/04/2018,304.52,Specialist Autism Services,Day Care Mental Health,Supplies & Services
Leeds City Council,Adults and Health,19/04/2018,609.04,Specialist Autism Services,Day Care Mental Health,Supplies & Services
Leeds City Council,Adults and Health,19/04/2018,380.65,Specialist Autism Services,Day Care Mental Health,Supplies & Services
Leeds City Council,Adults and Health,19/04/2018,761.30,Specialist Autism Services,Day Care Mental Health,Supplies & Services
Leeds City Council,Adults and Health,06/04/2018,"1,218.08",Specialist Autism Services,Day Care Mental Health,Supplies & Services
Leeds City Council,Adults and Health,30/04/2018,191.76,Affinity Trust,Home Care Mental Health,Supplies & Services
Leeds City Council,Adults and Health,23/04/2018,"2,279.60",Real Life Options,Home Care Mental Health,Supplies & Services
Leeds City Council,Adults and Health,19/04/2018,609.04,Specialist Autism Services,Day Care Mental Health,Supplies & Services
Leeds City Council,Adults and Health,13/04/2018,240.00,Touchstone - Leeds,Home Care Mental Health,Supplies & Services
Leeds City Council,Adults and Health,13/04/2018,300.00,Touchstone - Leeds,Home Care Mental Health,Supplies & Services
Leeds City Council,Adults and Health,13/04/2018,480.00,Touchstone - Leeds,Home Care Mental Health,Supplies & Services
Leeds City Council,Adults and Health,19/04/2018,95.88,Affinity Trust,Home Care Mental Health,Supplies & Services
Leeds City Council,Adults and Health,05/04/2018,268.92,Casa Leeds,Home Care Mental Health,Supplies & Services
Leeds City Council,Adults and Health,11/04/2018,"2,569.68",Casa Leeds,Home Care Mental Health,Supplies & Services
Leeds City Council,Adults and Health,20/04/2018,288.00,Henshaws Society For Blind People,Home Care Mental Health,Supplies & Services
Leeds City Council,Adults and Health,04/04/2018,285.00,Imagineer Development Uk Cic,Home Care Mental Health,Supplies & Services
Leeds City Council,Adults and Health,06/04/2018,766.98,Leeds Autism Services,Day Care Mental Health,Supplies & Services
Leeds City Council,Adults and Health,23/04/2018,908.52,Leeds Autism Services,Day Care Mental Health,Supplies & Services
Leeds City Council,Adults and Health,18/04/2018,893.42,Rani Care Cic,Home Care Mental Health,Supplies & Services
Leeds City Council,Adults and Health,10/04/2018,178.56,St Annes Community Services,Home Care Mental Health,Supplies & Services
Leeds City Council,Adults and Health,06/04/2018,178.56,St Annes Community Services,Home Care Mental Health,Supplies & Services
Leeds City Council,Adults and Health,06/04/2018,223.20,St Annes Community Services,Home Care Mental Health,Supplies & Services
Leeds City Council,Adults and Health,06/04/2018,178.56,St Annes Community Services,Home Care Mental Health,Supplies & Services
Leeds City Council,Adults and Health,03/04/2018,162.36,St Annes Community Services,Home Care Mental Health,Supplies & Services
Leeds City Council,Adults and Health,05/04/2018,178.56,St Annes Community Services,Home Care Mental Health,Supplies & Services
Leeds City Council,Adults and Health,05/04/2018,133.92,St Annes Community Services,Home Care Mental Health,Supplies & Services
Leeds City Council,Adults and Health,05/04/2018,178.56,St Annes Community Services,Home Care Mental Health,Supplies & Services
Leeds City Council,Adults and Health,18/04/2018,"1,676.76",Specialist Autism Services,Home Care Mental Health,Supplies & Services
Leeds City Council,Adults and Health,11/04/2018,880.00,Touchstone - Leeds,Home Care Mental Health,Supplies & Services
Leeds City Council,Adults and Health,12/04/2018,120.00,Touchstone - Leeds,Home Care Mental Health,Supplies & Services
Leeds City Council,Adults and Health,11/04/2018,680.00,Touchstone - Leeds,Home Care Mental Health,Supplies & Services
Leeds City Council,Adults and Health,12/04/2018,320.00,Touchstone - Leeds,Home Care Mental Health,Supplies & Services
Leeds City Council,Adults and Health,11/04/2018,340.00,Touchstone - Leeds,Home Care Mental Health,Supplies & Services
Leeds City Council,Adults and Health,11/04/2018,820.00,Touchstone - Leeds,Home Care Mental Health,Supplies & Services
Leeds City Council,Adults and Health,11/04/2018,660.00,Touchstone - Leeds,Home Care Mental Health,Supplies & Services
Leeds City Council,Adults and Health,11/04/2018,138.00,Touchstone - Leeds,Home Care Mental Health,Supplies & Services
Leeds City Council,Adults and Health,06/04/2018,480.00,Touchstone - Leeds,Home Care Mental Health,Supplies & Services
Leeds City Council,Adults and Health,06/04/2018,540.00,Touchstone - Leeds,Home Care Mental Health,Supplies & Services
Leeds City Council,Adults and Health,04/04/2018,"4,813.28",Community Links,Residential Care Home Placements,Supplies & Services
Leeds City Council,Adults and Health,04/04/2018,"22,550.92",St Annes Residential Care,Adult Cliet Groups Only,Supplies & Services
Leeds City Council,Adults and Health,04/04/2018,"4,941.12",St Annes Residential Care,Adult Cliet Groups Only,Supplies & Services
Leeds City Council,Adults and Health,04/04/2018,"5,748.00",Chatterton Hey,Residential Care Home Placements,Supplies & Services
Leeds City Council,Adults and Health,04/04/2018,"2,864.80",Henshaw Yokshire,Residential Care Home Placements,Supplies & Services
Leeds City Council,Adults and Health,04/04/2018,"17,187.12",Larchfield Residential Home,Adult Cliet Groups Only,Supplies & Services
Leeds City Council,Adults and Health,04/04/2018,"19,158.64",St Annes Residential Care,Adult Cliet Groups Only,Supplies & Services
Leeds City Council,Adults and Health,04/04/2018,791.96,St Annes Shelter & Housing & Action,Residential Care Home Placements,Supplies & Services
Leeds City Council,Adults and Health,04/04/2018,"8,123.88",Sign Health,Residential Care Home Placements,Supplies & Services
Leeds City Council,Adults and Health,03/04/2018,"11,666.25",Leeds Involving People,Other Services To Older People,Supplies & Services
Leeds City Council,Adults and Health,26/04/2018,"5,451.43",Donisthorpe Hall,Residential Care Home Placements,Supplies & Services
Leeds City Council,Adults and Health,04/04/2018,24.00,West Yorkshire Playhouse Enterprise,Other Services To Older People,Supplies & Services
Leeds City Council,Adults and Health,11/04/2018,24.00,West Yorkshire Playhouse Enterprise,Other Services To Older People,Supplies & Services
Leeds City Council,Adults and Health,18/04/2018,24.00,West Yorkshire Playhouse Enterprise,Other Services To Older People,Supplies & Services
Leeds City Council,Adults and Health,18/04/2018,24.00,West Yorkshire Playhouse Enterprise,Other Services To Older People,Supplies & Services
Leeds City Council,Adults and Health,25/04/2018,24.00,West Yorkshire Playhouse Enterprise,Other Services To Older People,Supplies & Services
Leeds City Council,Adults and Health,25/04/2018,24.00,West Yorkshire Playhouse Enterprise,Other Services To Older People,Supplies & Services
Leeds City Council,Adults and Health,27/04/2018,24.00,West Yorkshire Playhouse Enterprise,Other Services To Older People,Supplies & Services
Leeds City Council,Adults and Health,03/04/2018,"34,505.50",Action For Gipton Elderly,Other Services To Older People,Supplies & Services
Leeds City Council,Adults and Health,03/04/2018,"22,646.00",Armley Helping Hands,Other Services To Older People,Supplies & Services
Leeds City Council,Adults and Health,03/04/2018,"18,560.00",Avsed,Other Services To Older People,Supplies & Services
Leeds City Council,Adults and Health,03/04/2018,"10,599.75",Age Uk Leeds Enterprises,Other Services To Older People,Supplies & Services
Leeds City Council,Adults and Health,03/04/2018,"3,000.00",Al Khidmat Centre,Other Services To Older People,Supplies & Services
Leeds City Council,Adults and Health,03/04/2018,"26,054.75",Belle Isle Elderly Winter Aid,Other Services To Older People,Supplies & Services
Leeds City Council,Adults and Health,03/04/2018,"35,049.00",Bramley Elderly Action,Other Services To Older People,Supplies & Services
Leeds City Council,Adults and Health,03/04/2018,"10,397.25",Burmantofts Senior Action,Other Services To Older People,Supplies & Services
Leeds City Council,Adults and Health,03/04/2018,"9,625.00",Bramley Eldery Action - Bramley Lawn,Other Services To Older People,Supplies & Services
Leeds City Council,Adults and Health,03/04/2018,"6,327.50",Caring Together In Woodhouse And Little,Other Services To Older People,Supplies & Services
Leeds City Council,Adults and Health,03/04/2018,"19,298.00",Crossgates And District Good Neighbours,Other Services To Older People,Supplies & Services
Leeds City Council,Adults and Health,03/04/2018,"14,709.25",Farsley Live At Home Scheme,Other Services To Older People,Supplies & Services
Leeds City Council,Adults and Health,03/04/2018,"14,572.50",Hawksworth Older People Support,Other Services To Older People,Supplies & Services
Leeds City Council,Adults and Health,03/04/2018,"8,915.00",Holbeck Elderly Aid,Other Services To Older People,Supplies & Services
Leeds City Council,Adults and Health,03/04/2018,"4,165.00",Hope,Other Services To Older People,Supplies & Services
Leeds City Council,Adults and Health,03/04/2018,"19,524.75",Horsforth Live At Home,Other Services To Older People,Supplies & Services
Leeds City Council,Adults and Health,03/04/2018,"7,517.25",Hamwattan Elderly Centre,Other Services To Older People,Supplies & Services
Leeds City Council,Adults and Health,03/04/2018,"15,437.50",Leeds Black Elders Association,Other Services To Older People,Supplies & Services
Leeds City Council,Adults and Health,03/04/2018,"9,887.50",Leeds Jewish Welfare Board,Other Services For Mental Health Needs,Supplies & Services
Leeds City Council,Adults and Health,03/04/2018,"19,863.75",Middleton Elderly Aid,Other Services To Older People,Supplies & Services
Leeds City Council,Adults and Health,03/04/2018,"17,033.50",Moor Allerton Elderly Care,Other Services To Older People,Supplies & Services
Leeds City Council,Adults and Health,03/04/2018,"22,826.25",Morley Elderly Action,Other Services To Older People,Supplies & Services
Leeds City Council,Adults and Health,03/04/2018,"10,561.25",North Seacroft Good Neighbours,Other Services To Older People,Supplies & Services
Leeds City Council,Adults and Health,03/04/2018,"7,408.00",Neighbourhood Action In Farnley,Other Services To Older People,Supplies & Services
Leeds City Council,Adults and Health,03/04/2018,"19,661.50",Neighbourhood Elders Team,Other Services To Older People,Supplies & Services
Leeds City Council,Adults and Health,03/04/2018,"16,774.00",Older Peoples Action In The Locality,Other Services To Older People,Supplies & Services
Leeds City Council,Adults and Health,03/04/2018,"14,367.50",Otley Action For Older People,Other Services To Older People,Supplies & Services
Leeds City Council,Adults and Health,03/04/2018,"17,327.50",Owls At Heart,Other Services To Older People,Supplies & Services
Leeds City Council,Adults and Health,03/04/2018,"15,796.50",Pudsey Live At Home Scheme,Other Services To Older People,Supplies & Services
Leeds City Council,Adults and Health,03/04/2018,"25,315.25",Richmond Hill Elderly Action,Other Services To Older People,Supplies & Services
Leeds City Council,Adults and Health,03/04/2018,"15,236.50",Rothwell & District Live At Home Scheme,Other Services To Older People,Supplies & Services
Leeds City Council,Adults and Health,03/04/2018,"34,728.25",Royal Voluntary Service,Other Services To Older People,Supplies & Services
Leeds City Council,Adults and Health,03/04/2018,"10,910.00",South Leeds Elderly Group,Other Services To Older People,Supplies & Services
Leeds City Council,Adults and Health,03/04/2018,"20,078.75",South Leeds Live At Home Scheme,Other Services To Older People,Supplies & Services
Leeds City Council,Adults and Health,03/04/2018,"21,749.00",South Leeds Team Ministry,Other Services To Older People,Supplies & Services
Leeds City Council,Adults and Health,03/04/2018,"11,195.25",South Seacroft Friends & Neighbours,Other Services To Older People,Supplies & Services
Leeds City Council,Adults and Health,03/04/2018,"26,717.75",Step,Other Services To Older People,Supplies & Services
Leeds City Council,Adults and Health,03/04/2018,"9,595.00",Swarcliffe Good Neighbours Scheme,Other Services To Older People,Supplies & Services
Leeds City Council,Adults and Health,25/04/2018,"14,961.88",Touchstone - Leeds,Other Services To Older People,Supplies & Services
Leeds City Council,Adults and Health,03/04/2018,"31,547.25",Wetherby In Support Of The Elderly,Other Services To Older People,Supplies & Services
Leeds City Council,Adults and Health,03/04/2018,"2,762.50",Woodsley Kashmiri Elders,Other Services To Older People,Supplies & Services
Leeds City Council,Adults and Health,06/04/2018,"9,167.48",Anchor Trust,Other Services To Older People,Supplies & Services
Leeds City Council,Adults and Health,10/04/2018,"9,167.48",Anchor Trust,Other Services To Older People,Supplies & Services
Leeds City Council,Adults and Health,27/04/2018,"1,512.86",Anchor Trust,Home Care,Supplies & Services
Leeds City Council,Adults and Health,30/04/2018,"1,156.38",Affinity Trust,Home Care Mental Health,Supplies & Services
Leeds City Council,Adults and Health,30/04/2018,793.92,Affinity Trust,Home Care,Supplies & Services
Leeds City Council,Adults and Health,25/04/2018,"112,917.72",Casa Leeds,Home Care,Supplies & Services
Leeds City Council,Adults and Health,25/04/2018,"2,722.82",Casa Leeds,Home Care,Supplies & Services
Leeds City Council,Adults and Health,17/04/2018,191.52,People In Action Leeds Uk,Home Care,Supplies & Services
Leeds City Council,Adults and Health,04/04/2018,112.50,Reflections Community Support,Home Care,Supplies & Services
Leeds City Council,Adults and Health,19/04/2018,238.08,St Annes Community Services,Home Care,Supplies & Services
Leeds City Council,Adults and Health,20/04/2018,123.87,Specialist Autism Services,Home Care,Supplies & Services
Leeds City Council,Adults and Health,30/04/2018,485.17,Specialist Autism Services,Home Care,Supplies & Services
Leeds City Council,Adults and Health,19/04/2018,622.52,Specialist Autism Services,Home Care,Supplies & Services
Leeds City Council,Adults and Health,19/04/2018,"1,076.48",Affinity Trust,Home Care Mental Health,Supplies & Services
Leeds City Council,Adults and Health,13/04/2018,447.93,Casa Leeds,Home Care,Supplies & Services
Leeds City Council,Adults and Health,05/04/2018,"94,208.05",Casa Leeds,Home Care Mental Health,Supplies & Services
Leeds City Council,Adults and Health,12/04/2018,"1,008.70",Rani Care Cic,Home Care,Supplies & Services
Leeds City Council,Adults and Health,12/04/2018,"1,873.30",Rani Care Cic,Home Care,Supplies & Services
Leeds City Council,Adults and Health,19/04/2018,48.75,Reflections Community Support,Home Care,Supplies & Services
Leeds City Council,Adults and Health,19/04/2018,157.50,Reflections Community Support,Home Care,Supplies & Services
Leeds City Council,Adults and Health,19/04/2018,210.00,Reflections Community Support,Home Care,Supplies & Services
Leeds City Council,Adults and Health,19/04/2018,239.77,Reflections Community Support,Home Care,Supplies & Services
Leeds City Council,Adults and Health,19/04/2018,131.25,Reflections Community Support,Home Care,Supplies & Services
Leeds City Council,Adults and Health,19/04/2018,262.50,Reflections Community Support,Home Care,Supplies & Services
Leeds City Council,Adults and Health,19/04/2018,335.65,Reflections Community Support,Home Care,Supplies & Services
Leeds City Council,Adults and Health,19/04/2018,90.00,Reflections Community Support,Home Care,Supplies & Services
Leeds City Council,Adults and Health,19/04/2018,82.50,Reflections Community Support,Home Care,Supplies & Services
Leeds City Council,Adults and Health,19/04/2018,119.88,Reflections Community Support,Home Care,Supplies & Services
Leeds City Council,Adults and Health,19/04/2018,111.86,Reflections Community Support,Home Care,Supplies & Services
Leeds City Council,Adults and Health,19/04/2018,583.40,Reflections Community Support,Home Care,Supplies & Services
Leeds City Council,Adults and Health,19/04/2018,315.00,Reflections Community Support,Home Care,Supplies & Services
Leeds City Council,Adults and Health,19/04/2018,217.50,Reflections Community Support,Home Care,Supplies & Services
Leeds City Council,Adults and Health,26/04/2018,139.86,Reflections Community Support,Home Care,Supplies & Services
Leeds City Council,Adults and Health,26/04/2018,551.31,Reflections Community Support,Home Care,Supplies & Services
Leeds City Council,Adults and Health,26/04/2018,95.88,Reflections Community Support,Home Care,Supplies & Services
Leeds City Council,Adults and Health,26/04/2018,331.66,Reflections Community Support,Home Care,Supplies & Services
Leeds City Council,Adults and Health,26/04/2018,262.50,Reflections Community Support,Home Care,Supplies & Services
Leeds City Council,Adults and Health,26/04/2018,131.25,Reflections Community Support,Home Care,Supplies & Services
Leeds City Council,Adults and Health,26/04/2018,239.77,Reflections Community Support,Home Care,Supplies & Services
Leeds City Council,Adults and Health,26/04/2018,210.00,Reflections Community Support,Home Care,Supplies & Services
Leeds City Council,Adults and Health,26/04/2018,157.50,Reflections Community Support,Home Care,Supplies & Services
Leeds City Council,Adults and Health,26/04/2018,217.50,Reflections Community Support,Home Care,Supplies & Services
Leeds City Council,Adults and Health,26/04/2018,11.99,Reflections Community Support,Home Care,Supplies & Services
Leeds City Council,Adults and Health,04/04/2018,135.86,Reflections Community Support,Home Care,Supplies & Services
Leeds City Council,Adults and Health,04/04/2018,551.46,Reflections Community Support,Home Care,Supplies & Services
Leeds City Council,Adults and Health,04/04/2018,111.86,Reflections Community Support,Home Care,Supplies & Services
Leeds City Council,Adults and Health,04/04/2018,119.88,Reflections Community Support,Home Care,Supplies & Services
Leeds City Council,Adults and Health,04/04/2018,142.50,Reflections Community Support,Home Care,Supplies & Services
Leeds City Council,Adults and Health,04/04/2018,75.00,Reflections Community Support,Home Care,Supplies & Services
Leeds City Council,Adults and Health,04/04/2018,335.65,Reflections Community Support,Home Care,Supplies & Services
Leeds City Council,Adults and Health,04/04/2018,262.50,Reflections Community Support,Home Care,Supplies & Services
Leeds City Council,Adults and Health,04/04/2018,175.83,Reflections Community Support,Home Care,Supplies & Services
Leeds City Council,Adults and Health,04/04/2018,210.00,Reflections Community Support,Home Care,Supplies & Services
Leeds City Council,Adults and Health,04/04/2018,217.50,Reflections Community Support,Home Care,Supplies & Services
Leeds City Council,Adults and Health,19/04/2018,127.87,Reflections Community Support,Home Care,Supplies & Services
Leeds City Council,Adults and Health,19/04/2018,217.50,Reflections Community Support,Home Care,Supplies & Services
Leeds City Council,Adults and Health,19/04/2018,157.50,Reflections Community Support,Home Care,Supplies & Services
Leeds City Council,Adults and Health,19/04/2018,225.00,Reflections Community Support,Home Care,Supplies & Services
Leeds City Council,Adults and Health,19/04/2018,243.76,Reflections Community Support,Home Care,Supplies & Services
Leeds City Council,Adults and Health,19/04/2018,262.50,Reflections Community Support,Home Care,Supplies & Services
Leeds City Council,Adults and Health,19/04/2018,335.65,Reflections Community Support,Home Care,Supplies & Services
Leeds City Council,Adults and Health,19/04/2018,97.50,Reflections Community Support,Home Care,Supplies & Services
Leeds City Council,Adults and Health,19/04/2018,157.50,Reflections Community Support,Home Care,Supplies & Services
Leeds City Council,Adults and Health,20/04/2018,122.54,Reflections Community Support,Home Care,Supplies & Services
Leeds City Council,Adults and Health,19/04/2018,111.86,Reflections Community Support,Home Care,Supplies & Services
Leeds City Council,Adults and Health,19/04/2018,492.86,Reflections Community Support,Home Care,Supplies & Services
Leeds City Council,Adults and Health,19/04/2018,119.88,Reflections Community Support,Home Care,Supplies & Services
Leeds City Council,Adults and Health,03/04/2018,59.52,St Annes Community Services,Home Care,Supplies & Services
Leeds City Council,Adults and Health,18/04/2018,357.12,St Annes Community Services,Home Care,Supplies & Services
Leeds City Council,Adults and Health,03/04/2018,59.52,St Annes Community Services,Home Care,Supplies & Services
Leeds City Council,Adults and Health,19/04/2018,162.36,St Annes Community Services,Home Care,Supplies & Services
Leeds City Council,Adults and Health,19/04/2018,595.32,St Annes Community Services,Home Care,Supplies & Services
Leeds City Council,Adults and Health,19/04/2018,595.32,St Annes Community Services,Home Care,Supplies & Services
Leeds City Council,Adults and Health,03/04/2018,386.88,St Annes Community Services,Home Care,Supplies & Services
Leeds City Council,Adults and Health,03/04/2018,714.24,St Annes Community Services,Home Care,Supplies & Services
Leeds City Council,Adults and Health,03/04/2018,59.52,St Annes Community Services,Home Care,Supplies & Services
Leeds City Council,Adults and Health,20/04/2018,"1,920.00",The Disabilities Trust,Home Care,Supplies & Services
Leeds City Council,Adults and Health,06/04/2018,160.00,Touchstone - Leeds,Home Care,Supplies & Services
Leeds City Council,Adults and Health,06/04/2018,800.00,Touchstone - Leeds,Home Care,Supplies & Services
Leeds City Council,Adults and Health,06/04/2018,280.00,Touchstone - Leeds,Home Care,Supplies & Services
Leeds City Council,Adults and Health,06/04/2018,200.00,Touchstone - Leeds,Home Care,Supplies & Services
Leeds City Council,Adults and Health,06/04/2018,72.00,Touchstone - Leeds,Home Care,Supplies & Services
Leeds City Council,Adults and Health,04/04/2018,"2,806.52",St Annes Residential Care,Adult Cliet Groups Only,Supplies & Services
Leeds City Council,Adults and Health,04/04/2018,"3,496.78",Burley Hall Nursing Home,Residential Care Home Placements,Supplies & Services
Leeds City Council,Adults and Health,04/04/2018,-93.81,Copperhill Nursing Home,Residential Care Home Placements,Supplies & Services
Leeds City Council,Adults and Health,04/04/2018,"4,963.30",Donisthorpe Hall,Residential Care Home Placements,Supplies & Services
Leeds City Council,Adults and Health,04/04/2018,"13,226.97",Elmwood Nursing Home,Residential Care Home Placements,Supplies & Services
Leeds City Council,Adults and Health,04/04/2018,"9,536.75",Gledhow Christian Care Home,Residential Care Home Placements,Supplies & Services
Leeds City Council,Adults and Health,04/04/2018,"4,762.06",Little Sisters Of The Poor,Residential Care Home Placements,Supplies & Services
Leeds City Council,Adults and Health,04/04/2018,"6,360.98",Leonard Cheshire Disability,Residential Care Home Placements,Supplies & Services
Leeds City Council,Adults and Health,04/04/2018,"1,316.91",Southlands Nursing & Residential Home,Residential Care Home Placements,Supplies & Services
Leeds City Council,Adults and Health,04/04/2018,"1,475.76",Sir Gabriel Wood'S Mariners' Home,Residential Care Home Placements,Supplies & Services
Leeds City Council,Adults and Health,04/04/2018,"12,255.14",Anchor Trust,Residential Care Home Placements,Supplies & Services
Leeds City Council,Adults and Health,04/04/2018,"18,101.56",Anchor Trust,Residential Care Home Placements,Supplies & Services
Leeds City Council,Adults and Health,04/04/2018,"36,330.94",Anchor Trust Simon Marks Court,Residential Care Home Placements,Supplies & Services
Leeds City Council,Adults and Health,04/04/2018,"10,514.07",Ashcroft Nursing Home,Residential Care Home Placements,Supplies & Services
Leeds City Council,Adults and Health,04/04/2018,"8,423.47",Donisthorpe Hall,Residential Care Home Placements,Supplies & Services
Leeds City Council,Adults and Health,04/04/2018,"5,141.11",Hica Specialised Care Homes,Residential Care Home Placements,Supplies & Services
Leeds City Council,Adults and Health,04/04/2018,"5,847.25",Larchfield Residential Home,Adult Cliet Groups Only,Supplies & Services
Leeds City Council,Adults and Health,04/04/2018,"4,743.46",Springfield Nursing Home,Residential Care Home Placements,Supplies & Services
Leeds City Council,Adults and Health,06/04/2018,345.00,Touchstone - Leeds,Residential Care Home Placements,Supplies & Services
Leeds City Council,Adults and Health,04/04/2018,"1,254.28",Bupa Park Avenue,Residential Care Home Placements,Supplies & Services
Leeds City Council,Adults and Health,04/04/2018,"24,366.43",Copperhill Nursing Home,Residential Care Home Placements,Supplies & Services
Leeds City Council,Adults and Health,04/04/2018,"12,571.39",Donisthorpe Hall,Residential Care Home Placements,Supplies & Services
Leeds City Council,Adults and Health,04/04/2018,"2,135.12",Lindley Grange,Residential Care Home Placements,Supplies & Services
Leeds City Council,Adults and Health,04/04/2018,"2,029.72",Methodist Homes For The Aged,Residential Care Home Placements,Supplies & Services
Leeds City Council,Adults and Health,04/04/2018,"3,442.70",Anchor Trust,Residential Care Home Placements,Supplies & Services
Leeds City Council,Adults and Health,04/04/2018,"30,919.09",Anchor Trust,Residential Care Home Placements,Supplies & Services
Leeds City Council,Adults and Health,04/04/2018,"-4,246.28",Anchor Trust Simon Marks Court,Residential Care Home Placements,Supplies & Services
Leeds City Council,Adults and Health,04/04/2018,"1,087.61",Burley Hall Nursing Home,Residential Care Home Placements,Supplies & Services
Leeds City Council,Adults and Health,04/04/2018,"1,514.29",Borrage House,Residential Care Home Placements,Supplies & Services
Leeds City Council,Adults and Health,04/04/2018,"24,294.77",Donisthorpe Hall,Residential Care Home Placements,Supplies & Services
Leeds City Council,Adults and Health,04/04/2018,"1,552.72",Dyneley House,Residential Care Home Placements,Supplies & Services
Leeds City Council,Adults and Health,04/04/2018,"1,178.92",Elmwood Nursing Home,Residential Care Home Placements,Supplies & Services
Leeds City Council,Adults and Health,04/04/2018,"4,425.84",Gledhow Christian Care Home,Residential Care Home Placements,Supplies & Services
Leeds City Council,Adults and Health,04/04/2018,"1,514.29",Heath Lodge Residential Home,Residential Care Home Placements,Supplies & Services
Leeds City Council,Adults and Health,04/04/2018,"2,697.14",Joseph Rowntree Foundation,Residential Care Home Placements,Supplies & Services
Leeds City Council,Adults and Health,04/04/2018,"32,585.34",Larchfield Residential Home,Adult Cliet Groups Only,Supplies & Services
Leeds City Council,Adults and Health,04/04/2018,"3,419.21",Leeds Jewish Welfare Board,Residential Care Home Placements,Supplies & Services
Leeds City Council,Adults and Health,04/04/2018,"3,180.00",Lily Thompson House,Residential Care Home Placements,Supplies & Services
Leeds City Council,Adults and Health,04/04/2018,"13,308.85",Little Sisters Of The Poor,Residential Care Home Placements,Supplies & Services
Leeds City Council,Adults and Health,04/04/2018,"4,753.26",Leonard Cheshire,Residential Care Home Placements,Supplies & Services
Leeds City Council,Adults and Health,04/04/2018,"6,126.63",Leonard Cheshire Disability,Residential Care Home Placements,Supplies & Services
Leeds City Council,Adults and Health,04/04/2018,"2,679.13",Methodist Homes For The Aged,Residential Care Home Placements,Supplies & Services
Leeds City Council,Adults and Health,04/04/2018,"1,407.93",Orders Of St John Care Trust,Residential Care Home Placements,Supplies & Services
Leeds City Council,Adults and Health,04/04/2018,"4,786.24",St Annes Residential Care,Adult Cliet Groups Only,Supplies & Services
Leeds City Council,Adults and Health,03/04/2018,"8,131.00",William Merritt Disabled Living,Physical Impairment - Equip & Adaptation,Supplies & Services
Leeds City Council,Adults and Health,17/04/2018,334.60,People Matters (West Yorkshire) Cio,Home Care,Supplies & Services
Leeds City Council,Adults and Health,17/04/2018,"4,884.48",The Disabilities Trust,Home Care,Supplies & Services
Leeds City Council,Adults and Health,20/04/2018,400.00,The Disabilities Trust,Home Care,Supplies & Services
Leeds City Council,Adults and Health,06/04/2018,640.00,The Disabilities Trust,Home Care,Supplies & Services
Leeds City Council,Adults and Health,06/04/2018,480.00,Touchstone - Leeds,Home Care,Supplies & Services
Leeds City Council,Adults and Health,05/04/2018,"157,210.00",Leeds Centre For Integrated Living,Day Care,Supplies & Services
Leeds City Council,Adults and Health,11/04/2018,60.00,Saint John Of God Hospitaller Services,Other Services - P/Dis Or S/Impairment,Supplies & Services
Leeds City Council,Adults and Health,24/04/2018,240.00,Saint John Of God Hospitaller Services,Other Services - P/Dis Or S/Impairment,Supplies & Services
Leeds City Council,Adults and Health,27/04/2018,134.56,Affinity Trust,Home Care,Supplies & Services
Leeds City Council,Adults and Health,27/04/2018,319.60,Affinity Trust,Home Care,Supplies & Services
Leeds City Council,Adults and Health,17/04/2018,403.68,Affinity Trust,Home Care,Supplies & Services
Leeds City Council,Adults and Health,17/04/2018,134.56,Affinity Trust,Home Care,Supplies & Services
Leeds City Council,Adults and Health,30/04/2018,990.76,Affinity Trust,Home Care Mental Health,Supplies & Services
Leeds City Council,Adults and Health,30/04/2018,647.19,Affinity Trust,Home Care,Supplies & Services
Leeds City Council,Adults and Health,25/04/2018,89.64,Casa Leeds,Home Care,Supplies & Services
Leeds City Council,Adults and Health,17/04/2018,535.36,People Matters (West Yorkshire) Cio,Home Care,Supplies & Services
Leeds City Council,Adults and Health,25/04/2018,304.52,Specialist Autism Services,Home Care,Supplies & Services
Leeds City Council,Adults and Health,25/04/2018,304.52,Specialist Autism Services,Home Care,Supplies & Services
Leeds City Council,Adults and Health,19/04/2018,"1,981.52",Affinity Trust,Home Care Mental Health,Supplies & Services
Leeds City Council,Adults and Health,05/04/2018,"18,256.68",Casa Leeds,Home Care Mental Health,Supplies & Services
Leeds City Council,Adults and Health,06/04/2018,"1,921.00",Leeds Autism Services,Home Care,Supplies & Services
Leeds City Council,Adults and Health,09/04/2018,108.00,Pyramid Of Arts,Home Care,Supplies & Services
Leeds City Council,Adults and Health,13/04/2018,108.00,Pyramid Of Arts,Home Care,Supplies & Services
Leeds City Council,Adults and Health,06/04/2018,105.00,Purple Patch Arts,Home Care,Supplies & Services
Leeds City Council,Adults and Health,19/04/2018,463.42,Reflections Community Support,Home Care,Supplies & Services
Leeds City Council,Adults and Health,26/04/2018,551.31,Reflections Community Support,Home Care,Supplies & Services
Leeds City Council,Adults and Health,26/04/2018,315.00,Reflections Community Support,Home Care,Supplies & Services
Leeds City Council,Adults and Health,04/04/2018,239.70,Reflections Community Support,Home Care,Supplies & Services
Leeds City Council,Adults and Health,19/04/2018,199.76,Reflections Community Support,Home Care,Supplies & Services
Leeds City Council,Adults and Health,20/04/2018,912.00,Scope,Home Care,Supplies & Services
Leeds City Council,Adults and Health,20/04/2018,256.00,Scope,Home Care,Supplies & Services
Leeds City Council,Adults and Health,20/04/2018,400.00,Scope,Home Care,Supplies & Services
Leeds City Council,Adults and Health,12/04/2018,256.00,Scope,Home Care,Supplies & Services
Leeds City Council,Adults and Health,03/04/2018,119.04,St Annes Community Services,Home Care,Supplies & Services
Leeds City Council,Adults and Health,03/04/2018,238.08,St Annes Community Services,Home Care,Supplies & Services
Leeds City Council,Adults and Health,19/04/2018,162.36,St Annes Community Services,Home Care,Supplies & Services
Leeds City Council,Adults and Health,18/04/2018,304.52,Specialist Autism Services,Home Care,Supplies & Services
Leeds City Council,Adults and Health,18/04/2018,304.52,Specialist Autism Services,Home Care,Supplies & Services
Leeds City Council,Adults and Health,18/04/2018,913.56,Specialist Autism Services,Home Care,Supplies & Services
Leeds City Council,Adults and Health,18/04/2018,769.04,Specialist Autism Services,Home Care,Supplies & Services
Leeds City Council,Adults and Health,18/04/2018,609.04,Specialist Autism Services,Home Care,Supplies & Services
Leeds City Council,Adults and Health,18/04/2018,95.40,Specialist Autism Services,Home Care,Supplies & Services
Leeds City Council,Adults and Health,18/04/2018,609.04,Specialist Autism Services,Home Care,Supplies & Services
Leeds City Council,Adults and Health,27/04/2018,609.04,Specialist Autism Services,Home Care,Supplies & Services
Leeds City Council,Adults and Health,18/04/2018,291.40,Specialist Autism Services,Home Care,Supplies & Services
Leeds City Council,Adults and Health,12/04/2018,592.00,The Disabilities Trust,Home Care,Supplies & Services
Leeds City Council,Adults and Health,30/04/2018,432.44,The Disabilities Trust,Home Care,Supplies & Services
Leeds City Council,Adults and Health,30/04/2018,438.13,The Disabilities Trust,Home Care,Supplies & Services
Leeds City Council,Adults and Health,19/04/2018,"1,384.00",The Disabilities Trust,Home Care,Supplies & Services
Leeds City Council,Adults and Health,20/04/2018,760.00,The Disabilities Trust,Home Care,Supplies & Services
Leeds City Council,Adults and Health,20/04/2018,"1,024.00",The Disabilities Trust,Home Care,Supplies & Services
Leeds City Council,Adults and Health,06/04/2018,160.00,Touchstone - Leeds,Home Care,Supplies & Services
Leeds City Council,Adults and Health,06/04/2018,315.00,Touchstone - Leeds,Home Care,Supplies & Services
Leeds City Council,Adults and Health,04/04/2018,"4,688.20",St Annes Residential Care,Adult Cliet Groups Only,Supplies & Services
Leeds City Council,Adults and Health,04/04/2018,"46,145.40",The Disabilities Trust,Adult Cliet Groups Only,Supplies & Services
Leeds City Council,Adults and Health,04/04/2018,"12,376.72",The Disabilities Trust,Residential Care Home Placements,Supplies & Services
Leeds City Council,Adults and Health,04/04/2018,"1,801.60",Anchor Trust,Residential Care Home Placements,Supplies & Services
Leeds City Council,Adults and Health,04/04/2018,"45,145.42",Leonard Cheshire Disability,Residential Care Home Placements,Supplies & Services
Leeds City Council,Adults and Health,04/04/2018,"2,040.00",Anchor Trust,Residential Care Home Placements,Supplies & Services
Leeds City Council,Adults and Health,04/04/2018,"2,570.08",Henshaw Yokshire,Residential Care Home Placements,Supplies & Services
Leeds City Council,Adults and Health,04/04/2018,"4,090.76",Hollybank Trust,Residential Care Home Placements,Supplies & Services
Leeds City Council,Adults and Health,04/04/2018,"10,338.57",Larchfield Residential Home,Adult Cliet Groups Only,Supplies & Services
Leeds City Council,Adults and Health,04/04/2018,"8,477.82",Livability,Residential Care Home Placements,Supplies & Services
Leeds City Council,Adults and Health,04/04/2018,"24,430.12",Leonard Cheshire,Residential Care Home Placements,Supplies & Services
Leeds City Council,Adults and Health,04/04/2018,"3,285.48",Leonard Cheshire Disability,Residential Care Home Placements,Supplies & Services
Leeds City Council,Adults and Health,04/04/2018,"3,657.44",Leonard Cheshire Of Gloucestershire,Residential Care Home Placements,Supplies & Services
Leeds City Council,Adults and Health,04/04/2018,"4,671.88",Royal National Institute For The,Residential Care Home Placements,Supplies & Services
Leeds City Council,Adults and Health,04/04/2018,"19,673.59",Saint John Of God Hospitaller Services,Residential Care Home Placements,Supplies & Services
Leeds City Council,Adults and Health,04/04/2018,"4,630.96",The Disabilities Trust,Residential Care Home Placements,Supplies & Services
Leeds City Council,Adults and Health,30/04/2018,395.00,Specialist Autism Services,Social Services Support Services,Supplies & Services
Leeds City Council,Adults and Health,04/04/2018,53.90,National Housing Federation,Social Services Support Services,Supplies & Services
Leeds City Council,Adults and Health,04/04/2018,420.00,Developing Initiatives For Support In,Supporting People,Supplies & Services
Leeds City Council,Children and Families,12/04/2018,"278,988.00",Bridge Street Pentecostal Chuch,,Supplies & Services
Leeds City Council,Children and Families,11/04/2018,270.00,Swarthmore Education Centre,Learning Improvement,Supplies & Services
Leeds City Council,Children and Families,18/04/2018,"10,000.00",Sing Up,Learning Improvement,Supplies & Services
Leeds City Council,Children and Families,30/04/2018,985.00,The Uk Association For Music Education,Learning Improvement,Supplies & Services
Leeds City Council,Children and Families,05/04/2018,"6,960.00",National Governors Association,Learning Improvement,Supplies & Services
Leeds City Council,Children and Families,30/04/2018,120.00,The Uk Association For Music Education,Learning Improvement,Supplies & Services
Leeds City Council,Children and Families,24/04/2018,500.00,Bishop Wheeler Catholic Academy Trust,Learning Improvement,Supplies & Services
Leeds City Council,Children and Families,26/04/2018,250.00,Arts @ Trinity Ltd,Learning Improvement,Supplies & Services
Leeds City Council,Children and Families,04/04/2018,300.00,Bishop Wheeler Catholic Academy Trust,Learning Improvement,Supplies & Services
Leeds City Council,Children and Families,18/04/2018,250.00,Geographical Association,Learning Improvement,Supplies & Services
Leeds City Council,Children and Families,06/04/2018,"5,792.00",Dj School Leeds Cic,Learning Improvement,Supplies & Services
Leeds City Council,Children and Families,06/04/2018,500.00,Dj School Leeds Cic,Learning Improvement,Supplies & Services
Leeds City Council,Children and Families,06/04/2018,"5,080.00",Diocese Of Leeds: Director Of Music Fund,Learning Improvement,Supplies & Services
Leeds City Council,Children and Families,06/04/2018,"7,650.00",Diocese Of Leeds: Director Of Music Fund,Learning Improvement,Supplies & Services
Leeds City Council,Children and Families,03/04/2018,"4,775.00",Heads Together Productions Ltd,Learning Improvement,Supplies & Services
Leeds City Council,Children and Families,06/04/2018,"7,550.00",Home-Start Leeds,Learning Management,Supplies & Services
Leeds City Council,Children and Families,06/04/2018,"4,000.00",Leeds Youth Opera,Learning Improvement,Supplies & Services
Leeds City Council,Children and Families,04/04/2018,"5,000.00",Opera North Ltd,Learning Improvement,Supplies & Services
Leeds City Council,Children and Families,12/04/2018,100.00,South Asian Arts-Uk,Learning Improvement,Supplies & Services
Leeds City Council,Children and Families,12/04/2018,"5,000.00",South Asian Arts-Uk,Learning Improvement,Supplies & Services
Leeds City Council,Children and Families,06/04/2018,"1,000.00",Yamsen,Learning Improvement,Supplies & Services
Leeds City Council,Children and Families,06/04/2018,0.00,Dj School Leeds Cic,Learning Improvement,Supplies & Services
Leeds City Council,Children and Families,20/04/2018,310.00,Basis Yorkshire Ltd,Workforce Development & Change,Supplies & Services
Leeds City Council,Children and Families,20/04/2018,603.00,Basis Yorkshire Ltd,Workforce Development & Change,Supplies & Services
Leeds City Council,Children and Families,25/04/2018,175.00,Open College Network Yhr,Workforce Development & Change,Supplies & Services
Leeds City Council,Children and Families,20/04/2018,"15,000.00",The Dartington Hall Trust,Workforce Development & Change,Supplies & Services
Leeds City Council,Children and Families,20/04/2018,525.00,British Youth Council,Workforce Development & Change,Supplies & Services
Leeds City Council,Children and Families,05/04/2018,100.00,Leeds Mencap Ltd,Complex Needs,Supplies & Services
Leeds City Council,Children and Families,13/04/2018,573.80,Community Accord,Complex Needs,Supplies & Services
Leeds City Council,Children and Families,03/04/2018,"53,705.00",Aireborough Supported Activities Scheme,Complex Needs,Supplies & Services
Leeds City Council,Children and Families,03/04/2018,"25,306.00",Leeds Play Network,Complex Needs,Supplies & Services
Leeds City Council,Children and Families,03/04/2018,"64,807.00",Leeds Weekend Care Association,Complex Needs,Supplies & Services
Leeds City Council,Children and Families,06/04/2018,"9,760.00",Leeds Weekend Care Association,Complex Needs,Supplies & Services
Leeds City Council,Children and Families,24/04/2018,"37,750.00",Leeds Centre For Integrated Living,Complex Needs,Supplies & Services
Leeds City Council,Children and Families,03/04/2018,"43,554.00",Leeds Mencap Ltd,Complex Needs,Supplies & Services
Leeds City Council,Children and Families,25/04/2018,535.36,People Matters (West Yorkshire) Cio,Complex Needs,Supplies & Services
Leeds City Council,Children and Families,03/04/2018,"6,660.00",Phoenix Dance Theatre,Complex Needs,Supplies & Services
Leeds City Council,Children and Families,03/04/2018,"5,180.00",Sunshire And Smiles,Complex Needs,Supplies & Services
Leeds City Council,Children and Families,03/04/2018,"12,220.00",West Oaks Summer Playscheme,Complex Needs,Supplies & Services
Leeds City Council,Children and Families,20/04/2018,"46,250.00",Barnardos,Complex Needs,Supplies & Services
Leeds City Council,Children and Families,03/04/2018,48.06,Leeds Mencap Ltd,Complex Needs,Supplies & Services
Leeds City Council,Children and Families,20/04/2018,32.04,Leeds Mencap Ltd,Complex Needs,Supplies & Services
Leeds City Council,Children and Families,03/04/2018,320.00,Scope,Complex Needs,Supplies & Services
Leeds City Council,Children and Families,04/04/2018,"29,151.01",Scope,Complex Needs,Supplies & Services
Leeds City Council,Children and Families,30/04/2018,30.00,Henry,Early Help,Supplies & Services
Leeds City Council,Children and Families,13/04/2018,150.00,Yorkshire Youth & Music Ltd,Child Protection & LAC,Supplies & Services
Leeds City Council,Children and Families,18/04/2018,56.67,Jabadao,Early Help,Supplies & Services
Leeds City Council,Children and Families,13/04/2018,500.00,Opera North Ltd,Early Help,Supplies & Services
Leeds City Council,Children and Families,27/04/2018,50.00,Christ The Saviour Church,Targeted Services,Supplies & Services
Leeds City Council,Children and Families,06/04/2018,540.00,Aim Project,Integrated Safeguarding Unit,Supplies & Services
Leeds City Council,Children and Families,05/04/2018,47.50,Blessed John Henry Newman,Targeted Services,Supplies & Services
Leeds City Council,Children and Families,27/04/2018,46.00,Guiseley Methodist Church,Targeted Services,Supplies & Services
Leeds City Council,Children and Families,05/04/2018,60.00,Holy Trinity Church Pcc,Targeted Services,Supplies & Services
Leeds City Council,Children and Families,05/04/2018,50.00,Holy Trinity Church Pcc,Targeted Services,Supplies & Services
Leeds City Council,Children and Families,05/04/2018,45.00,Holy Trinity Church Pcc,Targeted Services,Supplies & Services
Leeds City Council,Children and Families,05/04/2018,50.00,Holy Trinity Church Pcc,Targeted Services,Supplies & Services
Leeds City Council,Children and Families,09/04/2018,124.00,Leeds Mencap Ltd,Targeted Services,Supplies & Services
Leeds City Council,Children and Families,13/04/2018,45.00,Seacroft Methodist Church,Targeted Services,Supplies & Services
Leeds City Council,Children and Families,06/04/2018,45.00,St Wilfrids Church,Targeted Services,Supplies & Services
Leeds City Council,Children and Families,09/04/2018,42.50,St Matthias Church Centre,Targeted Services,Supplies & Services
Leeds City Council,Children and Families,13/04/2018,45.00,St Pauls Church Ireland Wood,Targeted Services,Supplies & Services
Leeds City Council,Children and Families,09/04/2018,100.00,St.Cyprian With St James Church,Targeted Services,Supplies & Services
Leeds City Council,Children and Families,09/04/2018,240.00,St.Cyprian With St James Church,Targeted Services,Supplies & Services
Leeds City Council,Children and Families,06/04/2018,25.00,Wesley Road Chapel,Targeted Services,Supplies & Services
Leeds City Council,Children and Families,06/04/2018,25.00,Wesley Road Chapel,Targeted Services,Supplies & Services
Leeds City Council,Children and Families,20/04/2018,330.00,City Of Leeds Basketball Club,Youth and Skills,Supplies & Services
Leeds City Council,Children and Families,13/04/2018,225.00,The Cardigan Centre,Early Help,Supplies & Services
Leeds City Council,Children and Families,13/04/2018,75.00,The Cardigan Centre,Early Help,Supplies & Services
Leeds City Council,Children and Families,13/04/2018,194.25,The Cardigan Centre,Early Help,Supplies & Services
Leeds City Council,Children and Families,24/04/2018,"2,011.20",Coram Academy,Child Protection & LAC,Supplies & Services
Leeds City Council,Children and Families,10/04/2018,"1,500.00",The Market Place,Early Help,Supplies & Services
Leeds City Council,Children and Families,18/04/2018,295.65,Adel Pre School,Early Help,Supplies & Services
Leeds City Council,Children and Families,20/04/2018,"26,122.20",Adel Pre School,Early Help,Supplies & Services
Leeds City Council,Children and Families,24/04/2018,"3,024.00",Adel Pre School,Early Help,Supplies & Services
Leeds City Council,Children and Families,24/04/2018,"2,873.68",Adel Pre School,Early Help,Supplies & Services
Leeds City Council,Children and Families,24/04/2018,"9,661.05",Bright Sparks Pre-School,Early Help,Supplies & Services
Leeds City Council,Children and Families,20/04/2018,"31,669.30",Brownberrie Lane Pre-School,Early Help,Supplies & Services
Leeds City Council,Children and Families,18/04/2018,"3,155.88",Brownberrie Lane Pre-School,Early Help,Supplies & Services
Leeds City Council,Children and Families,24/04/2018,"6,978.94",Burmantofts Community Nursery,Early Help,Supplies & Services
Leeds City Council,Children and Families,24/04/2018,"1,436.84",Chapeltown Community Nursery,Early Help,Supplies & Services
Leeds City Council,Children and Families,24/04/2018,"1,436.84",Calverley Village Day Nursery,Early Help,Supplies & Services
Leeds City Council,Children and Families,24/04/2018,"4,762.10",Ducklings Pre-School Learning Centre,Early Help,Supplies & Services
Leeds City Council,Children and Families,24/04/2018,"6,978.94",Faith Together In Leeds 11,Early Help,Supplies & Services
Leeds City Council,Children and Families,20/04/2018,"1,458.60",Garforth Pre-School Playgroup,Early Help,Supplies & Services
Leeds City Council,Children and Families,30/04/2018,"11,395.00",Gipsil,Child Protection & LAC,Supplies & Services
Leeds City Council,Children and Families,20/04/2018,"23,057.10",Greenacre Pre-School,Early Help,Supplies & Services
Leeds City Council,Children and Families,24/04/2018,"2,052.63",Greenacre Pre-School,Early Help,Supplies & Services
Leeds City Council,Children and Families,20/04/2018,"24,796.20",Greenside Care Club,Early Help,Supplies & Services
Leeds City Council,Children and Families,24/04/2018,"2,052.63",Greenside Care Club,Early Help,Supplies & Services
Leeds City Council,Children and Families,24/04/2018,"2,873.68",Headingley Pre School,Early Help,Supplies & Services
Leeds City Council,Children and Families,16/04/2018,"50,832.00",Health For All (Leeds) Ltd,Targeted Services,Supplies & Services
Leeds City Council,Children and Families,18/04/2018,"1,788.51",Kirkstall St Stephens Pre School,Early Help,Supplies & Services
Leeds City Council,Children and Families,20/04/2018,"22,939.80",Kirkstall St Stephens Pre School,Early Help,Supplies & Services
Leeds City Council,Children and Families,24/04/2018,"4,105.26",Kirkstall St Stephens Pre School,Early Help,Supplies & Services
Leeds City Council,Children and Families,30/04/2018,"3,489.47",Leeds Mencap Ltd,Early Help,Supplies & Services
Leeds City Council,Children and Families,23/04/2018,"1,080.00",Milestones Day Nursery,Early Help,Supplies & Services
Leeds City Council,Children and Families,23/04/2018,"4,105.26",Milestones Day Nursery,Early Help,Supplies & Services
Leeds City Council,Children and Families,18/04/2018,795.60,Owls & The Pussycats Playgroup,Early Help,Supplies & Services
Leeds City Council,Children and Families,20/04/2018,"6,165.90",Owls & The Pussycats Playgroup,Early Help,Supplies & Services
Leeds City Council,Children and Families,20/04/2018,"31,244.98",Pool Pre-School Group,Early Help,Supplies & Services
Leeds City Council,Children and Families,24/04/2018,"2,873.68",Shadwell Pre-School Playgroup,Early Help,Supplies & Services
Leeds City Council,Children and Families,24/04/2018,"2,052.63",Shantona Womens Centre,Early Help,Supplies & Services
Leeds City Council,Children and Families,20/04/2018,"1,768.00",St Marys Playgroup,Early Help,Supplies & Services
Leeds City Council,Children and Families,24/04/2018,"4,105.26",Templegate Tiny Tots,Early Help,Supplies & Services
Leeds City Council,Children and Families,18/04/2018,"2,439.84",Templegate Tiny Tots,Early Help,Supplies & Services
Leeds City Council,Children and Families,20/04/2018,"13,525.20",The Play Centre,Early Help,Supplies & Services
Leeds City Council,Children and Families,18/04/2018,"2,386.80",The Play Centre,Early Help,Supplies & Services
Leeds City Council,Children and Families,09/04/2018,"11,552.25",The Cardigan Centre,Youth and Skills,Supplies & Services
Leeds City Council,Children and Families,20/04/2018,"11,271.00",Woodside Methodist Pre-School,Early Help,Supplies & Services
Leeds City Council,Children and Families,18/04/2018,795.60,Woodside Methodist Pre-School,Early Help,Supplies & Services
Leeds City Council,Children and Families,27/04/2018,"28,333.33",Barca - Leeds,Targeted Services,Supplies & Services
Leeds City Council,Children and Families,04/04/2018,"15,750.00",Home-Start Leeds,Early Help,Supplies & Services
Leeds City Council,Children and Families,20/04/2018,"1,440.00",National Childbirth Trust,Early Help,Supplies & Services
Leeds City Council,Children and Families,06/04/2018,"40,006.00",Northpoint Wellbeing Limited,Early Help,Supplies & Services
Leeds City Council,Children and Families,13/04/2018,750.00,Shantona Womens Centre,Early Help,Supplies & Services
Leeds City Council,Children and Families,13/04/2018,"14,500.00",Shantona Womens Centre,Targeted Services,Supplies & Services
Leeds City Council,Children and Families,19/04/2018,"4,085.71",Catholic Care,Child Protection & LAC,Supplies & Services
Leeds City Council,Children and Families,25/04/2018,100.00,Barnardo Services Ltd,Child Protection & LAC,Supplies & Services
Leeds City Council,Children and Families,26/04/2018,210.00,Barnardos,Child Protection & LAC,Supplies & Services
Leeds City Council,Children and Families,26/04/2018,490.00,Barnardos,Child Protection & LAC,Supplies & Services
Leeds City Council,Children and Families,05/04/2018,832.00,Adolescent And Childrens Trust,Child Protection & LAC,Supplies & Services
Leeds City Council,Children and Families,05/04/2018,"1,664.00",Adolescent And Childrens Trust,Child Protection & LAC,Supplies & Services
Leeds City Council,Children and Families,05/04/2018,"2,660.00",Adolescent And Childrens Trust,Child Protection & LAC,Supplies & Services
Leeds City Council,Children and Families,05/04/2018,"2,660.00",Adolescent And Childrens Trust,Child Protection & LAC,Supplies & Services
Leeds City Council,Children and Families,05/04/2018,"2,660.00",Adolescent And Childrens Trust,Child Protection & LAC,Supplies & Services
Leeds City Council,Children and Families,05/04/2018,"2,660.00",Adolescent And Childrens Trust,Child Protection & LAC,Supplies & Services
Leeds City Council,Children and Families,12/04/2018,"2,945.00",Adolescent And Childrens Trust,Child Protection & LAC,Supplies & Services
Leeds City Council,Children and Families,12/04/2018,"2,945.00",Adolescent And Childrens Trust,Child Protection & LAC,Supplies & Services
Leeds City Council,Children and Families,12/04/2018,"2,945.00",Adolescent And Childrens Trust,Child Protection & LAC,Supplies & Services
Leeds City Council,Children and Families,12/04/2018,"2,945.00",Adolescent And Childrens Trust,Child Protection & LAC,Supplies & Services
Leeds City Council,Children and Families,06/04/2018,-436.80,Barnardos,Child Protection & LAC,Supplies & Services
Leeds City Council,Children and Families,06/04/2018,"3,385.20",Barnardos,Child Protection & LAC,Supplies & Services
Leeds City Council,Children and Families,06/04/2018,"3,046.68",Barnardos,Child Protection & LAC,Supplies & Services
Leeds City Council,Children and Families,06/04/2018,"3,046.68",Barnardos,Child Protection & LAC,Supplies & Services
Leeds City Council,Children and Families,06/04/2018,"3,385.20",Barnardos,Child Protection & LAC,Supplies & Services
Leeds City Council,Children and Families,06/04/2018,"2,900.71",Barnardos,Child Protection & LAC,Supplies & Services
Leeds City Council,Children and Families,06/04/2018,"2,435.71",Barnardos,Child Protection & LAC,Supplies & Services
Leeds City Council,Children and Families,06/04/2018,"3,385.20",Barnardos,Child Protection & LAC,Supplies & Services
Leeds City Council,Children and Families,06/04/2018,"4,134.78",Barnardos,Child Protection & LAC,Supplies & Services
Leeds City Council,Children and Families,06/04/2018,"3,385.20",Barnardos,Child Protection & LAC,Supplies & Services
Leeds City Council,Children and Families,06/04/2018,"3,472.00",Barnardos,Child Protection & LAC,Supplies & Services
Leeds City Council,Children and Families,06/04/2018,"3,244.46",Childrens Family Trust,Child Protection & LAC,Supplies & Services
Leeds City Council,Children and Families,06/04/2018,"3,244.46",Childrens Family Trust,Child Protection & LAC,Supplies & Services
Leeds City Council,Children and Families,06/04/2018,"3,244.46",Childrens Family Trust,Child Protection & LAC,Supplies & Services
Leeds City Council,Children and Families,05/04/2018,211.42,Childrens Family Trust,Child Protection & LAC,Supplies & Services
Leeds City Council,Children and Families,20/04/2018,"1,989.00",Asha Neighbourhood Project,Early Help,Supplies & Services
Leeds City Council,Children and Families,18/04/2018,"1,735.35",Asha Neighbourhood Project,Early Help,Supplies & Services
Leeds City Council,Children and Families,18/04/2018,"7,160.40",Abc Daycare And Ozone Out Of School,Early Help,Supplies & Services
Leeds City Council,Children and Families,20/04/2018,"19,567.00",Abc Daycare And Ozone Out Of School,Early Help,Supplies & Services
Leeds City Council,Children and Families,24/04/2018,"1,231.62",Bright Sparks Pre-School,Early Help,Supplies & Services
Leeds City Council,Children and Families,18/04/2018,"23,072.40",Burmantofts Community Nursery,Early Help,Supplies & Services
Leeds City Council,Children and Families,20/04/2018,"46,410.00",Burmantofts Community Nursery,Early Help,Supplies & Services
Leeds City Council,Children and Families,24/04/2018,615.81,Chapel Street Pre-School,Early Help,Supplies & Services
Leeds City Council,Children and Families,18/04/2018,"7,894.80",Chapeltown Community Nursery,Early Help,Supplies & Services
Leeds City Council,Children and Families,20/04/2018,"15,147.00",Chapeltown Community Nursery,Early Help,Supplies & Services
Leeds City Council,Children and Families,20/04/2018,"77,105.20",Calverley Village Day Nursery,Early Help,Supplies & Services
Leeds City Council,Children and Families,18/04/2018,"2,386.80",Churwell Cic,Early Help,Supplies & Services
Leeds City Council,Children and Families,20/04/2018,"27,183.00",Churwell Cic,Early Help,Supplies & Services
Leeds City Council,Children and Families,18/04/2018,"3,023.28",Ducklings Pre-School Learning Centre,Early Help,Supplies & Services
Leeds City Council,Children and Families,20/04/2018,"58,235.20",Ducklings Pre-School Learning Centre,Early Help,Supplies & Services
Leeds City Council,Children and Families,20/04/2018,"50,388.00",Faith Together In Leeds 11,Early Help,Supplies & Services
Leeds City Council,Children and Families,18/04/2018,"35,802.00",Faith Together In Leeds 11,Early Help,Supplies & Services
Leeds City Council,Children and Families,18/04/2018,"23,207.04",Ireland Wood Childrens Centre,Early Help,Supplies & Services
Leeds City Council,Children and Families,20/04/2018,"59,806.00",Ireland Wood Childrens Centre,Early Help,Supplies & Services
Leeds City Council,Children and Families,18/04/2018,"15,912.00",Kangaroo Kids Pre-School,Early Help,Supplies & Services
Leeds City Council,Children and Families,20/04/2018,"5,569.20",Kangaroo Kids Pre-School,Early Help,Supplies & Services
Leeds City Council,Children and Families,24/04/2018,615.81,Kangaroo Kids Pre-School,Early Help,Supplies & Services
Leeds City Council,Children and Families,18/04/2018,"21,440.40",Leeds Mencap Ltd,Early Help,Supplies & Services
Leeds City Council,Children and Families,20/04/2018,"45,084.00",Leeds Mencap Ltd,Early Help,Supplies & Services
Leeds City Council,Children and Families,18/04/2018,"3,182.40",North Leeds Community Nursery,Early Help,Supplies & Services
Leeds City Council,Children and Families,20/04/2018,"23,990.40",North Leeds Community Nursery,Early Help,Supplies & Services
Leeds City Council,Children and Families,18/04/2018,795.60,Shadwell Pre-School Playgroup,Early Help,Supplies & Services
Leeds City Council,Children and Families,20/04/2018,"49,283.00",Shadwell Pre-School Playgroup,Early Help,Supplies & Services
Leeds City Council,Children and Families,18/04/2018,"2,386.80",South Leeds Family Childcare,Early Help,Supplies & Services
Leeds City Council,Children and Families,20/04/2018,"19,227.00",South Leeds Family Childcare,Early Help,Supplies & Services
Leeds City Council,Children and Families,18/04/2018,"4,773.60",Sunbeams Ltd,Early Help,Supplies & Services
Leeds City Council,Children and Families,20/04/2018,"69,394.00",Sunbeams Ltd,Early Help,Supplies & Services
Leeds City Council,Children and Families,20/04/2018,"29,481.40",Templegate Tiny Tots,Early Help,Supplies & Services
Leeds City Council,Children and Families,18/04/2018,"37,393.20",The Salvation Army,Early Help,Supplies & Services
Leeds City Council,Children and Families,20/04/2018,"55,692.00",The Salvation Army,Early Help,Supplies & Services
Leeds City Council,Children and Families,18/04/2018,"3,023.28",Thorner Pre-School & Toddler Group,Early Help,Supplies & Services
Leeds City Council,Children and Families,20/04/2018,"22,276.80",Thorner Pre-School & Toddler Group,Early Help,Supplies & Services
Leeds City Council,Children and Families,27/04/2018,"9,457.25",Barca - Leeds,Youth and Skills,Supplies & Services
Leeds City Council,Children and Families,20/04/2018,"8,332.25",Gipsil,Youth and Skills,Supplies & Services
Leeds City Council,Children and Families,27/04/2018,"9,121.00",Health For All (Leeds) Ltd,Youth and Skills,Supplies & Services
Leeds City Council,Children and Families,06/04/2018,"3,887.50",Leeds Rugby Foundation,Youth and Skills,Supplies & Services
Leeds City Council,Children and Families,06/04/2018,"13,000.00",Path Yorkshire,Targeted Services,Supplies & Services
Leeds City Council,Children and Families,20/04/2018,500.00,Path Yorkshire,Targeted Services,Supplies & Services
Leeds City Council,Children and Families,13/04/2018,"2,700.00",Shantona Womens Centre,Youth and Skills,Supplies & Services
Leeds City Council,Children and Families,13/04/2018,300.00,The Cardigan Centre,Early Help,Supplies & Services
Leeds City Council,Children and Families,17/04/2018,366.69,The Cardigan Centre,Early Help,Supplies & Services
Leeds City Council,Children and Families,17/04/2018,91.67,The Cardigan Centre,Early Help,Supplies & Services
Leeds City Council,Children and Families,13/04/2018,194.25,The Cardigan Centre,Early Help,Supplies & Services
Leeds City Council,Children and Families,10/04/2018,275.01,The Cardigan Centre,Early Help,Supplies & Services
Leeds City Council,Children and Families,10/04/2018,225.00,The Cardigan Centre,Early Help,Supplies & Services
Leeds City Council,Children and Families,11/04/2018,275.01,The Cardigan Centre,Early Help,Supplies & Services
Leeds City Council,Children and Families,10/04/2018,91.67,The Cardigan Centre,Early Help,Supplies & Services
Leeds City Council,Children and Families,10/04/2018,75.00,The Cardigan Centre,Early Help,Supplies & Services
Leeds City Council,Children and Families,10/04/2018,225.00,The Cardigan Centre,Early Help,Supplies & Services
Leeds City Council,Children and Families,10/04/2018,183.34,The Cardigan Centre,Early Help,Supplies & Services
Leeds City Council,Children and Families,26/04/2018,"7,844.70",Barnardos,Child Protection & LAC,Supplies & Services
Leeds City Council,Children and Families,25/04/2018,143.13,Barnardos,Child Protection & LAC,Supplies & Services
Leeds City Council,Children and Families,19/04/2018,"1,280.00",The Sanctuary Project Limited,Child Protection & LAC,Supplies & Services
Leeds City Council,Children and Families,13/04/2018,216.59,Barnardos,Child Protection & LAC,Supplies & Services
Leeds City Council,Children and Families,13/04/2018,897.40,Barnardos,Child Protection & LAC,Supplies & Services
Leeds City Council,Children and Families,05/04/2018,"4,080.20",Bright Future Project,Child Protection & LAC,Supplies & Services
Leeds City Council,Children and Families,11/04/2018,384.00,Gipsil,Child Protection & LAC,Supplies & Services
Leeds City Council,Children and Families,12/04/2018,"2,784.00",The Sanctuary Project Limited,Child Protection & LAC,Supplies & Services
Leeds City Council,Children and Families,12/04/2018,"2,438.80",The Sanctuary Project Limited,Child Protection & LAC,Supplies & Services
Leeds City Council,Children and Families,12/04/2018,"2,398.00",The Sanctuary Project Limited,Child Protection & LAC,Supplies & Services
Leeds City Council,Children and Families,12/04/2018,"2,935.50",The Sanctuary Project Limited,Child Protection & LAC,Supplies & Services
Leeds City Council,Children and Families,13/04/2018,897.40,Barnardos,Child Protection & LAC,Supplies & Services
Leeds City Council,Children and Families,13/04/2018,897.40,Barnardos,Child Protection & LAC,Supplies & Services
Leeds City Council,Children and Families,13/04/2018,897.40,Barnardos,Child Protection & LAC,Supplies & Services
Leeds City Council,Children and Families,13/04/2018,897.40,Barnardos,Child Protection & LAC,Supplies & Services
Leeds City Council,Children and Families,13/04/2018,897.40,Barnardos,Child Protection & LAC,Supplies & Services
Leeds City Council,Children and Families,13/04/2018,897.40,Barnardos,Child Protection & LAC,Supplies & Services
Leeds City Council,Children and Families,13/04/2018,897.40,Barnardos,Child Protection & LAC,Supplies & Services
Leeds City Council,Children and Families,18/04/2018,"20,000.00",Barca - Leeds,Integrated Safeguarding Unit,Supplies & Services
Leeds City Council,Children and Families,20/04/2018,324.00,Brownberrie Lane Pre-School,Child Protection & LAC,Supplies & Services
Leeds City Council,Children and Families,13/04/2018,26.00,Bramley St Peters Pcc Halls Account,Child Protection & LAC,Supplies & Services
Leeds City Council,Children and Families,27/04/2018,60.00,The Sanctuary Project Limited,Child Protection & LAC,Supplies & Services
Leeds City Council,Children and Families,10/04/2018,60.00,The Sanctuary Project Limited,Child Protection & LAC,Supplies & Services
Leeds City Council,Children and Families,19/04/2018,60.00,The Sanctuary Project Limited,Child Protection & LAC,Supplies & Services
Leeds City Council,Children and Families,12/04/2018,60.00,The Sanctuary Project Limited,Child Protection & LAC,Supplies & Services
Leeds City Council,Children and Families,13/04/2018,"2,432.30",Pac-Uk,Child Protection & LAC,Supplies & Services
Leeds City Council,Children and Families,13/04/2018,"3,360.00",Think Like A Pony Cic,Child Protection & LAC,Supplies & Services
Leeds City Council,Children and Families,06/04/2018,89.58,Connect Housing Association Limited,Child Protection & LAC,Supplies & Services
Leeds City Council,Children and Families,27/04/2018,89.58,Connect Housing Association Limited,Child Protection & LAC,Supplies & Services
Leeds City Council,Children and Families,19/04/2018,89.58,Connect Housing Association Limited,Child Protection & LAC,Supplies & Services
Leeds City Council,Children and Families,13/04/2018,89.58,Connect Housing Association Limited,Child Protection & LAC,Supplies & Services
Leeds City Council,Children and Families,17/04/2018,591.00,Palm Cove Society,Child Protection & LAC,Supplies & Services
Leeds City Council,Children and Families,17/04/2018,"3,152.00",Palm Cove Society,Child Protection & LAC,Supplies & Services
Leeds City Council,Children and Families,13/04/2018,154.00,Milestones Day Nursery,Child Protection & LAC,Supplies & Services
Leeds City Council,Children and Families,13/04/2018,180.00,Shantona Womens Centre,Targeted Services,Supplies & Services
Leeds City Council,Children and Families,13/04/2018,519.12,Leeds Federated Housing Association,Child Protection & LAC,Supplies & Services
Leeds City Council,Children and Families,30/04/2018,495.00,Think Like A Pony Cic,Child Protection & LAC,Supplies & Services
Leeds City Council,Children and Families,17/04/2018,50.00,Outward Bound Trust Ltd,Child Protection & LAC,Supplies & Services
Leeds City Council,Children and Families,17/04/2018,50.00,Outward Bound Trust Ltd,Child Protection & LAC,Supplies & Services
Leeds City Council,Children and Families,17/04/2018,50.00,Outward Bound Trust Ltd,Child Protection & LAC,Supplies & Services
Leeds City Council,City Development,04/04/2018,100.00,Age Uk Leeds Enterprises,Regeneration,Supplies & Services
Leeds City Council,City Development,10/04/2018,50.00,Northern School Of Contemporary,Regeneration,Supplies & Services
Leeds City Council,City Development,09/04/2018,340.00,Vantage,Economic Policy and Programmes,Supplies & Services
Leeds City Council,City Development,19/04/2018,"5,000.00",Leeds Mind,Employment & Skills,Supplies & Services
Leeds City Council,City Development,27/04/2018,542.50,Open College Network Yhr,Employment & Skills,Supplies & Services
Leeds City Council,City Development,26/04/2018,50.00,Open College Network Yhr,Employment & Skills,Supplies & Services
Leeds City Council,City Development,06/04/2018,"5,000.00",Ahead Partnership Ltd,Employment & Skills,Supplies & Services
Leeds City Council,City Development,20/04/2018,"5,000.00",Ahead Partnership Ltd,Employment & Skills,Supplies & Services
Leeds City Council,City Development,06/04/2018,"1,500.00",Learning Partnerships,Employment & Skills,Supplies & Services
Leeds City Council,City Development,06/04/2018,"2,100.00",Leeds Mind,Employment & Skills,Supplies & Services
Leeds City Council,City Development,06/04/2018,"19,666.88",Path Yorkshire,Employment & Skills,Supplies & Services
Leeds City Council,City Development,13/04/2018,25.00,St Annes Community Services,Employment & Skills,Supplies & Services
Leeds City Council,City Development,06/04/2018,"1,826.98",City Of Leeds Ymca,Employment & Skills,Supplies & Services
Leeds City Council,City Development,05/04/2018,720.00,Nari Ekta Ltd,Employment & Skills,Supplies & Services
Leeds City Council,City Development,13/04/2018,"47,040.00",Nari Ekta Ltd,Employment & Skills,Supplies & Services
Leeds City Council,City Development,27/04/2018,"1,800.00",Pre-School Learning Alliance,Employment & Skills,Supplies & Services
Leeds City Council,City Development,12/04/2018,"13,440.00",Royal Mencap Society,Employment & Skills,Supplies & Services
Leeds City Council,City Development,12/04/2018,"1,047.48",Royal Mencap Society,Employment & Skills,Supplies & Services
Leeds City Council,City Development,10/04/2018,"2,584.18",St Annes Community Services,Employment & Skills,Supplies & Services
Leeds City Council,City Development,13/04/2018,"1,860.00",St Annes Community Services,Employment & Skills,Supplies & Services
Leeds City Council,City Development,25/04/2018,"5,000.00",Swarthmore Education Centre,Employment & Skills,Supplies & Services
Leeds City Council,City Development,17/04/2018,"1,000.00",The Cardigan Centre,Employment & Skills,Supplies & Services
Leeds City Council,City Development,06/04/2018,595.44,The Conservation Volunteers,Employment & Skills,Supplies & Services
Leeds City Council,City Development,04/04/2018,625.00,The Conservation Volunteers,Employment & Skills,Supplies & Services
Leeds City Council,City Development,06/04/2018,"3,505.67",Vera Media Ltd,Employment & Skills,Supplies & Services
Leeds City Council,City Development,24/04/2018,"14,638.00",Sustrans Ltd,Transport Planning,Supplies & Services
Leeds City Council,City Development,13/04/2018,503.60,Lumen,Arts And Venues,Supplies & Services
Leeds City Council,City Development,26/04/2018,"6,300.00",Courthouse Project (Otley) Ltd,Arts And Venues,Supplies & Services
Leeds City Council,City Development,18/04/2018,"2,500.00",Courthouse Project (Otley) Ltd,Culture and Sport Development,Supplies & Services
Leeds City Council,City Development,11/04/2018,"4,000.00",Geraldine Connor Foundation,Arts And Venues,Supplies & Services
Leeds City Council,City Development,11/04/2018,"10,800.00",Interplay Theatre Trust,Arts And Venues,Supplies & Services
Leeds City Council,City Development,11/04/2018,"3,600.00",Leeds Irish Arts Foundation,Arts And Venues,Supplies & Services
Leeds City Council,City Development,16/04/2018,"7,500.00",Pyramid Of Arts,Arts And Venues,Supplies & Services
Leeds City Council,City Development,11/04/2018,"10,687.50",Rjc Productions Ltd,Arts And Venues,Supplies & Services
Leeds City Council,City Development,11/04/2018,"14,107.50",South Asian Arts-Uk,Arts And Venues,Supplies & Services
Leeds City Council,City Development,11/04/2018,"6,300.00",Space2 Leeds,Arts And Venues,Supplies & Services
Leeds City Council,City Development,11/04/2018,"3,600.00",Tutti Frutti Productions,Arts And Venues,Supplies & Services
Leeds City Council,City Development,03/04/2018,"1,000.00",Morley Literature Festival,Culture and Sport Development,Supplies & Services
Leeds City Council,City Development,04/04/2018,"8,000.00",Space2 Leeds,Culture and Sport Development,Supplies & Services
Leeds City Council,City Development,11/04/2018,"180,000.00",Northern Ballet Theatre Limited,Arts And Venues,Supplies & Services
Leeds City Council,City Development,11/04/2018,"418,500.00",Opera North Ltd,Arts And Venues,Supplies & Services
Leeds City Council,City Development,11/04/2018,"55,575.00",Phoenix Dance Theatre,Arts And Venues,Supplies & Services
Leeds City Council,City Development,11/04/2018,"529,798.50",West Yorkshire Playhouse,Arts And Venues,Supplies & Services
Leeds City Council,City Development,27/04/2018,90.00,Henry Moore Institute,Heritage Services,Supplies & Services
Leeds City Council,City Development,18/04/2018,250.00,West Park Leeds Rufc Ltd,Culture and Sport Development,Supplies & Services
Leeds City Council,City Development,27/04/2018,75.00,Black Health Initiative,Arts And Venues,Supplies & Services
Leeds City Council,City Development,06/04/2018,275.00,Dj School Leeds Cic,Heritage Services,Supplies & Services
Leeds City Council,City Development,27/04/2018,"1,344.00",Henry Moore Institute,Heritage Services,Supplies & Services
Leeds City Council,City Development,17/04/2018,50.00,Lsdbp,Arts And Venues,Supplies & Services
Leeds City Council,City Development,13/04/2018,650.00,Leeds Minster Church,Arts And Venues,Supplies & Services
Leeds City Council,City Development,17/04/2018,"1,050.00",Leeds United Foundation,Culture and Sport Development,Supplies & Services
Leeds City Council,City Development,19/04/2018,"7,500.00",Opera North Ltd,Arts And Venues,Supplies & Services
Leeds City Council,City Development,18/04/2018,"7,000.00",Opera North Ltd,Arts And Venues,Supplies & Services
Leeds City Council,City Development,27/04/2018,"1,500.00",The Lowry Centre Trust,Arts And Venues,Supplies & Services
Leeds City Council,City Development,13/04/2018,300.00,Voluntary Action-Leeds,Arts And Venues,Supplies & Services
Leeds City Council,City Development,06/04/2018,"8,250.00",West Yorkshire Playhouse,Arts And Venues,Supplies & Services
Leeds City Council,City Development,26/04/2018,38.00,Health For All (Leeds) Ltd,Heritage Services,Supplies & Services
Leeds City Council,City Development,30/04/2018,"-5,017.00",Leeds Civic Arts Guild,Arts And Venues,Supplies & Services
Leeds City Council,City Development,12/04/2018,-740.00,Leeds Civic Arts Guild,Arts And Venues,Supplies & Services
Leeds City Council,City Development,19/04/2018,"-3,000.00",Opera North Ltd,Arts And Venues,Supplies & Services
Leeds City Council,City Development,04/04/2018,"2,442.81",Leeds Civic Arts Guild,Arts And Venues,Supplies & Services
Leeds City Council,City Development,30/04/2018,-504.00,Leeds Civic Arts Guild,Arts And Venues,Supplies & Services
Leeds City Council,City Development,12/04/2018,-118.13,Leeds Civic Arts Guild,Arts And Venues,Supplies & Services
Leeds City Council,City Development,19/04/2018,"-2,314.45",Opera North Ltd,Arts And Venues,Supplies & Services
Leeds City Council,City Development,03/04/2018,-254.83,Leeds Chinese Community Association Ltd,Arts And Venues,Supplies & Services
Leeds City Council,City Development,30/04/2018,"12,095.98",Leeds Civic Arts Guild,Arts And Venues,Supplies & Services
Leeds City Council,City Development,12/04/2018,"2,835.19",Leeds Civic Arts Guild,Arts And Venues,Supplies & Services
Leeds City Council,City Development,27/04/2018,66.00,Leeds Symphony Orchestra,Arts And Venues,Supplies & Services
Leeds City Council,City Development,19/04/2018,"10,824.53",Opera North Ltd,Arts And Venues,Supplies & Services
Leeds City Council,City Development,23/04/2018,119.17,St Peters Singers,Arts And Venues,Supplies & Services
Leeds City Council,City Development,03/04/2018,"3,058.00",Leeds Chinese Community Association Ltd,Arts And Venues,Supplies & Services
Leeds City Council,City Development,03/04/2018,"-1,807.50",Leeds Chinese Community Association Ltd,Arts And Venues,Supplies & Services
Leeds City Council,City Development,19/04/2018,-500.00,Opera North Ltd,Arts And Venues,Supplies & Services
Leeds City Council,City Development,03/04/2018,-75.00,Leeds Chinese Community Association Ltd,Arts And Venues,Supplies & Services
Leeds City Council,City Development,30/04/2018,-274.41,Leeds Civic Arts Guild,Arts And Venues,Supplies & Services
Leeds City Council,City Development,12/04/2018,-67.79,Leeds Civic Arts Guild,Arts And Venues,Supplies & Services
Leeds City Council,City Development,19/04/2018,-432.98,Opera North Ltd,Arts And Venues,Supplies & Services
Leeds City Council,City Development,17/04/2018,105.00,Rtpi Yorkshire,Policy and Plans,Supplies & Services
Leeds City Council,City Development,20/04/2018,319.00,British Gymnastic Association,Sport And Active Recreation,Supplies & Services
Leeds City Council,City Development,19/04/2018,130.95,Royal Yachting Association,Sport And Active Recreation,Supplies & Services
Leeds City Council,City Development,19/04/2018,600.00,British Orienteering Federation,Sport And Active Recreation,Supplies & Services
Leeds City Council,City Development,11/04/2018,"9,700.00",Leeds Sports Federation,Sport And Active Recreation,Supplies & Services
Leeds City Council,City Development,30/04/2018,330.00,Kirklees Active Leisure Trust,Sport And Active Recreation,Supplies & Services
Leeds City Council,City Development,27/04/2018,160.00,England Athletics Limited,Sport And Active Recreation,Supplies & Services
Leeds City Council,City Development,06/04/2018,300.00,Health For All (Leeds) Ltd,Sport And Active Recreation,Supplies & Services
Leeds City Council,City Development,06/04/2018,50.00,Health For All (Leeds) Ltd,Sport And Active Recreation,Supplies & Services
Leeds City Council,City Development,20/04/2018,330.00,Kirklees Active Leisure Trust,Sport And Active Recreation,Supplies & Services
Leeds City Council,City Development,27/04/2018,300.00,Leeds Rugby Foundation,Sport And Active Recreation,Supplies & Services
Leeds City Council,City Development,05/04/2018,240.00,Middleton Park Equestrian Centre,Sport And Active Recreation,Supplies & Services
Leeds City Council,City Development,27/04/2018,450.00,St Aidans Church Hall,Sport And Active Recreation,Supplies & Services
Leeds City Council,City Development,27/04/2018,138.00,Trinity Methodist Church,Sport And Active Recreation,Supplies & Services
Leeds City Council,City Development,18/04/2018,"1,800.00",Yorkshire Dance,Sport And Active Recreation,Supplies & Services
Leeds City Council,City Development,19/04/2018,"8,250.00",Yorkshire Sport Foundation,Sport And Active Recreation,Supplies & Services
Leeds City Council,City Development,27/04/2018,"11,449.00",Yorkshire Sport Foundation,Sport And Active Recreation,Supplies & Services
Leeds City Council,Communities and Environment,19/04/2018,115.00,Slate Cafe And Furniture Store,Social Fund,Supplies & Services
Leeds City Council,Communities and Environment,27/04/2018,"60,066.00",Chapeltown Cab,Social Fund,Supplies & Services
Leeds City Council,Communities and Environment,25/04/2018,"1,470.00",Emmaus Leeds,Social Fund,Supplies & Services
Leeds City Council,Communities and Environment,13/04/2018,400.00,Emmaus Leeds,Social Fund,Supplies & Services
Leeds City Council,Communities and Environment,04/04/2018,300.00,Emmaus Leeds,Social Fund,Supplies & Services
Leeds City Council,Communities and Environment,30/04/2018,90.00,Slate Cafe And Furniture Store,Social Fund,Supplies & Services
Leeds City Council,Communities and Environment,30/04/2018,115.00,Slate Cafe And Furniture Store,Social Fund,Supplies & Services
Leeds City Council,Communities and Environment,18/04/2018,115.00,Slate Cafe And Furniture Store,Social Fund,Supplies & Services
Leeds City Council,Communities and Environment,18/04/2018,80.00,Slate Cafe And Furniture Store,Social Fund,Supplies & Services
Leeds City Council,Communities and Environment,18/04/2018,115.00,Slate Cafe And Furniture Store,Social Fund,Supplies & Services
Leeds City Council,Communities and Environment,18/04/2018,115.00,Slate Cafe And Furniture Store,Social Fund,Supplies & Services
Leeds City Council,Communities and Environment,18/04/2018,115.00,Slate Cafe And Furniture Store,Social Fund,Supplies & Services
Leeds City Council,Communities and Environment,06/04/2018,115.00,Slate Cafe And Furniture Store,Social Fund,Supplies & Services
Leeds City Council,Communities and Environment,04/04/2018,500.00,Sydney Bridge Project,Social Fund,Supplies & Services
Leeds City Council,Communities and Environment,06/04/2018,160.00,Sydney Bridge Project,Social Fund,Supplies & Services
Leeds City Council,Communities and Environment,06/04/2018,160.00,Sydney Bridge Project,Social Fund,Supplies & Services
Leeds City Council,Communities and Environment,06/04/2018,160.00,Sydney Bridge Project,Social Fund,Supplies & Services
Leeds City Council,Communities and Environment,20/04/2018,160.00,Sydney Bridge Project,Social Fund,Supplies & Services
Leeds City Council,Communities and Environment,20/04/2018,160.00,Sydney Bridge Project,Social Fund,Supplies & Services
Leeds City Council,Communities and Environment,20/04/2018,160.00,Sydney Bridge Project,Social Fund,Supplies & Services
Leeds City Council,Communities and Environment,23/04/2018,"7,000.00",Bramley Pcc,,Supplies & Services
Leeds City Council,Communities and Environment,05/04/2018,"1,350.00",Hollin Lane Allotment Association,,Supplies & Services
Leeds City Council,Communities and Environment,19/04/2018,"1,500.00",The Leeds Groundwork Trust,,Supplies & Services
Leeds City Council,Communities and Environment,06/04/2018,370.00,Leodis Community Project,Well being Fund,Supplies & Services
Leeds City Council,Communities and Environment,06/04/2018,300.00,South Seacroft Friends & Neighbours,Well being Fund,Supplies & Services
Leeds City Council,Communities and Environment,13/04/2018,"2,574.00",Ebor Gardens Advice Centre,Well being Fund,Supplies & Services
Leeds City Council,Communities and Environment,13/04/2018,"2,574.00",Ebor Gardens Advice Centre,Well being Fund,Supplies & Services
Leeds City Council,Communities and Environment,26/04/2018,"1,683.11",Meanwood Junior Playscheme,Well being Fund,Supplies & Services
Leeds City Council,Communities and Environment,27/04/2018,"3,325.00",Right Choices,Well being Fund,Supplies & Services
Leeds City Council,Communities and Environment,13/04/2018,"2,000.00",Alwoodley Park Methodist Church,Well being Fund,Supplies & Services
Leeds City Council,Communities and Environment,27/04/2018,"1,500.00",Behno Group (Sisters),Well being Fund,Supplies & Services
Leeds City Council,Communities and Environment,11/04/2018,"2,000.00",Cranmer Call Tenants And Residents,Well being Fund,Supplies & Services
Leeds City Council,Communities and Environment,27/04/2018,367.00,Dazl,Well being Fund,Supplies & Services
Leeds City Council,Communities and Environment,27/04/2018,"1,350.00",Dazl,Well being Fund,Supplies & Services
Leeds City Council,Communities and Environment,27/04/2018,"4,135.75",Dazl,Well being Fund,Supplies & Services
Leeds City Council,Communities and Environment,27/04/2018,"3,340.00",Dazl,Well being Fund,Supplies & Services
Leeds City Council,Communities and Environment,11/04/2018,"5,673.25",Dazl,Well being Fund,Supplies & Services
Leeds City Council,Communities and Environment,13/04/2018,450.00,Dazl,Well being Fund,Supplies & Services
Leeds City Council,Communities and Environment,27/04/2018,939.20,Dj School Leeds Cic,Well being Fund,Supplies & Services
Leeds City Council,Communities and Environment,27/04/2018,946.20,Dj School Leeds Cic,Well being Fund,Supplies & Services
Leeds City Council,Communities and Environment,27/04/2018,"2,574.00",Ebor Gardens Advice Centre,Well being Fund,Supplies & Services
Leeds City Council,Communities and Environment,09/04/2018,858.00,Ebor Gardens Advice Centre,Well being Fund,Supplies & Services
Leeds City Council,Communities and Environment,26/04/2018,"2,524.80",Hunslet Festival,Well being Fund,Supplies & Services
Leeds City Council,Communities and Environment,04/04/2018,"1,100.00",Halton In Bloom,Well being Fund,Supplies & Services
Leeds City Council,Communities and Environment,26/04/2018,"2,100.00",Headingley Litfest,Well being Fund,Supplies & Services
Leeds City Council,Communities and Environment,04/04/2018,846.90,Kirkstall In Bloom,Well being Fund,Supplies & Services
Leeds City Council,Communities and Environment,13/04/2018,"7,200.00",Ls14 Trust,Well being Fund,Supplies & Services
Leeds City Council,Communities and Environment,06/04/2018,650.00,Lidgett Lane Allotment Association,Well being Fund,Supplies & Services
Leeds City Council,Communities and Environment,27/04/2018,"1,520.09",Love Pudsey,Well being Fund,Supplies & Services
Leeds City Council,Communities and Environment,09/04/2018,"2,000.00",Moor Allerton Elderly Care,Well being Fund,Supplies & Services
Leeds City Council,Communities and Environment,20/04/2018,"8,296.00",Morley Town Centre Management Board,Well being Fund,Supplies & Services
Leeds City Council,Communities and Environment,27/04/2018,"4,000.00",New Wortley Community Association Ltd,Well being Fund,Supplies & Services
Leeds City Council,Communities and Environment,26/04/2018,"1,934.26",Project Hope Leeds,Well being Fund,Supplies & Services
Leeds City Council,Communities and Environment,20/04/2018,140.00,St Chads Parish Centre,Well being Fund,Supplies & Services
Leeds City Council,Communities and Environment,06/04/2018,"1,500.00",St Vincents Support Centre,Well being Fund,Supplies & Services
Leeds City Council,Communities and Environment,19/04/2018,"2,940.00",Street Work Soccer Academy Ltd,Well being Fund,Supplies & Services
Leeds City Council,Communities and Environment,19/04/2018,"3,000.00",Street Work Soccer Academy Ltd,Well being Fund,Supplies & Services
Leeds City Council,Communities and Environment,13/04/2018,77.00,Swinnow Community Centre,Well being Fund,Supplies & Services
Leeds City Council,Communities and Environment,09/04/2018,"2,415.00",The Cardigan Centre,Well being Fund,Supplies & Services
Leeds City Council,Communities and Environment,13/04/2018,"1,849.29",The Conservation Volunteers,Well being Fund,Supplies & Services
Leeds City Council,Communities and Environment,13/04/2018,"1,232.86",The Conservation Volunteers,Well being Fund,Supplies & Services
Leeds City Council,Communities and Environment,27/04/2018,"1,031.53",The Conservation Volunteers,Well being Fund,Supplies & Services
Leeds City Council,Communities and Environment,27/04/2018,688.47,The Conservation Volunteers,Well being Fund,Supplies & Services
Leeds City Council,Communities and Environment,27/04/2018,96.00,Woodsley Road Community Centre,Well being Fund,Supplies & Services
Leeds City Council,Communities and Environment,04/04/2018,950.00,Woodkirk Valley Fc,Well being Fund,Supplies & Services
Leeds City Council,Communities and Environment,03/04/2018,200.00,Zest Health For Life,Well being Fund,Supplies & Services
Leeds City Council,Communities and Environment,12/04/2018,367.50,Bahar Afg Womens Association,Communities,Supplies & Services
Leeds City Council,Communities and Environment,17/04/2018,50.00,Leeds Beckett University Students Union,Communities,Supplies & Services
Leeds City Council,Communities and Environment,25/04/2018,50.00,Leeds Swahili Cultural Community,Communities,Supplies & Services
Leeds City Council,Communities and Environment,25/04/2018,161.95,Syrian Community Of Leeds,Communities,Supplies & Services
Leeds City Council,Communities and Environment,06/04/2018,600.00,Touchstone - Leeds,Communities,Supplies & Services
Leeds City Council,Communities and Environment,10/04/2018,"5,000.00",Holbeck Elderly Aid,Community Centres,Supplies & Services
Leeds City Council,Communities and Environment,06/04/2018,"4,935.00",Health For All (Leeds) Ltd,Communities,Supplies & Services
Leeds City Council,Communities and Environment,20/04/2018,"5,000.00",Voluntary Action-Leeds,Communities,Supplies & Services
Leeds City Council,Communities and Environment,10/04/2018,"1,347.12",Leeds Womens Aid,Community Safety Fund,Supplies & Services
Leeds City Council,Communities and Environment,12/04/2018,"1,158.10",Cards For Good Causes Ltd,Face to Face,Supplies & Services
Leeds City Council,Communities and Environment,12/04/2018,"4,301.80",Cards For Good Causes Ltd,Face to Face,Supplies & Services
Leeds City Council,Communities and Environment,06/04/2018,37.20,Gledhow Conservation Area Group,Library and Information Service,Supplies & Services
Leeds City Council,Communities and Environment,27/04/2018,33.33,Leeds Theatre Trust Ltd,Library and Information Service,Supplies & Services
Leeds City Council,Communities and Environment,25/04/2018,93.60,Lsdbp,Central Interpreting & Translation Unit,Supplies & Services
Leeds City Council,Communities and Environment,30/04/2018,45.00,Lsdbp,Central Interpreting & Translation Unit,Supplies & Services
Leeds City Council,Communities and Environment,30/04/2018,90.00,Lsdbp,Central Interpreting & Translation Unit,Supplies & Services
Leeds City Council,Communities and Environment,30/04/2018,91.35,Lsdbp,Central Interpreting & Translation Unit,Supplies & Services
Leeds City Council,Communities and Environment,05/04/2018,91.80,Lsdbp,Central Interpreting & Translation Unit,Supplies & Services
Leeds City Council,Communities and Environment,04/04/2018,270.00,Lsdbp,Central Interpreting & Translation Unit,Supplies & Services
Leeds City Council,Communities and Environment,13/04/2018,93.60,Lsdbp,Central Interpreting & Translation Unit,Supplies & Services
Leeds City Council,Communities and Environment,05/04/2018,181.35,Lsdbp,Central Interpreting & Translation Unit,Supplies & Services
Leeds City Council,Communities and Environment,05/04/2018,90.00,Lsdbp,Central Interpreting & Translation Unit,Supplies & Services
Leeds City Council,Communities and Environment,13/04/2018,80.00,Opera North Ltd,Library and Information Service,Supplies & Services
Leeds City Council,Communities and Environment,09/04/2018,"1,617.00",Ebor Gardens Advice Centre,Face to Face,Supplies & Services
Leeds City Council,Communities and Environment,20/04/2018,864.00,West Leeds Arlfc,,Supplies & Services
Leeds City Council,Communities and Environment,18/04/2018,36.00,Cremation Society Of Great Britain,Trading and Operational Services,Supplies & Services
Leeds City Council,Communities and Environment,05/04/2018,847.00,Biaza,Parks Operations,Supplies & Services
Leeds City Council,Communities and Environment,20/04/2018,"1,650.00",Keep Britain Tidy,Parks Operations,Supplies & Services
Leeds City Council,Communities and Environment,26/04/2018,"1,000.00",Gledhow Valley Allotment Association,Trading and Operational Services,Supplies & Services
Leeds City Council,Communities and Environment,26/04/2018,959.62,Roundhay Allotments And Gardens Ass,Trading and Operational Services,Supplies & Services
Leeds City Council,Communities and Environment,23/04/2018,175.00,South Leeds Life Group,Waste Strategy,Supplies & Services
Leeds City Council,Communities and Environment,25/04/2018,"1,115.12",Emmaus Leeds,Waste Strategy,Supplies & Services
Leeds City Council,Communities and Environment,25/04/2018,871.99,Leeds & Moortown Furniture Store,Waste Strategy,Supplies & Services
Leeds City Council,Communities and Environment,25/04/2018,733.75,South Leeds Alternative Trading,Waste Strategy,Supplies & Services
Leeds City Council,Communities and Environment,25/04/2018,631.07,St Judes Furniture Store,Waste Strategy,Supplies & Services
Leeds City Council,Communities and Environment,25/04/2018,716.53,St Lukes Cares,Waste Strategy,Supplies & Services
Leeds City Council,Communities and Environment,25/04/2018,100.82,Sydney Bridge Project,Waste Strategy,Supplies & Services
Leeds City Council,Communities and Environment,20/04/2018,60.00,Trustees Of The Lancasterian School Room,Waste Strategy,Supplies & Services
Leeds City Council,Resources and Housing,19/04/2018,379.56,Leeds Alternative Travel,Passengers,Supplies & Services
Leeds City Council,Resources and Housing,13/04/2018,60.00,Church In Rodley,Civic & Member Support,Supplies & Services
Leeds City Council,Resources and Housing,09/04/2018,90.00,Crossgates Methodist Church,Civic & Member Support,Supplies & Services
Leeds City Council,Resources and Housing,27/04/2018,36.00,Trustees Of Wetherby Town Hall,Civic & Member Support,Supplies & Services
Leeds City Council,Resources and Housing,27/04/2018,18.00,Giving.Com Ltd T/A Justgiving,Civic & Member Support,Supplies & Services
Leeds City Council,Resources and Housing,06/04/2018,155.00,Cipfa,Financial Management,Supplies & Services
Leeds City Council,Resources and Housing,06/04/2018,"539,334.00",St Georges Crypt,,Supplies & Services
Leeds City Council,Resources and Housing,06/04/2018,"103,500.00",Habinteg,,Supplies & Services
Leeds City Council,Resources and Housing,24/04/2018,"11,436.20",Care & Repair Leeds,,Supplies & Services
Leeds City Council,Resources and Housing,24/04/2018,"1,300.00",Care & Repair Leeds,,Supplies & Services
Leeds City Council,Resources and Housing,13/04/2018,"1,171.82",Care & Repair Leeds,,Supplies & Services
Leeds City Council,Resources and Housing,13/04/2018,"2,263.02",Care & Repair Leeds,,Supplies & Services
Leeds City Council,Resources and Housing,11/04/2018,"3,943.60",Care & Repair Leeds,,Supplies & Services
Leeds City Council,Resources and Housing,10/04/2018,435.00,Royal Society For The Prevention,Human Resources,Supplies & Services
Leeds City Council,Resources and Housing,17/04/2018,90.00,Seagulls Re-Use Ltd,,Supplies & Services
Leeds City Council,Resources and Housing,17/04/2018,85.00,Seagulls Re-Use Ltd,,Supplies & Services
Leeds City Council,Resources and Housing,13/04/2018,"3,350.00",Chippendale Builders Ltd,Property Maintenance,Supplies & Services
Leeds City Council,Resources and Housing,04/04/2018,355.00,Legal Action Group,Legal Services,Supplies & Services
Leeds City Council,Resources and Housing,20/04/2018,280.00,British Association Of Teachers,BSC,Supplies & Services
Leeds City Council,Resources and Housing,30/04/2018,-219.25,Gipsil,BSC,Supplies & Services
Leeds City Council,Resources and Housing,30/04/2018,-477.00,Gipsil,BSC,Supplies & Services
Leeds City Council,Resources and Housing,25/04/2018,"-2,419.09",Nas Services Limited,BSC,Supplies & Services
Leeds City Council,Resources and Housing,25/04/2018,"-5,427.04",Nas Services Limited,BSC,Supplies & Services
Leeds City Council,Resources and Housing,27/04/2018,"1,388.19",Cgl,Supporting People,Supplies & Services
Leeds City Council,Resources and Housing,24/04/2018,"5,000.00",Care & Repair Leeds,Sustainable Energy & Climate Change,Supplies & Services
Leeds City Council,Resources and Housing,17/04/2018,"25,000.00",Leeds Womens Aid,Supporting People,Supplies & Services
Leeds City Council,Resources and Housing,20/04/2018,229.98,Anchor Trust,Supporting People,Supplies & Services
Leeds City Council,Resources and Housing,20/04/2018,977.83,Connect Housing Association Limited,Supporting People,Supplies & Services
Leeds City Council,Resources and Housing,27/04/2018,"10,378.75",Developing Initiatives For Support In,Grid 11 - DIP,Supplies & Services
Leeds City Council,Resources and Housing,12/04/2018,"117,432.00",Gipsil,Supporting People,Supplies & Services
Leeds City Council,Resources and Housing,12/04/2018,"352,755.00",Gipsil,Supporting People,Supplies & Services
Leeds City Council,Resources and Housing,12/04/2018,"927,937.50",Gipsil,Supporting People,Supplies & Services
Leeds City Council,Resources and Housing,12/04/2018,"70,291.50",Gipsil,Supporting People,Supplies & Services
Leeds City Council,Resources and Housing,12/04/2018,"38,000.00",Gipsil,Supporting People,Supplies & Services
Leeds City Council,Resources and Housing,20/04/2018,276.53,Habinteg,Supporting People,Supplies & Services
Leeds City Council,Resources and Housing,20/04/2018,239.73,Headrow Housing Group,Supporting People,Supplies & Services
Leeds City Council,Resources and Housing,20/04/2018,406.90,Leeds Jewish Housing Association Limited,Supporting People,Supplies & Services
Leeds City Council,Resources and Housing,20/04/2018,99.23,Mha Care Group/Methodist Homes Ha,Supporting People,Supplies & Services
Leeds City Council,Resources and Housing,13/04/2018,"279,895.02",Turning Lives Around (Tla),Supporting People,Supplies & Services
Leeds City Council,Resources and Housing,13/04/2018,"30,556.25",Turning Lives Around (Tla),Supporting People,Supplies & Services
Leeds City Council,Resources and Housing,13/04/2018,"43,803.25",Turning Lives Around (Tla),Supporting People,Supplies & Services
Leeds City Council,Resources and Housing,20/04/2018,126.17,Yorkshire Housing Ltd,Supporting People,Supplies & Services
Leeds City Council,Resources and Housing,27/04/2018,"6,464.04",St Georges Crypt,Supporting People,Supplies & Services
Leeds City Council,Resources and Housing,23/04/2018,"3,562.50",Barnardos,Housing Support,Supplies & Services
Leeds City Council,Resources and Housing,18/04/2018,"2,340.00",Care & Repair Leeds,,Supplies & Services
Leeds City Council,Resources and Housing,18/04/2018,"1,560.00",Care & Repair Leeds,,Supplies & Services
Leeds City Council,Resources and Housing,03/04/2018,"5,766.72",Care & Repair Leeds,,Supplies & Services
Leeds City Council,Resources and Housing,03/04/2018,"17,567.80",Care & Repair Leeds,,Supplies & Services
Leeds City Council,Resources and Housing,27/04/2018,"10,000.00",Leeds Theatre Trust Ltd,Corporate Support,Supplies & Services
Leeds City Council,Strategic Accounts,03/04/2018,"-2,998.59",Kippax North Primary School,,Supplies & Services
Leeds City Council,Strategic Accounts,12/04/2018,300.00,Pudsey Flower Club,Miscellaneous,Supplies & Services
Leeds City Council,Strategic Accounts,24/04/2018,466.00,St Gemmas Hospice,Strategic,Supplies & Services
Leeds City Council,Strategic Landlord,25/04/2018,162.00,Lsdbp,Neighbourhood Services,Supplies & Services
Leeds City Council,Strategic Landlord,19/04/2018,324.00,Lsdbp,Neighbourhood Services,Supplies & Services
Leeds City Council,Strategic Landlord,19/04/2018,202.50,Lsdbp,Neighbourhood Services,Supplies & Services
Leeds City Council,Strategic Landlord,19/04/2018,121.50,Lsdbp,Neighbourhood Services,Supplies & Services
Leeds City Council,Strategic Landlord,19/04/2018,162.00,Lsdbp,Neighbourhood Services,Supplies & Services
Leeds City Council,Strategic Landlord,19/04/2018,162.00,Lsdbp,Neighbourhood Services,Supplies & Services
Leeds City Council,Strategic Landlord,19/04/2018,162.00,Lsdbp,Neighbourhood Services,Supplies & Services
Leeds City Council,Strategic Landlord,19/04/2018,162.00,Lsdbp,Neighbourhood Services,Supplies & Services
Leeds City Council,Strategic Landlord,19/04/2018,162.00,Lsdbp,Neighbourhood Services,Supplies & Services
Leeds City Council,Strategic Landlord,19/04/2018,202.50,Lsdbp,Neighbourhood Services,Supplies & Services
Leeds City Council,Strategic Landlord,19/04/2018,162.00,Lsdbp,Neighbourhood Services,Supplies & Services
Leeds City Council,Strategic Landlord,19/04/2018,202.50,Lsdbp,Neighbourhood Services,Supplies & Services
Leeds City Council,Strategic Landlord,13/04/2018,75.00,Health For All (Leeds) Ltd,Inner South,Supplies & Services
Leeds City Council,Strategic Landlord,27/04/2018,600.00,Voluntary Action-Leeds,Neighbourhood Services,Supplies & Services
Leeds City Council,Strategic Landlord,24/04/2018,150.00,Burnsall Court Tenants Group,Central,Supplies & Services
Leeds City Council,Strategic Landlord,25/04/2018,"6,856.00",Caribbean Cricket Club,Central,Supplies & Services
Leeds City Council,Strategic Landlord,11/04/2018,400.00,John O'Gaunts Tenants & Residents,Neighbourhood Services,Supplies & Services
Leeds City Council,Strategic Landlord,11/04/2018,100.00,Pembroke Community Group,Neighbourhood Services,Supplies & Services
Leeds City Council,Strategic Landlord,16/04/2018,255.00,Queenswood Tenants & Residents Assoc,Neighbourhood Services,Supplies & Services
Leeds City Council,Strategic Landlord,25/04/2018,900.00,Royal Society Of St George,Central,Supplies & Services
Leeds City Council,Strategic Landlord,11/04/2018,100.00,Spring Close Gardens Tara,Neighbourhood Services,Supplies & Services
Leeds City Council,Strategic Landlord,11/04/2018,100.00,Spring Close Gardens Tara,Neighbourhood Services,Supplies & Services
Leeds City Council,Strategic Landlord,20/04/2018,900.00,Zest Health For Life,Central,Supplies & Services
Leeds City Council,Strategic Landlord,05/04/2018,450.00,Glenthorpe & Walford Community Group,Neighbourhood Services,Supplies & Services
Leeds City Council,Strategic Landlord,05/04/2018,400.00,John O Gaunts Tenants And Residents Grou,Neighbourhood Services,Supplies & Services
Leeds City Council,Strategic Landlord,03/04/2018,"7,500.00",Morley Elderly Action,Central,Supplies & Services
Leeds City Council,Strategic Landlord,03/04/2018,600.00,Saxton Gardens Residents Association,Neighbourhood Services,Supplies & Services
Leeds City Council,Strategic Landlord,03/04/2018,203.67,Winthorpe Residents Association,Central,Supplies & Services
Leeds City Council,Strategic Landlord,18/04/2018,"2,769.04",Care & Repair Leeds, Repairs,Supplies & Services
Leeds City Council as Accountable Body,Social Services Pooled Budgets,06/04/2018,54.00,Henshaws Society For Blind People,Jcs For People With Learning Disabilitie,Supplies & Services
Leeds City Council as Accountable Body,Social Services Pooled Budgets,06/04/2018,150.00,Burley Pcc,Jcs For People With Learning Disabilitie,Supplies & Services
Leeds City Council as Accountable Body,Social Services Pooled Budgets,27/04/2018,"2,177.75",Leeds People First,Jcs For People With Learning Disabilitie,Supplies & Services
Leeds City Council as Accountable Body,Social Services Pooled Budgets,13/04/2018,"16,934.75",Meanwood Valley Urban Farm,Jcs For People With Learning Disabilitie,Supplies & Services
Leeds City Council as Accountable Body,Social Services Pooled Budgets,05/04/2018,840.00,Hamara (Hlc),Jcs For People With Learning Disabilitie,Supplies & Services
Leeds City Council as Accountable Body,Social Services Pooled Budgets,05/04/2018,"1,120.00",Hamara (Hlc),Jcs For People With Learning Disabilitie,Supplies & Services
Leeds City Council as Accountable Body,Social Services Pooled Budgets,09/04/2018,"5,199.66",Pyramid Of Arts,Jcs For People With Learning Disabilitie,Supplies & Services
Leeds City Council as Accountable Body,Social Services Pooled Budgets,13/04/2018,"2,003.27",Affinity Trust,Jcs For People With Learning Disabilitie,Supplies & Services
Leeds City Council as Accountable Body,Social Services Pooled Budgets,13/04/2018,"2,031.48",Affinity Trust,Jcs For People With Learning Disabilitie,Supplies & Services
Leeds City Council as Accountable Body,Social Services Pooled Budgets,13/04/2018,"1,899.81",Affinity Trust,Jcs For People With Learning Disabilitie,Supplies & Services
Leeds City Council as Accountable Body,Social Services Pooled Budgets,13/04/2018,"2,031.48",Affinity Trust,Jcs For People With Learning Disabilitie,Supplies & Services
Leeds City Council as Accountable Body,Social Services Pooled Budgets,13/04/2018,"2,031.48",Affinity Trust,Jcs For People With Learning Disabilitie,Supplies & Services
Leeds City Council as Accountable Body,Social Services Pooled Budgets,13/04/2018,"2,031.48",Affinity Trust,Jcs For People With Learning Disabilitie,Supplies & Services
Leeds City Council as Accountable Body,Social Services Pooled Budgets,13/04/2018,"2,974.67",Affinity Trust,Jcs For People With Learning Disabilitie,Supplies & Services
Leeds City Council as Accountable Body,Social Services Pooled Budgets,13/04/2018,"2,031.48",Affinity Trust,Jcs For People With Learning Disabilitie,Supplies & Services
Leeds City Council as Accountable Body,Social Services Pooled Budgets,23/04/2018,324.00,Henshaws Society For Blind People,Jcs For People With Learning Disabilitie,Supplies & Services
Leeds City Council as Accountable Body,Social Services Pooled Budgets,13/04/2018,689.50,Henshaws Society For Blind People,Jcs For People With Learning Disabilitie,Supplies & Services
Leeds City Council as Accountable Body,Social Services Pooled Budgets,13/04/2018,342.00,Henshaws Society For Blind People,Jcs For People With Learning Disabilitie,Supplies & Services
Leeds City Council as Accountable Body,Social Services Pooled Budgets,18/04/2018,600.00,Meanwood Valley Urban Farm,Jcs For People With Learning Disabilitie,Supplies & Services
Leeds City Council as Accountable Body,Social Services Pooled Budgets,18/04/2018,600.00,Meanwood Valley Urban Farm,Jcs For People With Learning Disabilitie,Supplies & Services
Leeds City Council as Accountable Body,Social Services Pooled Budgets,25/04/2018,400.00,Meanwood Valley Urban Farm,Jcs For People With Learning Disabilitie,Supplies & Services
Leeds City Council as Accountable Body,Social Services Pooled Budgets,25/04/2018,400.00,Meanwood Valley Urban Farm,Jcs For People With Learning Disabilitie,Supplies & Services
Leeds City Council as Accountable Body,Social Services Pooled Budgets,25/04/2018,200.00,Meanwood Valley Urban Farm,Jcs For People With Learning Disabilitie,Supplies & Services
Leeds City Council as Accountable Body,Social Services Pooled Budgets,18/04/2018,650.00,Meanwood Valley Urban Farm,Jcs For People With Learning Disabilitie,Supplies & Services
Leeds City Council as Accountable Body,Social Services Pooled Budgets,18/04/2018,350.00,Meanwood Valley Urban Farm,Jcs For People With Learning Disabilitie,Supplies & Services
Leeds City Council as Accountable Body,Social Services Pooled Budgets,25/04/2018,304.52,Specialist Autism Services,Jcs For People With Learning Disabilitie,Supplies & Services
Leeds City Council as Accountable Body,Social Services Pooled Budgets,25/04/2018,304.52,Specialist Autism Services,Jcs For People With Learning Disabilitie,Supplies & Services
Leeds City Council as Accountable Body,Social Services Pooled Budgets,25/04/2018,"1,867.56",Specialist Autism Services,Jcs For People With Learning Disabilitie,Supplies & Services
Leeds City Council as Accountable Body,Social Services Pooled Budgets,25/04/2018,609.04,Specialist Autism Services,Jcs For People With Learning Disabilitie,Supplies & Services
Leeds City Council as Accountable Body,Social Services Pooled Budgets,25/04/2018,609.04,Specialist Autism Services,Jcs For People With Learning Disabilitie,Supplies & Services
Leeds City Council as Accountable Body,Social Services Pooled Budgets,25/04/2018,"1,245.04",Specialist Autism Services,Jcs For People With Learning Disabilitie,Supplies & Services
Leeds City Council as Accountable Body,Social Services Pooled Budgets,25/04/2018,913.56,Specialist Autism Services,Jcs For People With Learning Disabilitie,Supplies & Services
Leeds City Council as Accountable Body,Social Services Pooled Budgets,25/04/2018,609.04,Specialist Autism Services,Jcs For People With Learning Disabilitie,Supplies & Services
Leeds City Council as Accountable Body,Social Services Pooled Budgets,25/04/2018,913.56,Specialist Autism Services,Jcs For People With Learning Disabilitie,Supplies & Services
Leeds City Council as Accountable Body,Social Services Pooled Budgets,25/04/2018,660.00,Specialist Autism Services,Jcs For People With Learning Disabilitie,Supplies & Services
Leeds City Council as Accountable Body,Social Services Pooled Budgets,25/04/2018,"2,794.60",Specialist Autism Services,Jcs For People With Learning Disabilitie,Supplies & Services
Leeds City Council as Accountable Body,Social Services Pooled Budgets,25/04/2018,"1,680.00",Specialist Autism Services,Jcs For People With Learning Disabilitie,Supplies & Services
Leeds City Council as Accountable Body,Social Services Pooled Budgets,25/04/2018,"1,676.76",Specialist Autism Services,Jcs For People With Learning Disabilitie,Supplies & Services
Leeds City Council as Accountable Body,Social Services Pooled Budgets,25/04/2018,"2,490.08",Specialist Autism Services,Jcs For People With Learning Disabilitie,Supplies & Services
Leeds City Council as Accountable Body,Social Services Pooled Budgets,25/04/2018,"3,762.08",Specialist Autism Services,Jcs For People With Learning Disabilitie,Supplies & Services
Leeds City Council as Accountable Body,Social Services Pooled Budgets,25/04/2018,"2,794.60",Specialist Autism Services,Jcs For People With Learning Disabilitie,Supplies & Services
Leeds City Council as Accountable Body,Social Services Pooled Budgets,13/04/2018,780.00,Imagineer Development Uk Cic,Jcs For People With Learning Disabilitie,Supplies & Services
Leeds City Council as Accountable Body,Social Services Pooled Budgets,13/04/2018,"1,431.00",Imagineer Development Uk Cic,Jcs For People With Learning Disabilitie,Supplies & Services
Leeds City Council as Accountable Body,Social Services Pooled Budgets,13/04/2018,651.00,Imagineer Development Uk Cic,Jcs For People With Learning Disabilitie,Supplies & Services
Leeds City Council as Accountable Body,Social Services Pooled Budgets,13/04/2018,651.00,Imagineer Development Uk Cic,Jcs For People With Learning Disabilitie,Supplies & Services
Leeds City Council as Accountable Body,Social Services Pooled Budgets,05/04/2018,"2,232.00",Hamara (Hlc),Jcs For People With Learning Disabilitie,Supplies & Services
Leeds City Council as Accountable Body,Social Services Pooled Budgets,05/04/2018,840.00,Hamara (Hlc),Jcs For People With Learning Disabilitie,Supplies & Services
Leeds City Council as Accountable Body,Social Services Pooled Budgets,03/04/2018,840.00,Hamara (Hlc),Jcs For People With Learning Disabilitie,Supplies & Services
Leeds City Council as Accountable Body,Social Services Pooled Budgets,05/04/2018,840.00,Hamara (Hlc),Jcs For People With Learning Disabilitie,Supplies & Services
Leeds City Council as Accountable Body,Social Services Pooled Budgets,05/04/2018,840.00,Hamara (Hlc),Jcs For People With Learning Disabilitie,Supplies & Services
Leeds City Council as Accountable Body,Social Services Pooled Budgets,03/04/2018,"1,243.20",Hamara (Hlc),Jcs For People With Learning Disabilitie,Supplies & Services
Leeds City Council as Accountable Body,Social Services Pooled Budgets,05/04/2018,840.00,Hamara (Hlc),Jcs For People With Learning Disabilitie,Supplies & Services
Leeds City Council as Accountable Body,Social Services Pooled Budgets,05/04/2018,840.00,Hamara (Hlc),Jcs For People With Learning Disabilitie,Supplies & Services
Leeds City Council as Accountable Body,Social Services Pooled Budgets,03/04/2018,"1,800.00",Hamara (Hlc),Jcs For People With Learning Disabilitie,Supplies & Services
Leeds City Council as Accountable Body,Social Services Pooled Budgets,03/04/2018,"1,400.00",Hamara (Hlc),Jcs For People With Learning Disabilitie,Supplies & Services
Leeds City Council as Accountable Body,Social Services Pooled Budgets,05/04/2018,840.00,Hamara (Hlc),Jcs For People With Learning Disabilitie,Supplies & Services
Leeds City Council as Accountable Body,Social Services Pooled Budgets,05/04/2018,280.00,Hamara (Hlc),Jcs For People With Learning Disabilitie,Supplies & Services
Leeds City Council as Accountable Body,Social Services Pooled Budgets,05/04/2018,560.00,Hamara (Hlc),Jcs For People With Learning Disabilitie,Supplies & Services
Leeds City Council as Accountable Body,Social Services Pooled Budgets,05/04/2018,280.00,Hamara (Hlc),Jcs For People With Learning Disabilitie,Supplies & Services
Leeds City Council as Accountable Body,Social Services Pooled Budgets,09/04/2018,472.98,Harrogate Skills 4  Living Centre,Jcs For People With Learning Disabilitie,Supplies & Services
Leeds City Council as Accountable Body,Social Services Pooled Budgets,09/04/2018,188.01,Harrogate Skills 4  Living Centre,Jcs For People With Learning Disabilitie,Supplies & Services
Leeds City Council as Accountable Body,Social Services Pooled Budgets,09/04/2018,326.68,Harrogate Skills 4  Living Centre,Jcs For People With Learning Disabilitie,Supplies & Services
Leeds City Council as Accountable Body,Social Services Pooled Budgets,09/04/2018,81.67,Harrogate Skills 4  Living Centre,Jcs For People With Learning Disabilitie,Supplies & Services
Leeds City Council as Accountable Body,Social Services Pooled Budgets,10/04/2018,576.00,Henshaws Society For Blind People,Jcs For People With Learning Disabilitie,Supplies & Services
Leeds City Council as Accountable Body,Social Services Pooled Budgets,10/04/2018,216.00,Henshaws Society For Blind People,Jcs For People With Learning Disabilitie,Supplies & Services
Leeds City Council as Accountable Body,Social Services Pooled Budgets,10/04/2018,432.00,Henshaws Society For Blind People,Jcs For People With Learning Disabilitie,Supplies & Services
Leeds City Council as Accountable Body,Social Services Pooled Budgets,10/04/2018,576.00,Henshaws Society For Blind People,Jcs For People With Learning Disabilitie,Supplies & Services
Leeds City Council as Accountable Body,Social Services Pooled Budgets,10/04/2018,576.00,Henshaws Society For Blind People,Jcs For People With Learning Disabilitie,Supplies & Services
Leeds City Council as Accountable Body,Social Services Pooled Budgets,10/04/2018,576.00,Henshaws Society For Blind People,Jcs For People With Learning Disabilitie,Supplies & Services
Leeds City Council as Accountable Body,Social Services Pooled Budgets,10/04/2018,216.00,Henshaws Society For Blind People,Jcs For People With Learning Disabilitie,Supplies & Services
Leeds City Council as Accountable Body,Social Services Pooled Budgets,10/04/2018,144.00,Henshaws Society For Blind People,Jcs For People With Learning Disabilitie,Supplies & Services
Leeds City Council as Accountable Body,Social Services Pooled Budgets,10/04/2018,432.00,Henshaws Society For Blind People,Jcs For People With Learning Disabilitie,Supplies & Services
Leeds City Council as Accountable Body,Social Services Pooled Budgets,11/04/2018,630.00,Henshaws Society For Blind People,Jcs For People With Learning Disabilitie,Supplies & Services
Leeds City Council as Accountable Body,Social Services Pooled Budgets,13/04/2018,525.00,Henshaws Society For Blind People,Jcs For People With Learning Disabilitie,Supplies & Services
Leeds City Council as Accountable Body,Social Services Pooled Budgets,06/04/2018,224.00,Horticap Limited,Jcs For People With Learning Disabilitie,Supplies & Services
Leeds City Council as Accountable Body,Social Services Pooled Budgets,04/04/2018,648.00,Horticap Limited,Jcs For People With Learning Disabilitie,Supplies & Services
Leeds City Council as Accountable Body,Social Services Pooled Budgets,06/04/2018,324.00,Horticap Limited,Jcs For People With Learning Disabilitie,Supplies & Services
Leeds City Council as Accountable Body,Social Services Pooled Budgets,06/04/2018,46.27,Leeds Autism Services,Jcs For People With Learning Disabilitie,Supplies & Services
Leeds City Council as Accountable Body,Social Services Pooled Budgets,06/04/2018,"-81,427.25",Leeds Autism Services,Jcs For People With Learning Disabilitie,Supplies & Services
Leeds City Council as Accountable Body,Social Services Pooled Budgets,06/04/2018,"81,427.25",Leeds Autism Services,Jcs For People With Learning Disabilitie,Supplies & Services
Leeds City Council as Accountable Body,Social Services Pooled Budgets,11/04/2018,-225.00,Northern Ballet Theatre Limited,Jcs For People With Learning Disabilitie,Supplies & Services
Leeds City Council as Accountable Body,Social Services Pooled Budgets,04/04/2018,140.00,Purple Patch Arts,Jcs For People With Learning Disabilitie,Supplies & Services
Leeds City Council as Accountable Body,Social Services Pooled Budgets,04/04/2018,140.00,Purple Patch Arts,Jcs For People With Learning Disabilitie,Supplies & Services
Leeds City Council as Accountable Body,Social Services Pooled Budgets,06/04/2018,490.00,Purple Patch Arts,Jcs For People With Learning Disabilitie,Supplies & Services
Leeds City Council as Accountable Body,Social Services Pooled Budgets,11/04/2018,140.00,Purple Patch Arts,Jcs For People With Learning Disabilitie,Supplies & Services
Leeds City Council as Accountable Body,Social Services Pooled Budgets,11/04/2018,140.00,Purple Patch Arts,Jcs For People With Learning Disabilitie,Supplies & Services
Leeds City Council as Accountable Body,Social Services Pooled Budgets,11/04/2018,140.00,Purple Patch Arts,Jcs For People With Learning Disabilitie,Supplies & Services
Leeds City Council as Accountable Body,Social Services Pooled Budgets,11/04/2018,175.00,Purple Patch Arts,Jcs For People With Learning Disabilitie,Supplies & Services
Leeds City Council as Accountable Body,Social Services Pooled Budgets,11/04/2018,175.00,Purple Patch Arts,Jcs For People With Learning Disabilitie,Supplies & Services
Leeds City Council as Accountable Body,Social Services Pooled Budgets,11/04/2018,140.00,Purple Patch Arts,Jcs For People With Learning Disabilitie,Supplies & Services
Leeds City Council as Accountable Body,Social Services Pooled Budgets,04/04/2018,140.00,Purple Patch Arts,Jcs For People With Learning Disabilitie,Supplies & Services
Leeds City Council as Accountable Body,Social Services Pooled Budgets,04/04/2018,140.00,Purple Patch Arts,Jcs For People With Learning Disabilitie,Supplies & Services
Leeds City Council as Accountable Body,Social Services Pooled Budgets,04/04/2018,140.00,Purple Patch Arts,Jcs For People With Learning Disabilitie,Supplies & Services
Leeds City Council as Accountable Body,Social Services Pooled Budgets,04/04/2018,35.00,Purple Patch Arts,Jcs For People With Learning Disabilitie,Supplies & Services
Leeds City Council as Accountable Body,Social Services Pooled Budgets,04/04/2018,140.00,Purple Patch Arts,Jcs For People With Learning Disabilitie,Supplies & Services
Leeds City Council as Accountable Body,Social Services Pooled Budgets,04/04/2018,140.00,Purple Patch Arts,Jcs For People With Learning Disabilitie,Supplies & Services
Leeds City Council as Accountable Body,Social Services Pooled Budgets,04/04/2018,175.00,Purple Patch Arts,Jcs For People With Learning Disabilitie,Supplies & Services
Leeds City Council as Accountable Body,Social Services Pooled Budgets,04/04/2018,175.00,Purple Patch Arts,Jcs For People With Learning Disabilitie,Supplies & Services
Leeds City Council as Accountable Body,Social Services Pooled Budgets,04/04/2018,175.00,Purple Patch Arts,Jcs For People With Learning Disabilitie,Supplies & Services
Leeds City Council as Accountable Body,Social Services Pooled Budgets,04/04/2018,175.00,Purple Patch Arts,Jcs For People With Learning Disabilitie,Supplies & Services
Leeds City Council as Accountable Body,Social Services Pooled Budgets,04/04/2018,140.00,Purple Patch Arts,Jcs For People With Learning Disabilitie,Supplies & Services
Leeds City Council as Accountable Body,Social Services Pooled Budgets,04/04/2018,175.00,Purple Patch Arts,Jcs For People With Learning Disabilitie,Supplies & Services
Leeds City Council as Accountable Body,Social Services Pooled Budgets,04/04/2018,175.00,Purple Patch Arts,Jcs For People With Learning Disabilitie,Supplies & Services
Leeds City Council as Accountable Body,Social Services Pooled Budgets,04/04/2018,175.00,Purple Patch Arts,Jcs For People With Learning Disabilitie,Supplies & Services
Leeds City Council as Accountable Body,Social Services Pooled Budgets,09/04/2018,619.20,Pyramid Of Arts,Jcs For People With Learning Disabilitie,Supplies & Services
Leeds City Council as Accountable Body,Social Services Pooled Budgets,06/04/2018,"2,200.00",Ripon Community Link,Jcs For People With Learning Disabilitie,Supplies & Services
Leeds City Council as Accountable Body,Social Services Pooled Budgets,06/04/2018,568.68,Ripon Community Link,Jcs For People With Learning Disabilitie,Supplies & Services
Leeds City Council as Accountable Body,Social Services Pooled Budgets,19/04/2018,"2,900.00",Sense,Jcs For People With Learning Disabilitie,Supplies & Services
Leeds City Council as Accountable Body,Social Services Pooled Budgets,19/04/2018,"1,120.00",Sense,Jcs For People With Learning Disabilitie,Supplies & Services
Leeds City Council as Accountable Body,Social Services Pooled Budgets,19/04/2018,"1,120.00",Sense,Jcs For People With Learning Disabilitie,Supplies & Services
Leeds City Council as Accountable Body,Social Services Pooled Budgets,19/04/2018,"4,841.85",Sense,Jcs For People With Learning Disabilitie,Supplies & Services
Leeds City Council as Accountable Body,Social Services Pooled Budgets,19/04/2018,"2,900.00",Sense,Jcs For People With Learning Disabilitie,Supplies & Services
Leeds City Council as Accountable Body,Social Services Pooled Budgets,19/04/2018,"2,840.40",Sense,Jcs For People With Learning Disabilitie,Supplies & Services
Leeds City Council as Accountable Body,Social Services Pooled Budgets,19/04/2018,"2,843.53",Sense,Jcs For People With Learning Disabilitie,Supplies & Services
Leeds City Council as Accountable Body,Social Services Pooled Budgets,19/04/2018,"2,900.00",Sense,Jcs For People With Learning Disabilitie,Supplies & Services
Leeds City Council as Accountable Body,Social Services Pooled Budgets,19/04/2018,"4,480.00",Sense,Jcs For People With Learning Disabilitie,Supplies & Services
Leeds City Council as Accountable Body,Social Services Pooled Budgets,20/04/2018,"2,702.40",Sense,Jcs For People With Learning Disabilitie,Supplies & Services
Leeds City Council as Accountable Body,Social Services Pooled Budgets,19/04/2018,"5,571.04",Sense,Jcs For People With Learning Disabilitie,Supplies & Services
Leeds City Council as Accountable Body,Social Services Pooled Budgets,06/04/2018,304.52,Specialist Autism Services,Jcs For People With Learning Disabilitie,Supplies & Services
Leeds City Council as Accountable Body,Social Services Pooled Budgets,06/04/2018,"1,173.12",United Response,Jcs For People With Learning Disabilitie,Supplies & Services
Leeds City Council as Accountable Body,Social Services Pooled Budgets,11/04/2018,"1,484.99",United Response,Jcs For People With Learning Disabilitie,Supplies & Services
Leeds City Council as Accountable Body,Social Services Pooled Budgets,18/04/2018,"5,197.47",United Response,Jcs For People With Learning Disabilitie,Supplies & Services
Leeds City Council as Accountable Body,Social Services Pooled Budgets,06/04/2018,419.36,Rcl Walled Garden Scheme,Jcs For People With Learning Disabilitie,Supplies & Services
Leeds City Council as Accountable Body,Social Services Pooled Budgets,30/04/2018,"3,703.19",Angels Housekeeping Cic Ltd,Jcs For People With Learning Disabilitie,Supplies & Services
Leeds City Council as Accountable Body,Social Services Pooled Budgets,30/04/2018,"2,417.40",Angels Housekeeping Cic Ltd,Jcs For People With Learning Disabilitie,Supplies & Services
Leeds City Council as Accountable Body,Social Services Pooled Budgets,09/04/2018,"61,086.48",St Annes Shelter & Housing Action,Jcs For People With Learning Disabilitie,Supplies & Services
Leeds City Council as Accountable Body,Social Services Pooled Budgets,26/04/2018,"4,787.50",St Annes Community Services,Jcs For People With Learning Disabilitie,Supplies & Services
Leeds City Council as Accountable Body,Social Services Pooled Budgets,20/04/2018,"48,948.60",Aspire Services (Leeds) Limited,Jcs For People With Learning Disabilitie,Supplies & Services
Leeds City Council as Accountable Body,Social Services Pooled Budgets,20/04/2018,"13,574.37",Aspire Services (Leeds) Limited,Jcs For People With Learning Disabilitie,Supplies & Services
Leeds City Council as Accountable Body,Social Services Pooled Budgets,30/04/2018,"43,851.62",Aspire Services (Leeds) Limited,Jcs For People With Learning Disabilitie,Supplies & Services
Leeds City Council as Accountable Body,Social Services Pooled Budgets,30/04/2018,"44,723.73",Aspire Services (Leeds) Limited,Jcs For People With Learning Disabilitie,Supplies & Services
Leeds City Council as Accountable Body,Social Services Pooled Budgets,25/04/2018,594.55,Casa Leeds,Jcs For People With Learning Disabilitie,Supplies & Services
Leeds City Council as Accountable Body,Social Services Pooled Budgets,25/04/2018,"1,642.88",Casa Leeds,Jcs For People With Learning Disabilitie,Supplies & Services
Leeds City Council as Accountable Body,Social Services Pooled Budgets,25/04/2018,43.26,Casa Leeds,Jcs For People With Learning Disabilitie,Supplies & Services
Leeds City Council as Accountable Body,Social Services Pooled Budgets,09/04/2018,"6,572.60",Leeds Federated Housing Association,Jcs For People With Learning Disabilitie,Supplies & Services
Leeds City Council as Accountable Body,Social Services Pooled Budgets,25/04/2018,200.00,Meanwood Valley Urban Farm,Jcs For People With Learning Disabilitie,Supplies & Services
Leeds City Council as Accountable Body,Social Services Pooled Budgets,23/04/2018,861.84,People In Action Leeds Uk,Jcs For People With Learning Disabilitie,Supplies & Services
Leeds City Council as Accountable Body,Social Services Pooled Budgets,23/04/2018,670.32,People In Action Leeds Uk,Jcs For People With Learning Disabilitie,Supplies & Services
Leeds City Council as Accountable Body,Social Services Pooled Budgets,19/04/2018,"22,807.07",Real Life Options,Jcs For People With Learning Disabilitie,Supplies & Services
Leeds City Council as Accountable Body,Social Services Pooled Budgets,19/04/2018,"27,990.16",Real Life Options,Jcs For People With Learning Disabilitie,Supplies & Services
Leeds City Council as Accountable Body,Social Services Pooled Budgets,27/04/2018,667.20,Real Life Options,Jcs For People With Learning Disabilitie,Supplies & Services
Leeds City Council as Accountable Body,Social Services Pooled Budgets,27/04/2018,667.20,Real Life Options,Jcs For People With Learning Disabilitie,Supplies & Services
Leeds City Council as Accountable Body,Social Services Pooled Budgets,18/04/2018,894.72,St Annes Community Services,Jcs For People With Learning Disabilitie,Supplies & Services
Leeds City Council as Accountable Body,Social Services Pooled Budgets,13/04/2018,223.68,St Annes Community Services,Jcs For People With Learning Disabilitie,Supplies & Services
Leeds City Council as Accountable Body,Social Services Pooled Budgets,13/04/2018,111.84,St Annes Community Services,Jcs For People With Learning Disabilitie,Supplies & Services
Leeds City Council as Accountable Body,Social Services Pooled Budgets,13/04/2018,-298.24,St Annes Community Services,Jcs For People With Learning Disabilitie,Supplies & Services
Leeds City Council as Accountable Body,Social Services Pooled Budgets,13/04/2018,149.12,St Annes Community Services,Jcs For People With Learning Disabilitie,Supplies & Services
Leeds City Council as Accountable Body,Social Services Pooled Budgets,13/04/2018,149.12,St Annes Community Services,Jcs For People With Learning Disabilitie,Supplies & Services
Leeds City Council as Accountable Body,Social Services Pooled Budgets,18/04/2018,357.12,St Annes Community Services,Jcs For People With Learning Disabilitie,Supplies & Services
Leeds City Council as Accountable Body,Social Services Pooled Budgets,18/04/2018,357.12,St Annes Community Services,Jcs For People With Learning Disabilitie,Supplies & Services
Leeds City Council as Accountable Body,Social Services Pooled Budgets,19/04/2018,818.92,St Annes Community Services,Jcs For People With Learning Disabilitie,Supplies & Services
Leeds City Council as Accountable Body,Social Services Pooled Budgets,20/04/2018,775.32,St Annes Community Services,Jcs For People With Learning Disabilitie,Supplies & Services
Leeds City Council as Accountable Body,Social Services Pooled Budgets,20/04/2018,149.12,St Annes Community Services,Jcs For People With Learning Disabilitie,Supplies & Services
Leeds City Council as Accountable Body,Social Services Pooled Budgets,20/04/2018,258.44,St Annes Community Services,Jcs For People With Learning Disabilitie,Supplies & Services
Leeds City Council as Accountable Body,Social Services Pooled Budgets,20/04/2018,111.84,St Annes Community Services,Jcs For People With Learning Disabilitie,Supplies & Services
Leeds City Council as Accountable Body,Social Services Pooled Budgets,20/04/2018,357.12,St Annes Community Services,Jcs For People With Learning Disabilitie,Supplies & Services
Leeds City Council as Accountable Body,Social Services Pooled Budgets,18/04/2018,208.32,St Annes Community Services,Jcs For People With Learning Disabilitie,Supplies & Services
Leeds City Council as Accountable Body,Social Services Pooled Budgets,19/04/2018,892.80,St Annes Community Services,Jcs For People With Learning Disabilitie,Supplies & Services
Leeds City Council as Accountable Body,Social Services Pooled Budgets,19/04/2018,892.80,St Annes Community Services,Jcs For People With Learning Disabilitie,Supplies & Services
Leeds City Council as Accountable Body,Social Services Pooled Budgets,19/04/2018,282.72,St Annes Community Services,Jcs For People With Learning Disabilitie,Supplies & Services
Leeds City Council as Accountable Body,Social Services Pooled Budgets,06/04/2018,552.80,St Annes Community Services,Jcs For People With Learning Disabilitie,Supplies & Services
Leeds City Council as Accountable Body,Social Services Pooled Budgets,06/04/2018,580.44,St Annes Community Services,Jcs For People With Learning Disabilitie,Supplies & Services
Leeds City Council as Accountable Body,Social Services Pooled Budgets,06/04/2018,552.80,St Annes Community Services,Jcs For People With Learning Disabilitie,Supplies & Services
Leeds City Council as Accountable Body,Social Services Pooled Budgets,13/04/2018,775.32,St Annes Community Services,Jcs For People With Learning Disabilitie,Supplies & Services
Leeds City Council as Accountable Body,Social Services Pooled Budgets,18/04/2018,516.88,St Annes Community Services,Jcs For People With Learning Disabilitie,Supplies & Services
Leeds City Council as Accountable Body,Social Services Pooled Budgets,18/04/2018,258.44,St Annes Community Services,Jcs For People With Learning Disabilitie,Supplies & Services
Leeds City Council as Accountable Body,Social Services Pooled Budgets,18/04/2018,894.72,St Annes Community Services,Jcs For People With Learning Disabilitie,Supplies & Services
Leeds City Council as Accountable Body,Social Services Pooled Budgets,13/04/2018,111.84,St Annes Community Services,Jcs For People With Learning Disabilitie,Supplies & Services
Leeds City Council as Accountable Body,Social Services Pooled Budgets,18/04/2018,714.24,St Annes Community Services,Jcs For People With Learning Disabilitie,Supplies & Services
Leeds City Council as Accountable Body,Social Services Pooled Budgets,13/04/2018,"-1,550.64",St Annes Community Services,Jcs For People With Learning Disabilitie,Supplies & Services
Leeds City Council as Accountable Body,Social Services Pooled Budgets,13/04/2018,775.32,St Annes Community Services,Jcs For People With Learning Disabilitie,Supplies & Services
Leeds City Council as Accountable Body,Social Services Pooled Budgets,18/04/2018,258.44,St Annes Community Services,Jcs For People With Learning Disabilitie,Supplies & Services
Leeds City Council as Accountable Body,Social Services Pooled Budgets,18/04/2018,"1,789.44",St Annes Community Services,Jcs For People With Learning Disabilitie,Supplies & Services
Leeds City Council as Accountable Body,Social Services Pooled Budgets,18/04/2018,"45,834.93",Aspire Services (Leeds) Limited,Jcs For People With Learning Disabilitie,Supplies & Services
Leeds City Council as Accountable Body,Social Services Pooled Budgets,13/04/2018,"45,419.35",Aspire Services (Leeds) Limited,Jcs For People With Learning Disabilitie,Supplies & Services
Leeds City Council as Accountable Body,Social Services Pooled Budgets,05/04/2018,144.20,Casa Leeds,Jcs For People With Learning Disabilitie,Supplies & Services
Leeds City Council as Accountable Body,Social Services Pooled Budgets,05/04/2018,239.00,Casa Leeds,Jcs For People With Learning Disabilitie,Supplies & Services
Leeds City Council as Accountable Body,Social Services Pooled Budgets,03/04/2018,"1,026.00",Community Integrated Care,Jcs For People With Learning Disabilitie,Supplies & Services
Leeds City Council as Accountable Body,Social Services Pooled Budgets,20/04/2018,"1,026.00",Community Integrated Care,Jcs For People With Learning Disabilitie,Supplies & Services
Leeds City Council as Accountable Body,Social Services Pooled Budgets,03/04/2018,288.00,Henshaws Society For Blind People,Jcs For People With Learning Disabilitie,Supplies & Services
Leeds City Council as Accountable Body,Social Services Pooled Budgets,03/04/2018,252.00,Henshaws Society For Blind People,Jcs For People With Learning Disabilitie,Supplies & Services
Leeds City Council as Accountable Body,Social Services Pooled Budgets,03/04/2018,252.00,Henshaws Society For Blind People,Jcs For People With Learning Disabilitie,Supplies & Services
Leeds City Council as Accountable Body,Social Services Pooled Budgets,03/04/2018,252.00,Henshaws Society For Blind People,Jcs For People With Learning Disabilitie,Supplies & Services
Leeds City Council as Accountable Body,Social Services Pooled Budgets,13/04/2018,"1,121.00",Hf Trust Ltd,Jcs For People With Learning Disabilitie,Supplies & Services
Leeds City Council as Accountable Body,Social Services Pooled Budgets,05/04/2018,336.00,Leeds Jewish Welfare Board,Jcs For People With Learning Disabilitie,Supplies & Services
Leeds City Council as Accountable Body,Social Services Pooled Budgets,13/04/2018,572.00,Leeds Jewish Welfare Board,Jcs For People With Learning Disabilitie,Supplies & Services
Leeds City Council as Accountable Body,Social Services Pooled Budgets,04/04/2018,"1,265.40",Linkage Community Trust,Jcs For People With Learning Disabilitie,Supplies & Services
Leeds City Council as Accountable Body,Social Services Pooled Budgets,04/04/2018,140.00,Purple Patch Arts,Jcs For People With Learning Disabilitie,Supplies & Services
Leeds City Council as Accountable Body,Social Services Pooled Budgets,04/04/2018,175.00,Purple Patch Arts,Jcs For People With Learning Disabilitie,Supplies & Services
Leeds City Council as Accountable Body,Social Services Pooled Budgets,19/04/2018,"2,913.00",Sense,Jcs For People With Learning Disabilitie,Supplies & Services
Leeds City Council as Accountable Body,Social Services Pooled Budgets,30/04/2018,"1,332.20",Adult Placement Services,Jcs For People With Learning Disabilitie,Supplies & Services
Leeds City Council as Accountable Body,Social Services Pooled Budgets,26/04/2018,"1,332.20",Adult Placement Services,Jcs For People With Learning Disabilitie,Supplies & Services
Leeds City Council as Accountable Body,Social Services Pooled Budgets,04/04/2018,"43,338.66",St Annes Residential Care,Adult Cliet Groups Only,Supplies & Services
Leeds City Council as Accountable Body,Social Services Pooled Budgets,04/04/2018,"11,329.00",Catholic Care Diocese Of Leeds,Jcs For People With Learning Disabilitie,Supplies & Services
Leeds City Council as Accountable Body,Social Services Pooled Budgets,04/04/2018,"2,228.24",The Croft,Jcs For People With Learning Disabilitie,Supplies & Services
Leeds City Council as Accountable Body,Social Services Pooled Budgets,04/04/2018,"11,279.44",Mencap,Jcs For People With Learning Disabilitie,Supplies & Services
Leeds City Council as Accountable Body,Social Services Pooled Budgets,04/04/2018,"2,625.16",Henshaw Yokshire,Residential Care Home Placements,Supplies & Services
Leeds City Council as Accountable Body,Social Services Pooled Budgets,04/04/2018,"127,925.36",Affinity Trust North Divisional Office,Jcs For People With Learning Disabilitie,Supplies & Services
Leeds City Council as Accountable Body,Social Services Pooled Budgets,04/04/2018,"267,312.65",Home Farm Trust Ltd,Jcs For People With Learning Disabilitie,Supplies & Services
Leeds City Council as Accountable Body,Social Services Pooled Budgets,04/04/2018,"14,646.80",Catholic Care Diocese Of Leeds,Jcs For People With Learning Disabilitie,Supplies & Services
Leeds City Council as Accountable Body,Social Services Pooled Budgets,04/04/2018,"16,324.48",Catholic Care Diocese Of Leeds,Jcs For People With Learning Disabilitie,Supplies & Services
Leeds City Council as Accountable Body,Social Services Pooled Budgets,04/04/2018,"15,561.44",Wilfward Family Trust,Jcs For People With Learning Disabilitie,Supplies & Services
Leeds City Council as Accountable Body,Social Services Pooled Budgets,04/04/2018,"6,679.36",The Wilf Ward Family Trust,Jcs For People With Learning Disabilitie,Supplies & Services
Leeds City Council as Accountable Body,Social Services Pooled Budgets,04/04/2018,"31,417.96",Supported Housing Leeds Federated,Jcs For People With Learning Disabilitie,Supplies & Services
Leeds City Council as Accountable Body,Social Services Pooled Budgets,04/04/2018,"8,918.00",L'Arche Preston,Jcs For People With Learning Disabilitie,Supplies & Services
Leeds City Council as Accountable Body,Social Services Pooled Budgets,04/04/2018,"87,425.24",Real Life Options,Jcs For People With Learning Disabilitie,Supplies & Services
Leeds City Council as Accountable Body,Social Services Pooled Budgets,04/04/2018,"58,942.64",Community Integrated Care,Jcs For People With Learning Disabilitie,Supplies & Services
Leeds City Council as Accountable Body,Social Services Pooled Budgets,04/04/2018,"5,786.80",Sense,Jcs For People With Learning Disabilitie,Supplies & Services
Leeds City Council as Accountable Body,Social Services Pooled Budgets,04/04/2018,"167,672.01",St Annes Community Services,Jcs For People With Learning Disabilitie,Supplies & Services
Leeds City Council as Accountable Body,Social Services Pooled Budgets,13/04/2018,197.73,Adult Placement Services,Jcs For People With Learning Disabilitie,Supplies & Services
Leeds City Council as Accountable Body,Social Services Pooled Budgets,13/04/2018,"1,332.20",Adult Placement Services,Jcs For People With Learning Disabilitie,Supplies & Services
Leeds City Council as Accountable Body,Social Services Pooled Budgets,04/04/2018,"4,235.40",Burley Hall Nursing Home,Residential Care Home Placements,Supplies & Services
Leeds City Council as Accountable Body,Social Services Pooled Budgets,30/04/2018,"1,625.73",Hf Trust Ltd,Jcs For People With Learning Disabilitie,Supplies & Services
Leeds City Council as Accountable Body,Social Services Pooled Budgets,25/04/2018,"8,325.84",Nas Services Limited,Jcs For People With Learning Disabilitie,Supplies & Services
Leeds City Council as Accountable Body,Social Services Pooled Budgets,25/04/2018,"8,325.84",Nas Services Limited,Jcs For People With Learning Disabilitie,Supplies & Services
Leeds City Council as Accountable Body,Social Services Pooled Budgets,25/04/2018,27.96,Wilf Ward Family Trust,Jcs For People With Learning Disabilitie,Supplies & Services
Leeds City Council as Accountable Body,Social Services Pooled Budgets,25/04/2018,9.32,Wilf Ward Family Trust,Jcs For People With Learning Disabilitie,Supplies & Services
Leeds City Council as Accountable Body,Social Services Pooled Budgets,25/04/2018,27.96,Wilf Ward Family Trust,Jcs For People With Learning Disabilitie,Supplies & Services
Leeds City Council as Accountable Body,Social Services Pooled Budgets,25/04/2018,27.96,Wilf Ward Family Trust,Jcs For People With Learning Disabilitie,Supplies & Services
Leeds City Council as Accountable Body,Social Services Pooled Budgets,25/04/2018,"49,177.80",Wilf Ward Family Trust,Jcs For People With Learning Disabilitie,Supplies & Services
Leeds City Council as Accountable Body,Social Services Pooled Budgets,04/04/2018,"1,212.35",Larchfield Residential Home,Adult Cliet Groups Only,Supplies & Services
Leeds City Council as Accountable Body,Social Services Pooled Budgets,04/04/2018,"31,864.26",St Annes Residential Care,Adult Cliet Groups Only,Supplies & Services
Leeds City Council as Accountable Body,Social Services Pooled Budgets,04/04/2018,642.76,The Croft,Jcs For People With Learning Disabilitie,Supplies & Services
Leeds City Council as Accountable Body,Social Services Pooled Budgets,04/04/2018,"62,115.12",Hollybank Trust,Jcs For People With Learning Disabilitie,Supplies & Services
Leeds City Council as Accountable Body,Social Services Pooled Budgets,04/04/2018,"36,537.92",Leeds Autism Services,Jcs For People With Learning Disabilitie,Supplies & Services
Leeds City Council as Accountable Body,Social Services Pooled Budgets,04/04/2018,"2,488.28",Harry Priestley House,Jcs For People With Learning Disabilitie,Supplies & Services
Leeds City Council as Accountable Body,Social Services Pooled Budgets,04/04/2018,"4,572.20",Brookvale (For The Mentally,Jcs For People With Learning Disabilitie,Supplies & Services
Leeds City Council as Accountable Body,Social Services Pooled Budgets,04/04/2018,"2,668.44",Newland Hurst,Jcs For People With Learning Disabilitie,Supplies & Services
Leeds City Council as Accountable Body,Social Services Pooled Budgets,04/04/2018,"6,733.72",Henshaw Yokshire,Residential Care Home Placements,Supplies & Services
Leeds City Council as Accountable Body,Social Services Pooled Budgets,04/04/2018,"12,456.52",Home Farm Trust Ltd,Jcs For People With Learning Disabilitie,Supplies & Services
Leeds City Council as Accountable Body,Social Services Pooled Budgets,04/04/2018,"8,057.05",Saint John Of God Hospitaller Services,Residential Care Home Placements,Supplies & Services
Leeds City Council as Accountable Body,Social Services Pooled Budgets,04/04/2018,"6,683.32",Leonard Cheshire Disability,Residential Care Home Placements,Supplies & Services
Leeds City Council as Accountable Body,Social Services Pooled Budgets,04/04/2018,"15,299.60",Lily Thompson House,Residential Care Home Placements,Supplies & Services
Leeds City Council as Accountable Body,Social Services Pooled Budgets,04/04/2018,"2,902.72",Brothers Of Charity,Jcs For People With Learning Disabilitie,Supplies & Services
Leeds City Council as Accountable Body,Social Services Pooled Budgets,04/04/2018,"13,733.68",Community Integrated Care,Jcs For People With Learning Disabilitie,Supplies & Services
Leeds City Council as Accountable Body,Social Services Pooled Budgets,04/04/2018,"67,256.74",Leeds Jewish Welfare Board,Residential Care Home Placements,Supplies & Services
Leeds City Council as Accountable Body,Social Services Pooled Budgets,04/04/2018,"42,103.99",Sense,Jcs For People With Learning Disabilitie,Supplies & Services
Leeds City Council as Accountable Body,Social Services Pooled Budgets,04/04/2018,"27,577.94",The Rookery,Jcs For People With Learning Disabilitie,Supplies & Services
Leeds City Council as Accountable Body,Social Services Pooled Budgets,04/04/2018,"3,197.40",Burley Hall Nursing Home,Residential Care Home Placements,Supplies & Services
Leeds City Council as Accountable Body,Social Services Pooled Budgets,04/04/2018,"19,539.61",Lynda Cohen House,Jcs For People With Learning Disabilitie,Supplies & Services
Leeds City Council as Accountable Body,Social Services Pooled Budgets,06/04/2018,321.12,St Annes Community Services,Jcs For People With Learning Disabilitie,Supplies & Services
Leeds City Council as Accountable Body,Social Services Pooled Budgets,06/04/2018,431.51,St Annes Community Services,Jcs For People With Learning Disabilitie,Supplies & Services
Leeds City Council as Accountable Body,Social Services Pooled Budgets,04/04/2018,"6,438.60",Together Housing Association Ltd,Jcs For People With Learning Disabilitie,Supplies & Services
Leeds City Council as Accountable Body,Social Services Pooled Budgets,09/04/2018,"11,515.00",The David Lewis Centre,Jcs For People With Learning Disabilitie,Supplies & Services
Leeds City Council as Accountable Body,Social Services Pooled Budgets,05/04/2018,512.00,Leeds Jewish Welfare Board,Jcs For People With Learning Disabilitie,Supplies & Services
Leeds City Council as Accountable Body,Social Services Pooled Budgets,20/04/2018,"2,775.00",Wilf Ward Family Trust,Jcs For People With Learning Disabilitie,Supplies & Services
Leeds City Council as Accountable Body,Social Services Pooled Budgets,20/04/2018,27.96,Wilf Ward Family Trust,Jcs For People With Learning Disabilitie,Supplies & Services
Leeds City Council as Accountable Body,Social Services Pooled Budgets,20/04/2018,27.96,Wilf Ward Family Trust,Jcs For People With Learning Disabilitie,Supplies & Services
Leeds City Council as Accountable Body,Social Services Pooled Budgets,20/04/2018,34.47,Wilf Ward Family Trust,Jcs For People With Learning Disabilitie,Supplies & Services
Leeds City Council as Accountable Body,Social Services Pooled Budgets,20/04/2018,37.28,Wilf Ward Family Trust,Jcs For People With Learning Disabilitie,Supplies & Services
Leeds City Council as Accountable Body,Social Services Pooled Budgets,04/04/2018,37.28,Wilf Ward Family Trust,Jcs For People With Learning Disabilitie,Supplies & Services
Leeds City Council as Accountable Body,Social Services Pooled Budgets,04/04/2018,"49,177.80",Wilf Ward Family Trust,Jcs For People With Learning Disabilitie,Supplies & Services
Leeds City Council as Accountable Body,Social Services Pooled Budgets,05/04/2018,"31,082.00",Leeds Centre For Integrated Living,Jcs For People With Learning Disabilitie,Supplies & Services
Leeds City Council,Adults and Health,03/05/2018,150.00,Airedale Community Trading (Act) Ltd,Adult Cliet Groups Only,Supplies & Services
Leeds City Council,Adults and Health,09/05/2018,630.00,New Wortley Community Association,Adult Cliet Groups Only,Supplies & Services
Leeds City Council,Adults and Health,25/05/2018,200.00,Meanwood Valley Urban Farm,Adult Cliet Groups Only,Supplies & Services
Leeds City Council,Adults and Health,16/05/2018,476.16,St Annes Community Services,Adult Cliet Groups Only,Supplies & Services
Leeds City Council,Adults and Health,30/05/2018,535.68,St Annes Community Services,Adult Cliet Groups Only,Supplies & Services
Leeds City Council,Adults and Health,09/05/2018,228.00,Second Chance Headway Centre,Adult Cliet Groups Only,Supplies & Services
Leeds City Council,Adults and Health,09/05/2018,232.00,Second Chance Headway Centre,Adult Cliet Groups Only,Supplies & Services
Leeds City Council,Adults and Health,18/05/2018,232.00,Second Chance Headway Centre,Adult Cliet Groups Only,Supplies & Services
Leeds City Council,Adults and Health,25/05/2018,200.00,Specialist Autism Services,Adult Cliet Groups Only,Supplies & Services
Leeds City Council,Adults and Health,21/05/2018,380.65,Specialist Autism Services,Adult Cliet Groups Only,Supplies & Services
Leeds City Council,Adults and Health,29/05/2018,380.65,Specialist Autism Services,Adult Cliet Groups Only,Supplies & Services
Leeds City Council,Adults and Health,21/05/2018,761.30,Specialist Autism Services,Adult Cliet Groups Only,Supplies & Services
Leeds City Council,Adults and Health,23/05/2018,431.46,Affinity Trust,Adult Cliet Groups Only,Supplies & Services
Leeds City Council,Adults and Health,23/05/2018,495.38,Affinity Trust,Adult Cliet Groups Only,Supplies & Services
Leeds City Council,Adults and Health,25/05/2018,468.44,People Matters (West Yorkshire) Cio,Adult Cliet Groups Only,Supplies & Services
Leeds City Council,Adults and Health,16/05/2018,200.76,People Matters (West Yorkshire) Cio,Adult Cliet Groups Only,Supplies & Services
Leeds City Council,Adults and Health,17/05/2018,724.50,Real Life Options,Adult Cliet Groups Only,Supplies & Services
Leeds City Council,Adults and Health,17/05/2018,882.00,Real Life Options,Adult Cliet Groups Only,Supplies & Services
Leeds City Council,Adults and Health,17/05/2018,866.25,Real Life Options,Adult Cliet Groups Only,Supplies & Services
Leeds City Council,Adults and Health,17/05/2018,882.00,Real Life Options,Adult Cliet Groups Only,Supplies & Services
Leeds City Council,Adults and Health,17/05/2018,819.00,Real Life Options,Adult Cliet Groups Only,Supplies & Services
Leeds City Council,Adults and Health,17/05/2018,882.00,Real Life Options,Adult Cliet Groups Only,Supplies & Services
Leeds City Council,Adults and Health,04/05/2018,714.24,St Annes Community Services,Adult Cliet Groups Only,Supplies & Services
Leeds City Council,Adults and Health,04/05/2018,714.24,St Annes Community Services,Adult Cliet Groups Only,Supplies & Services
Leeds City Council,Adults and Health,02/05/2018,"2,643.20",The Disabilities Trust,Residential Care Home Placements,Supplies & Services
Leeds City Council,Adults and Health,30/05/2018,"2,643.20",The Disabilities Trust,Residential Care Home Placements,Supplies & Services
Leeds City Council,Adults and Health,02/05/2018,"4,388.72",St Annes Residential Care,Residential Care Home Placements,Supplies & Services
Leeds City Council,Adults and Health,30/05/2018,"4,388.72",St Annes Residential Care,Residential Care Home Placements,Supplies & Services
Leeds City Council,Adults and Health,02/05/2018,"1,639.40",Larchfield Residential Home,Residential Care Home Placements,Supplies & Services
Leeds City Council,Adults and Health,30/05/2018,"1,639.40",Larchfield Residential Home,Residential Care Home Placements,Supplies & Services
Leeds City Council,Adults and Health,03/05/2018,"27,103.00",Carers Leeds,Grid 4 - Carer involvement,Supplies & Services
Leeds City Council,Adults and Health,16/05/2018,"65,363.50",Bha,Hiv/Aids,Supplies & Services
Leeds City Council,Adults and Health,16/05/2018,"8,000.00",Bha,Hiv/Aids,Supplies & Services
Leeds City Council,Adults and Health,03/05/2018,"32,974.72",Care & Repair Leeds,Other Adult Services,Supplies & Services
Leeds City Council,Adults and Health,03/05/2018,"54,738.25",Volition,Other Adult Services,Supplies & Services
Leeds City Council,Adults and Health,04/05/2018,"2,623.83",Phoenix House,Substance Abuse (Addictions),Supplies & Services
Leeds City Council,Adults and Health,09/05/2018,"75,000.00",Carers Leeds,Carers,Supplies & Services
Leeds City Council,Adults and Health,21/05/2018,45.00,Slate Cafe And Furniture Store,Equipment,Supplies & Services
Leeds City Council,Adults and Health,03/05/2018,"247,694.00",Carers Leeds,Carers,Supplies & Services
Leeds City Council,Adults and Health,18/05/2018,"18,750.00",Carers Leeds,Carers,Supplies & Services
Leeds City Council,Adults and Health,18/05/2018,"6,250.00",Carers Leeds,Carers,Supplies & Services
Leeds City Council,Adults and Health,02/05/2018,"14,768.00",Leeds Jewish Welfare Board,Carers,Supplies & Services
Leeds City Council,Adults and Health,18/05/2018,"1,000.00",Leeds Older Peoples Forum,Older People and Long Term Conditions,Supplies & Services
Leeds City Council,Adults and Health,21/05/2018,"35,765.00",Barca - Leeds,Mental Wellbeing and Sexual Health,Supplies & Services
Leeds City Council,Adults and Health,16/05/2018,"28,691.25",Bha,Mental Wellbeing and Sexual Health,Supplies & Services
Leeds City Council,Adults and Health,25/05/2018,"9,130.00",Basis Yorkshire Ltd,Mental Wellbeing and Sexual Health,Supplies & Services
Leeds City Council,Adults and Health,24/05/2018,"71,215.58",Developing Initiatives For Support In,Healthy Living and Health Improvement,Supplies & Services
Leeds City Council,Adults and Health,04/05/2018,"17,375.00",Health For All (Leeds) Ltd,Child & Maternal Health,Supplies & Services
Leeds City Council,Adults and Health,04/05/2018,"56,927.50",Health For All (Leeds) Ltd,Mental Wellbeing and Sexual Health,Supplies & Services
Leeds City Council,Adults and Health,04/05/2018,"6,317.50",Health For All (Leeds) Ltd,Child & Maternal Health,Supplies & Services
Leeds City Council,Adults and Health,29/05/2018,"3,385.00",Health For All (Leeds) Ltd,Child & Maternal Health,Supplies & Services
Leeds City Council,Adults and Health,02/05/2018,"20,760.00",Health For All (Leeds) Ltd,Child & Maternal Health,Supplies & Services
Leeds City Council,Adults and Health,09/05/2018,"12,500.00",Leeds Irish Health & Homes,Older People and Long Term Conditions,Supplies & Services
Leeds City Council,Adults and Health,31/05/2018,110.96,Leeds Mind,Mental Wellbeing and Sexual Health,Supplies & Services
Leeds City Council,Adults and Health,25/05/2018,"2,350.00",Leeds Mind,Mental Wellbeing and Sexual Health,Supplies & Services
Leeds City Council,Adults and Health,10/05/2018,"11,929.00",Leeds Mind,Mental Wellbeing and Sexual Health,Supplies & Services
Leeds City Council,Adults and Health,14/05/2018,"57,950.00",Leeds Community Foundation,Health Protection,Supplies & Services
Leeds City Council,Adults and Health,04/05/2018,"166,500.00",Leeds Community Foundation,Older People and Long Term Conditions,Supplies & Services
Leeds City Council,Adults and Health,11/05/2018,"2,500.00",Leeds Rugby Foundation,Healthy Living and Health Improvement,Supplies & Services
Leeds City Council,Adults and Health,17/05/2018,"73,495.00",Touchstone - Leeds,Mental Wellbeing and Sexual Health,Supplies & Services
Leeds City Council,Adults and Health,09/05/2018,"3,385.00",Womens Health Matters,Healthy Living and Health Improvement,Supplies & Services
Leeds City Council,Adults and Health,09/05/2018,"14,400.00",Womens Health Matters,Healthy Living and Health Improvement,Supplies & Services
Leeds City Council,Adults and Health,11/05/2018,"5,094.00",Locala Community Partnership C.I.C.,Mental Wellbeing and Sexual Health,Supplies & Services
Leeds City Council,Adults and Health,11/05/2018,"3,270.00",Locala Community Partnership C.I.C.,Mental Wellbeing and Sexual Health,Supplies & Services
Leeds City Council,Adults and Health,01/05/2018,800.00,Yorkshire Dance,Older People and Long Term Conditions,Supplies & Services
Leeds City Council,Adults and Health,25/05/2018,"18,020.00",Inclusion North Cic,Assessment And Care Management,Supplies & Services
Leeds City Council,Adults and Health,04/05/2018,"1,500.00",Better Action For Families Cio,Assessment And Care Management,Supplies & Services
Leeds City Council,Adults and Health,02/05/2018,"19,119.15",Connect In The North,Assessment And Care Management,Supplies & Services
Leeds City Council,Adults and Health,14/05/2018,"37,747.00",Hamara (Hlc),Other Services-Adults With Learning Disa,Supplies & Services
Leeds City Council,Adults and Health,25/05/2018,"17,126.90",The Conservation Volunteers,Other Services-Adults With Learning Disa,Supplies & Services
Leeds City Council,Adults and Health,16/05/2018,"28,517.50",Chapeltown Cab,Other Services-Adults With Learning Disa,Supplies & Services
Leeds City Council,Adults and Health,31/05/2018,"13,677.75",Leep1,Other Services-Adults With Learning Disa,Supplies & Services
Leeds City Council,Adults and Health,14/05/2018,"9,250.00",Slate Cafe And Furniture Store,Other Services-Adults With Learning Disa,Supplies & Services
Leeds City Council,Adults and Health,01/05/2018,733.56,Advonet,Other Services For Mental Health Needs,Supplies & Services
Leeds City Council,Adults and Health,01/05/2018,"10,305.59",Advonet,Other Services For Mental Health Needs,Supplies & Services
Leeds City Council,Adults and Health,10/05/2018,"9,451.84",Advonet,Other Services For Mental Health Needs,Supplies & Services
Leeds City Council,Adults and Health,11/05/2018,"22,861.07",Advonet,Other Services For Mental Health Needs,Supplies & Services
Leeds City Council,Adults and Health,01/05/2018,"87,988.50",Leeds Mind,Other Services For Mental Health Needs,Supplies & Services
Leeds City Council,Adults and Health,04/05/2018,"35,835.00",Wcts,Other Services For Mental Health Needs,Supplies & Services
Leeds City Council,Adults and Health,01/05/2018,304.52,Specialist Autism Services,Day Care Mental Health,Supplies & Services
Leeds City Council,Adults and Health,21/05/2018,380.65,Specialist Autism Services,Day Care Mental Health,Supplies & Services
Leeds City Council,Adults and Health,23/05/2018,761.30,Specialist Autism Services,Day Care Mental Health,Supplies & Services
Leeds City Council,Adults and Health,21/05/2018,761.30,Specialist Autism Services,Day Care Mental Health,Supplies & Services
Leeds City Council,Adults and Health,21/05/2018,761.30,Specialist Autism Services,Day Care Mental Health,Supplies & Services
Leeds City Council,Adults and Health,21/05/2018,380.65,Specialist Autism Services,Day Care Mental Health,Supplies & Services
Leeds City Council,Adults and Health,03/05/2018,361.00,Imagineer Development Uk Cic,Home Care Mental Health,Supplies & Services
Leeds City Council,Adults and Health,04/05/2018,827.40,Leeds Autism Services,Day Care Mental Health,Supplies & Services
Leeds City Council,Adults and Health,17/05/2018,"2,260.00",Leeds Mind,Home Care Mental Health,Supplies & Services
Leeds City Council,Adults and Health,03/05/2018,"2,946.80",Real Life Options,Home Care Mental Health,Supplies & Services
Leeds City Council,Adults and Health,09/05/2018,756.00,Real Life Options,Home Care Mental Health,Supplies & Services
Leeds City Council,Adults and Health,03/05/2018,756.00,Real Life Options,Home Care Mental Health,Supplies & Services
Leeds City Council,Adults and Health,11/05/2018,864.60,Rani Care Cic,Home Care Mental Health,Supplies & Services
Leeds City Council,Adults and Health,21/05/2018,"1,676.76",Specialist Autism Services,Home Care Mental Health,Supplies & Services
Leeds City Council,Adults and Health,04/05/2018,"1,676.76",Specialist Autism Services,Home Care Mental Health,Supplies & Services
Leeds City Council,Adults and Health,01/05/2018,456.78,Specialist Autism Services,Home Care Mental Health,Supplies & Services
Leeds City Council,Adults and Health,01/05/2018,304.52,Specialist Autism Services,Home Care Mental Health,Supplies & Services
Leeds City Council,Adults and Health,01/05/2018,228.39,Specialist Autism Services,Home Care Mental Health,Supplies & Services
Leeds City Council,Adults and Health,25/05/2018,160.00,Touchstone - Leeds,Home Care Mental Health,Supplies & Services
Leeds City Council,Adults and Health,22/05/2018,630.00,Touchstone - Leeds,Home Care Mental Health,Supplies & Services
Leeds City Council,Adults and Health,25/05/2018,480.00,Touchstone - Leeds,Home Care Mental Health,Supplies & Services
Leeds City Council,Adults and Health,25/05/2018,320.00,Touchstone - Leeds,Home Care Mental Health,Supplies & Services
Leeds City Council,Adults and Health,22/05/2018,300.00,Touchstone - Leeds,Home Care Mental Health,Supplies & Services
Leeds City Council,Adults and Health,25/05/2018,240.00,Touchstone - Leeds,Home Care Mental Health,Supplies & Services
Leeds City Council,Adults and Health,09/05/2018,400.00,Touchstone - Leeds,Home Care Mental Health,Supplies & Services
Leeds City Council,Adults and Health,09/05/2018,620.00,Touchstone - Leeds,Home Care Mental Health,Supplies & Services
Leeds City Council,Adults and Health,15/05/2018,480.00,Touchstone - Leeds,Home Care Mental Health,Supplies & Services
Leeds City Council,Adults and Health,08/05/2018,184.00,Touchstone - Leeds,Home Care Mental Health,Supplies & Services
Leeds City Council,Adults and Health,30/05/2018,640.00,Touchstone - Leeds,Home Care Mental Health,Supplies & Services
Leeds City Council,Adults and Health,30/05/2018,640.00,Touchstone - Leeds,Home Care Mental Health,Supplies & Services
Leeds City Council,Adults and Health,30/05/2018,640.00,Touchstone - Leeds,Home Care Mental Health,Supplies & Services
Leeds City Council,Adults and Health,30/05/2018,"-1,600.00",Touchstone - Leeds,Home Care Mental Health,Supplies & Services
Leeds City Council,Adults and Health,30/05/2018,400.00,Touchstone - Leeds,Home Care Mental Health,Supplies & Services
Leeds City Council,Adults and Health,24/05/2018,540.00,Touchstone - Leeds,Home Care Mental Health,Supplies & Services
Leeds City Council,Adults and Health,24/05/2018,200.00,Touchstone - Leeds,Home Care Mental Health,Supplies & Services
Leeds City Council,Adults and Health,24/05/2018,460.00,Touchstone - Leeds,Home Care Mental Health,Supplies & Services
Leeds City Council,Adults and Health,24/05/2018,800.00,Touchstone - Leeds,Home Care Mental Health,Supplies & Services
Leeds City Council,Adults and Health,09/05/2018,960.00,Touchstone - Leeds,Home Care Mental Health,Supplies & Services
Leeds City Council,Adults and Health,03/05/2018,324.00,Henshaws Society For Blind People,Home Care Mental Health,Supplies & Services
Leeds City Council,Adults and Health,30/05/2018,"4,813.28",Community Links,Residential Care Home Placements,Supplies & Services
Leeds City Council,Adults and Health,02/05/2018,"4,813.28",Community Links,Residential Care Home Placements,Supplies & Services
Leeds City Council,Adults and Health,02/05/2018,"22,748.41",St Annes Residential Care,Residential Care Home Placements,Supplies & Services
Leeds City Council,Adults and Health,30/05/2018,"22,550.92",St Annes Residential Care,Residential Care Home Placements,Supplies & Services
Leeds City Council,Adults and Health,02/05/2018,"4,941.12",St Annes Residential Care,Residential Care Home Placements,Supplies & Services
Leeds City Council,Adults and Health,30/05/2018,"5,748.00",Chatterton Hey,Residential Care Home Placements,Supplies & Services
Leeds City Council,Adults and Health,02/05/2018,"5,748.00",Chatterton Hey,Residential Care Home Placements,Supplies & Services
Leeds City Council,Adults and Health,02/05/2018,"2,864.80",Henshaw Yokshire,Residential Care Home Placements,Supplies & Services
Leeds City Council,Adults and Health,02/05/2018,"17,187.12",Larchfield Residential Home,Residential Care Home Placements,Supplies & Services
Leeds City Council,Adults and Health,30/05/2018,"17,187.12",Larchfield Residential Home,Residential Care Home Placements,Supplies & Services
Leeds City Council,Adults and Health,02/05/2018,"19,158.64",St Annes Residential Care,Residential Care Home Placements,Supplies & Services
Leeds City Council,Adults and Health,30/05/2018,"19,158.64",St Annes Residential Care,Residential Care Home Placements,Supplies & Services
Leeds City Council,Adults and Health,30/05/2018,791.96,St Annes Shelter & Housing & Action,Residential Care Home Placements,Supplies & Services
Leeds City Council,Adults and Health,02/05/2018,791.96,St Annes Shelter & Housing & Action,Residential Care Home Placements,Supplies & Services
Leeds City Council,Adults and Health,02/05/2018,"8,123.88",Sign Health,Residential Care Home Placements,Supplies & Services
Leeds City Council,Adults and Health,30/05/2018,"8,123.88",Sign Health,Residential Care Home Placements,Supplies & Services
Leeds City Council,Adults and Health,11/05/2018,57.33,St John Ambulance,Other Services To Older People,Supplies & Services
Leeds City Council,Adults and Health,16/05/2018,48.00,West Yorkshire Playhouse Enterprise,Other Services To Older People,Supplies & Services
Leeds City Council,Adults and Health,25/05/2018,24.00,West Yorkshire Playhouse Enterprise,Other Services To Older People,Supplies & Services
Leeds City Council,Adults and Health,30/05/2018,24.00,West Yorkshire Playhouse Enterprise,Other Services To Older People,Supplies & Services
Leeds City Council,Adults and Health,30/05/2018,24.00,West Yorkshire Playhouse Enterprise,Other Services To Older People,Supplies & Services
Leeds City Council,Adults and Health,14/05/2018,600.00,Leeds Older Peoples Forum,Other Services To Older People,Supplies & Services
Leeds City Council,Adults and Health,17/05/2018,"17,577.35",Methodist Homes,Other Services To Older People,Supplies & Services
Leeds City Council,Adults and Health,17/05/2018,"17,577.35",Methodist Homes,Other Services To Older People,Supplies & Services
Leeds City Council,Adults and Health,17/05/2018,"17,577.35",Methodist Homes,Other Services To Older People,Supplies & Services
Leeds City Council,Adults and Health,17/05/2018,"21,971.70",Methodist Homes,Other Services To Older People,Supplies & Services
Leeds City Council,Adults and Health,17/05/2018,"31,647.40",Methodist Homes,Other Services To Older People,Supplies & Services
Leeds City Council,Adults and Health,17/05/2018,"31,647.40",Methodist Homes,Other Services To Older People,Supplies & Services
Leeds City Council,Adults and Health,17/05/2018,"31,647.40",Methodist Homes,Other Services To Older People,Supplies & Services
Leeds City Council,Adults and Health,17/05/2018,"39,559.25",Methodist Homes,Other Services To Older People,Supplies & Services
Leeds City Council,Adults and Health,17/05/2018,"12,678.00",Methodist Homes,Other Services To Older People,Supplies & Services
Leeds City Council,Adults and Health,17/05/2018,"12,678.00",Methodist Homes,Other Services To Older People,Supplies & Services
Leeds City Council,Adults and Health,17/05/2018,"12,678.00",Methodist Homes,Other Services To Older People,Supplies & Services
Leeds City Council,Adults and Health,17/05/2018,"15,960.00",Methodist Homes,Other Services To Older People,Supplies & Services
Leeds City Council,Adults and Health,17/05/2018,"9,148.85",Methodist Homes,Other Services To Older People,Supplies & Services
Leeds City Council,Adults and Health,17/05/2018,"9,148.85",Methodist Homes,Other Services To Older People,Supplies & Services
Leeds City Council,Adults and Health,17/05/2018,"9,148.85",Methodist Homes,Other Services To Older People,Supplies & Services
Leeds City Council,Adults and Health,17/05/2018,"11,436.05",Methodist Homes,Other Services To Older People,Supplies & Services
Leeds City Council,Adults and Health,03/05/2018,"1,015.00",Anchor Trust,Home Care,Supplies & Services
Leeds City Council,Adults and Health,30/05/2018,"1,043.00",Anchor Trust,Home Care,Supplies & Services
Leeds City Council,Adults and Health,30/05/2018,"1,512.86",Anchor Trust,Home Care,Supplies & Services
Leeds City Council,Adults and Health,22/05/2018,"1,076.48",Affinity Trust,Home Care,Supplies & Services
Leeds City Council,Adults and Health,04/05/2018,"17,228.35",Casa Leeds,Home Care,Supplies & Services
Leeds City Council,Adults and Health,21/05/2018,"95,677.34",Casa Leeds,Home Care,Supplies & Services
Leeds City Council,Adults and Health,21/05/2018,"2,431.49",Casa Leeds,Home Care,Supplies & Services
Leeds City Council,Adults and Health,24/05/2018,"25,957.21",Casa Leeds,Home Care,Supplies & Services
Leeds City Council,Adults and Health,04/05/2018,"1,008.70",Rani Care Cic,Home Care,Supplies & Services
Leeds City Council,Adults and Health,04/05/2018,"1,873.30",Rani Care Cic,Home Care,Supplies & Services
Leeds City Council,Adults and Health,17/05/2018,131.25,Reflections Community Support,Home Care,Supplies & Services
Leeds City Council,Adults and Health,17/05/2018,131.25,Reflections Community Support,Home Care,Supplies & Services
Leeds City Council,Adults and Health,17/05/2018,235.77,Reflections Community Support,Home Care,Supplies & Services
Leeds City Council,Adults and Health,17/05/2018,210.00,Reflections Community Support,Home Care,Supplies & Services
Leeds City Council,Adults and Health,17/05/2018,232.50,Reflections Community Support,Home Care,Supplies & Services
Leeds City Council,Adults and Health,17/05/2018,157.50,Reflections Community Support,Home Care,Supplies & Services
Leeds City Council,Adults and Health,17/05/2018,217.50,Reflections Community Support,Home Care,Supplies & Services
Leeds City Council,Adults and Health,17/05/2018,60.00,Reflections Community Support,Home Care,Supplies & Services
Leeds City Council,Adults and Health,17/05/2018,335.65,Reflections Community Support,Home Care,Supplies & Services
Leeds City Council,Adults and Health,17/05/2018,105.00,Reflections Community Support,Home Care,Supplies & Services
Leeds City Council,Adults and Health,17/05/2018,157.50,Reflections Community Support,Home Care,Supplies & Services
Leeds City Council,Adults and Health,17/05/2018,139.86,Reflections Community Support,Home Care,Supplies & Services
Leeds City Council,Adults and Health,17/05/2018,105.00,Reflections Community Support,Home Care,Supplies & Services
Leeds City Council,Adults and Health,17/05/2018,111.86,Reflections Community Support,Home Care,Supplies & Services
Leeds City Council,Adults and Health,17/05/2018,139.86,Reflections Community Support,Home Care,Supplies & Services
Leeds City Council,Adults and Health,11/05/2018,157.50,Reflections Community Support,Home Care,Supplies & Services
Leeds City Council,Adults and Health,25/05/2018,210.00,Reflections Community Support,Home Care,Supplies & Services
Leeds City Council,Adults and Health,25/05/2018,217.50,Reflections Community Support,Home Care,Supplies & Services
Leeds City Council,Adults and Health,25/05/2018,157.50,Reflections Community Support,Home Care,Supplies & Services
Leeds City Council,Adults and Health,25/05/2018,232.50,Reflections Community Support,Home Care,Supplies & Services
Leeds City Council,Adults and Health,25/05/2018,210.00,Reflections Community Support,Home Care,Supplies & Services
Leeds City Council,Adults and Health,25/05/2018,239.77,Reflections Community Support,Home Care,Supplies & Services
Leeds City Council,Adults and Health,25/05/2018,131.25,Reflections Community Support,Home Care,Supplies & Services
Leeds City Council,Adults and Health,25/05/2018,123.75,Reflections Community Support,Home Care,Supplies & Services
Leeds City Council,Adults and Health,25/05/2018,335.65,Reflections Community Support,Home Care,Supplies & Services
Leeds City Council,Adults and Health,25/05/2018,105.00,Reflections Community Support,Home Care,Supplies & Services
Leeds City Council,Adults and Health,25/05/2018,105.00,Reflections Community Support,Home Care,Supplies & Services
Leeds City Council,Adults and Health,25/05/2018,139.86,Reflections Community Support,Home Care,Supplies & Services
Leeds City Council,Adults and Health,25/05/2018,157.50,Reflections Community Support,Home Care,Supplies & Services
Leeds City Council,Adults and Health,25/05/2018,111.86,Reflections Community Support,Home Care,Supplies & Services
Leeds City Council,Adults and Health,25/05/2018,139.86,Reflections Community Support,Home Care,Supplies & Services
Leeds City Council,Adults and Health,17/05/2018,180.00,Reflections Community Support,Home Care,Supplies & Services
Leeds City Council,Adults and Health,03/05/2018,210.00,Reflections Community Support,Home Care,Supplies & Services
Leeds City Council,Adults and Health,03/05/2018,157.50,Reflections Community Support,Home Care,Supplies & Services
Leeds City Council,Adults and Health,03/05/2018,210.00,Reflections Community Support,Home Care,Supplies & Services
Leeds City Council,Adults and Health,03/05/2018,239.70,Reflections Community Support,Home Care,Supplies & Services
Leeds City Council,Adults and Health,03/05/2018,131.25,Reflections Community Support,Home Care,Supplies & Services
Leeds City Council,Adults and Health,03/05/2018,131.25,Reflections Community Support,Home Care,Supplies & Services
Leeds City Council,Adults and Health,03/05/2018,261.50,Reflections Community Support,Home Care,Supplies & Services
Leeds City Council,Adults and Health,03/05/2018,335.65,Reflections Community Support,Home Care,Supplies & Services
Leeds City Council,Adults and Health,03/05/2018,105.00,Reflections Community Support,Home Care,Supplies & Services
Leeds City Council,Adults and Health,03/05/2018,22.50,Reflections Community Support,Home Care,Supplies & Services
Leeds City Council,Adults and Health,03/05/2018,77.26,Reflections Community Support,Home Care,Supplies & Services
Leeds City Council,Adults and Health,25/05/2018,52.50,Reflections Community Support,Home Care,Supplies & Services
Leeds City Council,Adults and Health,03/05/2018,105.00,Reflections Community Support,Home Care,Supplies & Services
Leeds City Council,Adults and Health,03/05/2018,111.86,Reflections Community Support,Home Care,Supplies & Services
Leeds City Council,Adults and Health,03/05/2018,527.34,Reflections Community Support,Home Care,Supplies & Services
Leeds City Council,Adults and Health,03/05/2018,139.86,Reflections Community Support,Home Care,Supplies & Services
Leeds City Council,Adults and Health,11/05/2018,157.50,Reflections Community Support,Home Care,Supplies & Services
Leeds City Council,Adults and Health,11/05/2018,232.50,Reflections Community Support,Home Care,Supplies & Services
Leeds City Council,Adults and Health,11/05/2018,180.00,Reflections Community Support,Home Care,Supplies & Services
Leeds City Council,Adults and Health,11/05/2018,231.77,Reflections Community Support,Home Care,Supplies & Services
Leeds City Council,Adults and Health,11/05/2018,131.25,Reflections Community Support,Home Care,Supplies & Services
Leeds City Council,Adults and Health,11/05/2018,131.25,Reflections Community Support,Home Care,Supplies & Services
Leeds City Council,Adults and Health,11/05/2018,262.50,Reflections Community Support,Home Care,Supplies & Services
Leeds City Council,Adults and Health,11/05/2018,135.86,Reflections Community Support,Home Care,Supplies & Services
Leeds City Council,Adults and Health,11/05/2018,239.70,Reflections Community Support,Home Care,Supplies & Services
Leeds City Council,Adults and Health,11/05/2018,111.86,Reflections Community Support,Home Care,Supplies & Services
Leeds City Council,Adults and Health,11/05/2018,105.00,Reflections Community Support,Home Care,Supplies & Services
Leeds City Council,Adults and Health,11/05/2018,139.86,Reflections Community Support,Home Care,Supplies & Services
Leeds City Council,Adults and Health,11/05/2018,112.50,Reflections Community Support,Home Care,Supplies & Services
Leeds City Council,Adults and Health,11/05/2018,22.50,Reflections Community Support,Home Care,Supplies & Services
Leeds City Council,Adults and Health,11/05/2018,327.66,Reflections Community Support,Home Care,Supplies & Services
Leeds City Council,Adults and Health,24/05/2018,416.64,St Annes Community Services,Home Care,Supplies & Services
Leeds City Council,Adults and Health,25/05/2018,714.24,St Annes Community Services,Home Care,Supplies & Services
Leeds City Council,Adults and Health,24/05/2018,416.64,St Annes Community Services,Home Care,Supplies & Services
Leeds City Council,Adults and Health,24/05/2018,773.76,St Annes Community Services,Home Care,Supplies & Services
Leeds City Council,Adults and Health,25/05/2018,238.08,St Annes Community Services,Home Care,Supplies & Services
Leeds City Council,Adults and Health,24/05/2018,357.12,St Annes Community Services,Home Care,Supplies & Services
Leeds City Council,Adults and Health,21/05/2018,778.15,Specialist Autism Services,Home Care,Supplies & Services
Leeds City Council,Adults and Health,04/05/2018,291.40,Specialist Autism Services,Home Care,Supplies & Services
Leeds City Council,Adults and Health,01/05/2018,622.52,Specialist Autism Services,Home Care,Supplies & Services
Leeds City Council,Adults and Health,08/05/2018,"2,328.00",The Disabilities Trust,Home Care,Supplies & Services
Leeds City Council,Adults and Health,24/05/2018,200.00,Touchstone - Leeds,Home Care,Supplies & Services
Leeds City Council,Adults and Health,24/05/2018,280.00,Touchstone - Leeds,Home Care,Supplies & Services
Leeds City Council,Adults and Health,24/05/2018,160.00,Touchstone - Leeds,Home Care,Supplies & Services
Leeds City Council,Adults and Health,02/05/2018,"2,806.52",St Annes Residential Care,Residential Care Home Placements,Supplies & Services
Leeds City Council,Adults and Health,30/05/2018,"7,562.00",St Annes Residential Care,Residential Care Home Placements,Supplies & Services
Leeds City Council,Adults and Health,02/05/2018,"4,013.17",Bupa Sabourn Court Nursing Home,Residential Care Home Placements,Supplies & Services
Leeds City Council,Adults and Health,30/05/2018,"3,719.02",Burley Hall Nursing Home,Residential Care Home Placements,Supplies & Services
Leeds City Council,Adults and Health,02/05/2018,"3,757.64",Burley Hall Nursing Home,Residential Care Home Placements,Supplies & Services
Leeds City Council,Adults and Health,02/05/2018,35.86,Colton Lodge,Residential Care Home Placements,Supplies & Services
Leeds City Council,Adults and Health,30/05/2018,"3,394.56",Donisthorpe Hall,Residential Care Home Placements,Supplies & Services
Leeds City Council,Adults and Health,30/05/2018,"12,790.48",Elmwood Nursing Home,Residential Care Home Placements,Supplies & Services
Leeds City Council,Adults and Health,02/05/2018,"14,766.78",Elmwood Nursing Home,Residential Care Home Placements,Supplies & Services
Leeds City Council,Adults and Health,30/05/2018,"16,203.85",Gledhow Christian Care Home,Residential Care Home Placements,Supplies & Services
Leeds City Council,Adults and Health,02/05/2018,"5,525.99",Gledhow Christian Care Home,Residential Care Home Placements,Supplies & Services
Leeds City Council,Adults and Health,30/05/2018,"4,749.72",Little Sisters Of The Poor,Residential Care Home Placements,Supplies & Services
Leeds City Council,Adults and Health,02/05/2018,"4,749.72",Little Sisters Of The Poor,Residential Care Home Placements,Supplies & Services
Leeds City Council,Adults and Health,02/05/2018,"6,349.56",Leonard Cheshire Disability,Residential Care Home Placements,Supplies & Services
Leeds City Council,Adults and Health,30/05/2018,"6,349.56",Leonard Cheshire Disability,Residential Care Home Placements,Supplies & Services
Leeds City Council,Adults and Health,30/05/2018,"1,471.68",Sir Gabriel Wood'S Mariners' Home,Residential Care Home Placements,Supplies & Services
Leeds City Council,Adults and Health,02/05/2018,"1,471.68",Sir Gabriel Wood'S Mariners' Home,Residential Care Home Placements,Supplies & Services
Leeds City Council,Adults and Health,02/05/2018,825.10,West Riding Nursing Home,Residential Care Home Placements,Supplies & Services
Leeds City Council,Adults and Health,02/05/2018,"9,246.07",Anchor Trust,Residential Care Home Placements,Supplies & Services
Leeds City Council,Adults and Health,30/05/2018,"22,832.12",Anchor Trust,Residential Care Home Placements,Supplies & Services
Leeds City Council,Adults and Health,30/05/2018,"3,214.47",Anchor Trust,Residential Care Home Placements,Supplies & Services
Leeds City Council,Adults and Health,02/05/2018,"2,868.92",Anchor Trust,Residential Care Home Placements,Supplies & Services
Leeds City Council,Adults and Health,30/05/2018,"22,214.86",Anchor Trust Simon Marks Court,Residential Care Home Placements,Supplies & Services
Leeds City Council,Adults and Health,02/05/2018,"33,994.82",Anchor Trust Simon Marks Court,Residential Care Home Placements,Supplies & Services
Leeds City Council,Adults and Health,02/05/2018,"4,903.41",Ashcroft Nursing Home,Residential Care Home Placements,Supplies & Services
Leeds City Council,Adults and Health,30/05/2018,"6,526.11",Ashcroft Nursing Home,Residential Care Home Placements,Supplies & Services
Leeds City Council,Adults and Health,02/05/2018,"3,460.35",Colton Lodge,Residential Care Home Placements,Supplies & Services
Leeds City Council,Adults and Health,02/05/2018,112.99,Copperhill Nursing Home,Residential Care Home Placements,Supplies & Services
Leeds City Council,Adults and Health,30/05/2018,"10,802.44",Donisthorpe Hall,Residential Care Home Placements,Supplies & Services
Leeds City Council,Adults and Health,30/05/2018,"1,684.17",Hica Specialised Care Homes,Residential Care Home Placements,Supplies & Services
Leeds City Council,Adults and Health,02/05/2018,"1,473.96",Hica Specialised Care Homes,Residential Care Home Placements,Supplies & Services
Leeds City Council,Adults and Health,30/05/2018,"1,575.41",Hawthorn House,Residential Care Home Placements,Supplies & Services
Leeds City Council,Adults and Health,02/05/2018,"5,843.60",Larchfield Residential Home,Residential Care Home Placements,Supplies & Services
Leeds City Council,Adults and Health,30/05/2018,"5,843.60",Larchfield Residential Home,Residential Care Home Placements,Supplies & Services
Leeds City Council,Adults and Health,30/05/2018,"2,155.22",Springfield Nursing Home,Residential Care Home Placements,Supplies & Services
Leeds City Council,Adults and Health,02/05/2018,"1,826.52",Springfield Nursing Home,Residential Care Home Placements,Supplies & Services
Leeds City Council,Adults and Health,21/05/2018,276.00,Touchstone - Leeds,Residential Care Home Placements,Supplies & Services
Leeds City Council,Adults and Health,10/05/2018,"4,296.63",Bupa Park Avenue,Residential Care Home Placements,Supplies & Services
Leeds City Council,Adults and Health,30/05/2018,"2,296.00",Copperhill Nursing Home,Residential Care Home Placements,Supplies & Services
Leeds City Council,Adults and Health,02/05/2018,96.00,Copperhill Nursing Home,Residential Care Home Placements,Supplies & Services
Leeds City Council,Adults and Health,30/05/2018,"10,957.88",Donisthorpe Hall,Residential Care Home Placements,Supplies & Services
Leeds City Council,Adults and Health,02/05/2018,"2,135.12",Lindley Grange,Residential Care Home Placements,Supplies & Services
Leeds City Council,Adults and Health,30/05/2018,"2,135.12",Lindley Grange,Residential Care Home Placements,Supplies & Services
Leeds City Council,Adults and Health,30/05/2018,"2,116.24",Methodist Homes For The Aged,Residential Care Home Placements,Supplies & Services
Leeds City Council,Adults and Health,30/05/2018,0.00,West Riding Nursing Home,Residential Care Home Placements,Supplies & Services
Leeds City Council,Adults and Health,02/05/2018,"59,763.96",Anchor Trust,Residential Care Home Placements,Supplies & Services
Leeds City Council,Adults and Health,30/05/2018,"58,873.99",Anchor Trust,Residential Care Home Placements,Supplies & Services
Leeds City Council,Adults and Health,30/05/2018,"8,621.39",Anchor Trust,Residential Care Home Placements,Supplies & Services
Leeds City Council,Adults and Health,02/05/2018,"12,248.78",Anchor Trust,Residential Care Home Placements,Supplies & Services
Leeds City Council,Adults and Health,30/05/2018,"2,551.92",Anchor Trust,Residential Care Home Placements,Supplies & Services
Leeds City Council,Adults and Health,02/05/2018,"1,975.04",Anchor Trust,Residential Care Home Placements,Supplies & Services
Leeds City Council,Adults and Health,30/05/2018,844.18,Anchor Trust Simon Marks Court,Residential Care Home Placements,Supplies & Services
Leeds City Council,Adults and Health,02/05/2018,"5,762.77",Anchor Trust Simon Marks Court,Residential Care Home Placements,Supplies & Services
Leeds City Council,Adults and Health,30/05/2018,39.93,Ashcroft Nursing Home,Residential Care Home Placements,Supplies & Services
Leeds City Council,Adults and Health,30/05/2018,"1,184.59",Burley Hall Nursing Home,Residential Care Home Placements,Supplies & Services
Leeds City Council,Adults and Health,02/05/2018,"1,195.20",Burley Hall Nursing Home,Residential Care Home Placements,Supplies & Services
Leeds City Council,Adults and Health,30/05/2018,"1,594.64",Borrage House,Residential Care Home Placements,Supplies & Services
Leeds City Council,Adults and Health,02/05/2018,"1,657.64",Borrage House,Residential Care Home Placements,Supplies & Services
Leeds City Council,Adults and Health,02/05/2018,"3,821.98",Copperhill Nursing Home,Residential Care Home Placements,Supplies & Services
Leeds City Council,Adults and Health,30/05/2018,"4,848.46",Donisthorpe Hall,Residential Care Home Placements,Supplies & Services
Leeds City Council,Adults and Health,30/05/2018,"2,012.29",Dyneley House,Residential Care Home Placements,Supplies & Services
Leeds City Council,Adults and Health,02/05/2018,"1,548.56",Dyneley House,Residential Care Home Placements,Supplies & Services
Leeds City Council,Adults and Health,30/05/2018,"1,172.60",Elmwood Nursing Home,Residential Care Home Placements,Supplies & Services
Leeds City Council,Adults and Health,02/05/2018,"1,548.15",Elmwood Nursing Home,Residential Care Home Placements,Supplies & Services
Leeds City Council,Adults and Health,30/05/2018,"-1,930.95",Gledhow Christian Care Home,Residential Care Home Placements,Supplies & Services
Leeds City Council,Adults and Health,02/05/2018,"4,406.36",Gledhow Christian Care Home,Residential Care Home Placements,Supplies & Services
Leeds City Council,Adults and Health,02/05/2018,"1,657.64",Heath Lodge Residential Home,Residential Care Home Placements,Supplies & Services
Leeds City Council,Adults and Health,30/05/2018,"1,594.64",Heath Lodge Residential Home,Residential Care Home Placements,Supplies & Services
Leeds City Council,Adults and Health,30/05/2018,"4,051.84",Joseph Rowntree Foundation,Residential Care Home Placements,Supplies & Services
Leeds City Council,Adults and Health,02/05/2018,"5,919.74",Joseph Rowntree Foundation,Residential Care Home Placements,Supplies & Services
Leeds City Council,Adults and Health,02/05/2018,"37,441.36",Larchfield Residential Home,Residential Care Home Placements,Supplies & Services
Leeds City Council,Adults and Health,30/05/2018,"15,496.23",Larchfield Residential Home,Residential Care Home Placements,Supplies & Services
Leeds City Council,Adults and Health,30/05/2018,"3,415.56",Leeds Jewish Welfare Board,Residential Care Home Placements,Supplies & Services
Leeds City Council,Adults and Health,02/05/2018,"3,415.56",Leeds Jewish Welfare Board,Residential Care Home Placements,Supplies & Services
Leeds City Council,Adults and Health,30/05/2018,"3,180.00",Lily Thompson House,Residential Care Home Placements,Supplies & Services
Leeds City Council,Adults and Health,02/05/2018,"3,180.00",Lily Thompson House,Residential Care Home Placements,Supplies & Services
Leeds City Council,Adults and Health,30/05/2018,"15,600.32",Little Sisters Of The Poor,Residential Care Home Placements,Supplies & Services
Leeds City Council,Adults and Health,02/05/2018,"14,209.56",Little Sisters Of The Poor,Residential Care Home Placements,Supplies & Services
Leeds City Council,Adults and Health,30/05/2018,"3,395.84",Livability,Residential Care Home Placements,Supplies & Services
Leeds City Council,Adults and Health,30/05/2018,"4,745.24",Leonard Cheshire,Residential Care Home Placements,Supplies & Services
Leeds City Council,Adults and Health,02/05/2018,"4,745.24",Leonard Cheshire,Residential Care Home Placements,Supplies & Services
Leeds City Council,Adults and Health,02/05/2018,"6,115.16",Leonard Cheshire Disability,Residential Care Home Placements,Supplies & Services
Leeds City Council,Adults and Health,30/05/2018,"6,115.16",Leonard Cheshire Disability,Residential Care Home Placements,Supplies & Services
Leeds City Council,Adults and Health,30/05/2018,"1,602.92",Orders Of St John Care Trust,Residential Care Home Placements,Supplies & Services
Leeds City Council,Adults and Health,02/05/2018,"1,403.48",Orders Of St John Care Trust,Residential Care Home Placements,Supplies & Services
Leeds City Council,Adults and Health,02/05/2018,"4,786.24",St Annes Residential Care,Residential Care Home Placements,Supplies & Services
Leeds City Council,Adults and Health,30/05/2018,"4,786.24",St Annes Residential Care,Residential Care Home Placements,Supplies & Services
Leeds City Council,Adults and Health,30/05/2018,"1,404.82",West Riding Nursing Home,Residential Care Home Placements,Supplies & Services
Leeds City Council,Adults and Health,16/05/2018,250.95,People Matters (West Yorkshire) Cio,Home Care,Supplies & Services
Leeds City Council,Adults and Health,25/05/2018,472.00,The Disabilities Trust,Home Care,Supplies & Services
Leeds City Council,Adults and Health,25/05/2018,"-4,223.48",The Disabilities Trust,Home Care,Supplies & Services
Leeds City Council,Adults and Health,11/05/2018,55.00,Saint John Of God Hospitaller Services,Other Services - P/Dis Or S/Impairment,Supplies & Services
Leeds City Council,Adults and Health,23/05/2018,134.56,Affinity Trust,Home Care,Supplies & Services
Leeds City Council,Adults and Health,22/05/2018,"2,141.32",Affinity Trust,Home Care,Supplies & Services
Leeds City Council,Adults and Health,04/05/2018,"8,818.34",Casa Leeds,Home Care,Supplies & Services
Leeds City Council,Adults and Health,21/05/2018,"6,454.08",Casa Leeds,Home Care,Supplies & Services
Leeds City Council,Adults and Health,04/05/2018,"1,921.00",Leeds Autism Services,Home Care,Supplies & Services
Leeds City Council,Adults and Health,21/05/2018,602.28,People Matters (West Yorkshire) Cio,Home Care,Supplies & Services
Leeds City Council,Adults and Health,02/05/2018,108.00,Pyramid Of Arts,Home Care,Supplies & Services
Leeds City Council,Adults and Health,29/05/2018,108.00,Pyramid Of Arts,Home Care,Supplies & Services
Leeds City Council,Adults and Health,21/05/2018,143.64,People In Action Leeds Uk,Home Care,Supplies & Services
Leeds City Council,Adults and Health,04/05/2018,140.00,Purple Patch Arts,Home Care,Supplies & Services
Leeds City Council,Adults and Health,17/05/2018,105.00,Reflections Community Support,Home Care,Supplies & Services
Leeds City Council,Adults and Health,17/05/2018,315.00,Reflections Community Support,Home Care,Supplies & Services
Leeds City Council,Adults and Health,17/05/2018,415.48,Reflections Community Support,Home Care,Supplies & Services
Leeds City Council,Adults and Health,25/05/2018,270.00,Reflections Community Support,Home Care,Supplies & Services
Leeds City Council,Adults and Health,25/05/2018,105.00,Reflections Community Support,Home Care,Supplies & Services
Leeds City Council,Adults and Health,25/05/2018,399.50,Reflections Community Support,Home Care,Supplies & Services
Leeds City Council,Adults and Health,03/05/2018,315.00,Reflections Community Support,Home Care,Supplies & Services
Leeds City Council,Adults and Health,03/05/2018,105.00,Reflections Community Support,Home Care,Supplies & Services
Leeds City Council,Adults and Health,03/05/2018,404.84,Reflections Community Support,Home Care,Supplies & Services
Leeds City Council,Adults and Health,11/05/2018,300.00,Reflections Community Support,Home Care,Supplies & Services
Leeds City Council,Adults and Health,11/05/2018,105.00,Reflections Community Support,Home Care,Supplies & Services
Leeds City Council,Adults and Health,11/05/2018,447.44,Reflections Community Support,Home Care,Supplies & Services
Leeds City Council,Adults and Health,11/05/2018,105.00,Reflections Community Support,Home Care,Supplies & Services
Leeds City Council,Adults and Health,29/05/2018,814.80,Scope,Home Care,Supplies & Services
Leeds City Council,Adults and Health,24/05/2018,476.16,St Annes Community Services,Home Care,Supplies & Services
Leeds City Council,Adults and Health,25/05/2018,714.24,St Annes Community Services,Home Care,Supplies & Services
Leeds City Council,Adults and Health,24/05/2018,476.16,St Annes Community Services,Home Care,Supplies & Services
Leeds City Council,Adults and Health,25/05/2018,476.16,St Annes Community Services,Home Care,Supplies & Services
Leeds City Council,Adults and Health,31/05/2018,416.64,St Annes Community Services,Home Care,Supplies & Services
Leeds City Council,Adults and Health,31/05/2018,372.00,St Annes Community Services,Home Care,Supplies & Services
Leeds City Council,Adults and Health,24/05/2018,476.16,St Annes Community Services,Home Care,Supplies & Services
Leeds City Council,Adults and Health,04/05/2018,476.16,St Annes Community Services,Home Care,Supplies & Services
Leeds City Council,Adults and Health,24/05/2018,714.24,St Annes Community Services,Home Care,Supplies & Services
Leeds City Council,Adults and Health,04/05/2018,532.00,Second Chance Headway Centre,Home Care,Supplies & Services
Leeds City Council,Adults and Health,09/05/2018,532.00,Second Chance Headway Centre,Home Care,Supplies & Services
Leeds City Council,Adults and Health,31/05/2018,608.00,Second Chance Headway Centre,Home Care,Supplies & Services
Leeds City Council,Adults and Health,10/05/2018,240.00,Signhealth,Home Care,Supplies & Services
Leeds City Council,Adults and Health,04/05/2018,609.04,Specialist Autism Services,Home Care,Supplies & Services
Leeds City Council,Adults and Health,04/05/2018,95.40,Specialist Autism Services,Home Care,Supplies & Services
Leeds City Council,Adults and Health,04/05/2018,609.04,Specialist Autism Services,Home Care,Supplies & Services
Leeds City Council,Adults and Health,04/05/2018,769.04,Specialist Autism Services,Home Care,Supplies & Services
Leeds City Council,Adults and Health,04/05/2018,913.56,Specialist Autism Services,Home Care,Supplies & Services
Leeds City Council,Adults and Health,21/05/2018,609.04,Specialist Autism Services,Home Care,Supplies & Services
Leeds City Council,Adults and Health,21/05/2018,609.04,Specialist Autism Services,Home Care,Supplies & Services
Leeds City Council,Adults and Health,21/05/2018,609.04,Specialist Autism Services,Home Care,Supplies & Services
Leeds City Council,Adults and Health,21/05/2018,913.56,Specialist Autism Services,Home Care,Supplies & Services
Leeds City Council,Adults and Health,21/05/2018,291.40,Specialist Autism Services,Home Care,Supplies & Services
Leeds City Council,Adults and Health,21/05/2018,95.40,Specialist Autism Services,Home Care,Supplies & Services
